{"text_format":"1","workbook":"xlsx","n_sheets":6,"sheets":["Logg endringer","Sjekkliste for utfylling","Ikke besvart","Ja-svar","Nei-svar","IA-svar"],"not_rendered":{"charts":0,"images":0,"macros":1,"external_links":0,"defined_names":106,"comments":0,"pivot_tables":0},"unopened":[],"bounds":{"document_bytes":16777216,"sheet_cells":100000,"rows_first":2000,"rows_last":500,"rows_between":2000,"halvings":0,"cell_chars":16384,"cell_head_chars":4096},"cells_cut":0,"cells_raw":0,"read":"whole","date_system":"1900"}

{"sheet":"Logg endringer","index":0,"n_rows":23,"n_cols":1,"rows_kept":23,"cut":false,"hidden":true,"merged":[]}
[]
["2014"]
[]
["Lagt inn warning ifht \"ikke-uttømmende sjekkliste\" øverst"]
[]
["RF-1028 Selvangivelse"]
["Side 2"]
["Tatt inn veiledning og spørsmål vedr at man ikke kan gi konsernbidrag eller bruke framførbart underskudd for å redusere skattepliktig inntekt som følge av rentefradragsbegrensning"]
["Tatt inn spørsmål vedr rett overføring fra RF-1315"]
["Side 3"]
["Spørsmål vedr fremføring av ubenyttet godtgjørelse er tatt bort, var sist aktuelt i 2013."]
["Side 4"]
["\"Sikkerhetsventil\" for ligningsverdi av fast eiendom er økt fra 60% av markedsverdi til 72% av markedsverdi"]
[]
["RF-1084 Saldoskjema"]
["Post 110b - lagt inn spørsmål vedr 10% startavskriving for saldogruppe d for 2014"]
[]
["RF-1215 Selskapsoppgave deltakerlignet selskap"]
["Overskudd fra næringsoppgaven skal nå overføres til post 1105, ikke 1110"]
["Tatt inn spørsmål vedr rett overføring fra RF-1315"]
[]
["RF-1315 Rentebegrensning"]
["Skjema og alle spørsmål er nytt fra 2014"]

{"sheet":"Sjekkliste for utfylling","index":1,"n_rows":208,"n_cols":15,"rows_kept":208,"cut":false,"hidden":false,"merged":[[103,1,103,2],[5,0,5,7],[7,0,7,7],[6,0,6,7]]}
["Sjekkliste skattepapirer - obligatorisk",null,null,"Utfylt:",null,null,null,null,null,null,null,null,null,"Ikke besvart:",{"$f":"+'Ikke besvart'!E1","v":131}]
["Klient:",null,null,"Review:",null,null,null,null,null,null,null,null,null,"Ja-svar:",{"$f":"+'Ja-svar'!C1","v":0}]
["År:",2020,null,null,null,null,null,null,null,null,null,null,null,"Nei-svar:",{"$f":"+'Nei-svar'!C1","v":0}]
[null,null,null,null,null,null,null,null,null,null,null,null,null,"IA-svar:",{"$f":"+'IA-svar'!C1","v":0}]
[null,null,null,null,null,null,null,null,null,null,null,null,null,"Sum:",{"$f":"SUM(O1:O4)","v":131}]
["Om sjekklisten:"]
["Det er en rekke feilkilder knyttet til utarbeidelsen av skattepapirene. Denne sjekklisten er hovedsakelig rettet mot de skattepapirene som har tilknytning til beregningen av den skattepliktige inntekten. "]
["Sjekklisten er ikke uttømmende, spørsmålene her er først og fremst rettet mot de postene i skatteskjemaene der det erfaringsmessig blir gjort mest feil. "]
[null,null,null,null,null,null,null,null,"Fyll ut med \"X\""]
[null,"Spørsmål","Ref. ","Ekskludering:",null,null,null,null,"Ja","Nei","I/A","Kommentar"]
["Avstemming av skattekostnaden"]
[null,"Hvis ikke skattekostnaden utgjør 22 % av resultat før skatt korrigert for permanente forskjeller, må årsaken være tydelig forklart."]
[1,"Finnes det en oppstilling (som for eksempel kan være noten til regnskapet eller skatteberegningsmodellen) som viser sammenhengen mellom resultat før skatt og skattekostnaden?",null,null,{"$f":"IF(I13<>\"\",1,0)","v":0},{"$f":"IF(J13<>\"\",1,0)","v":0},{"$f":"IF(K13<>\"\",1,0)","v":0},{"$f":"IF(SUM(E13:G13)>1,\"Velg kun et alt.\",\"\")","v":""},null,null,null,null,null,{"$f":"IF(J13<>\"\",\"Du har satt X for at forholdet ikke er avklart. Gi en nærmere foklaring i kommentarfeltet.\",\"\")","v":""}]
["Næringsoppgaven (RF-1167)"]
["Side 1"]
[{"$f":"+A13+1","v":2},"Er regnskapsmessig og skattemessig verdi av varelager avstemt mot arbeidspapir for varelager? ",null,null,{"$f":"IF(I16<>\"\",1,0)","v":0},0,0,{"$f":"IF(SUM(E16:G16)>1,\"Velg kun et alt.\",\"\")","v":""},null,null,null,null,null,{"$f":"IF(J16<>\"\",\"Du har satt X for at forholdet ikke er avklart. Gi en nærmere foklaring i kommentarfeltet.\",\"\")","v":""}]
[{"$f":"+A16+1","v":3},"Er utregning av skattemessig verdi på fordringer kontrollert og funnet i orden? ",null,null,0,0,0,{"$f":"IF(SUM(E17:G17)>1,\"Velg kun et alt.\",\"\")","v":""},null,null,null,null,null,""]
[{"$f":"+A17+1","v":4},"Er det spesielt kontrollert at \n- konstaterte tap på kundefordringer i post 0420 ikke er lavere enn 0, og at \n- konstaterte tap på kundefordringer i post 0420 ikke inneholder endring i regnskapsmessig tapsavsetning?",null,null,{"$f":"IF(I18<>\"\",1,0)","v":0},{"$f":"IF(J18<>\"\",1,0)","v":0},{"$f":"IF(K18<>\"\",1,0)","v":0},{"$f":"IF(SUM(E18:G18)>1,\"Velg kun et alt.\",\"\")","v":""},null,null,null,null,null,""]
["Side 2 og 3",null,null,null,null,0,null,null,null,null,null,null,null,""]
[{"$f":"+A18+1","v":5},"Er resultatregnskap og balanse «avskrift» av årsregnskapet, bare med økt spesifikasjon? ",null,null,0,0,0,"",null,null,null,null,null,{"$f":"IF(J20<>\"\",\"Du har satt X for at forholdet ikke er avklart. Gi en nærmere foklaring i kommentarfeltet.\",\"\")","v":""}]
[{"$f":"+A20+1","v":6},"Er følgende i samsvar med offisielt regnskap:\n• sum driftsinntekter (post 9000) \n• driftsresultat (post 9050) \n• ordinært resultat (post 9150)  ",null,null,0,0,0,"",null,null,null,null,null,{"$f":"IF(J21<>\"\",\"Du har satt X for at forholdet ikke er avklart. Gi en nærmere foklaring i kommentarfeltet.\",\"\")","v":""}]
[null,"Eventuelle avvik må forklares. Det skal svært sjelden være avvik. Det mest aktuelle er investeringsselskaper, som fører avkastning på investeringene som driftsinntekt.",null,null,0]
[null,"Fusjon/fisjon"]
[{"$f":"+A21+1","v":7},"Er det konsistens med årsregnskapet ved fusjon og fisjon? ",null,null,{"$f":"IF(I24<>\"\",1,0)","v":0},0,0,{"$f":"IF(SUM(E24:G24)>1,\"Velg kun et alt.\",\"\")","v":""},null,null,null,null,null,{"$f":"IF(J24<>\"\",\"Du har satt X for at forholdet ikke er avklart. Gi en nærmere foklaring i kommentarfeltet.\",\"\")","v":""}]
[{"$f":"+A24+1","v":8},"Hvis sammenligningstallene er endret i forhold til fjoråret, er det i så fall vedlagt forklaring i vedlegg til skattepapirene? ",null,null,0,0,0,{"$f":"IF(SUM(E25:G25)>1,\"Velg kun et alt.\",\"\")","v":""},null,null,null,null,null,{"$f":"IF(J25<>\"\",\"Du har satt X for at forholdet ikke er avklart. Gi en nærmere foklaring i kommentarfeltet.\",\"\")","v":""}]
["Side 4"]
[{"$f":"+A25+1","v":9},"Permanente forskjeller \nEr permanente forskjeller avstemt mot arbeidspapir for skatteberegning? ",null,null,{"$f":"IF(I27<>\"\",1,0)","v":0},0,0,{"$f":"IF(SUM(E27:G27)>1,\"Velg kun et alt.\",\"\")","v":""},null,null,null,null,null,{"$f":"IF(J27<>\"\",\"Du har satt X for at forholdet ikke er avklart. Gi en nærmere foklaring i kommentarfeltet.\",\"\")","v":""}]
[{"$f":"+A27+1","v":10},"Er skattefrie offentlige tilskudd behandlet riktig i opptjenings-/utbetalingsåret og senere år, ved at et beløp tilsvarende tilskuddet er ført som «andre fradrag», også når tilskuddet har redusert regnskapsmessig kostpris av investeringen? (svært vanlig for eksempel for investeringstilskudd fra Innovasjon Norge, og SkatteFUNN) ",null,null,0,0,0,{"$f":"IF(SUM(E28:G28)>1,\"Velg kun et alt.\",\"\")","v":""},null,null,null,null,null,{"$f":"IF(J28<>\"\",\"Du har satt X for at forholdet ikke er avklart. Gi en nærmere foklaring i kommentarfeltet.\",\"\")","v":""}]
[{"$f":"+A28+1","v":11},"Er realiserte tap på fordringer som ikke er i næring tilbakeført som ikke fradragsberettiget kostnad? \nNB! Retten til fradrag for tap på fordringer på selskap i samme skattekonsern er i stor grad avskåret.",null,null,{"$f":"IF(I29<>\"\",1,0)","v":0},{"$f":"IF(J29<>\"\",1,0)","v":0},{"$f":"IF(K29<>\"\",1,0)","v":0},{"$f":"IF(SUM(E29:G29)>1,\"Velg kun et alt.\",\"\")","v":""},null,null,null,null,null,{"$f":"IF(J29<>\"\",\"Du har satt X for at forholdet ikke er avklart. Gi en nærmere foklaring i kommentarfeltet.\",\"\")","v":""}]
[null,"Aksjer og andeler"]
[{"$f":"+A29+1","v":12},"Er det påsett at «Tilbakeføring av inntektsført utbytte» og «Resultatførte konsernbidrag» i post 0815 og 0816 ikke inneholder beløp som er ført mot balanseposten \"Aksjer\" i årsregnskapet (skattepliktige konsernbidrag skal inntektsføres igjen i skattemeldingen)? ",null,null,{"$f":"IF(I31<>\"\",1,0)","v":0},0,0,{"$f":"IF(SUM(E31:G31)>1,\"Velg kun et alt.\",\"\")","v":""},null,null,null,null,null,{"$f":"IF(J31<>\"\",\"Du har satt X for at forholdet ikke er avklart. Gi en nærmere foklaring i kommentarfeltet.\",\"\")","v":""}]
[{"$f":"+A31+1","v":13},"Er alle andre inntekter/kostnader i resultatregnskapet knyttet til aksjer/andeler i andre selskaper tilbakeført?",null,null,0,0,0,"",null,null,null,null,null,""]
[{"$f":"+A32+1","v":14},"Ved investering i selskap med deltakerfastsetting, er årets skattemessige resultat fra andelen tatt inn i post 0655/0855?",null,null,0,0,0,"",null,null,null,null,null,""]
[{"$f":"+A33+1","v":15},"Ved utdeling av opptjent kapital fra selskap med deltakerfastsetting, er 3% av netto utdeling tilbakeført i post 0653? \nNetto utdeling vil si utdeling redusert med skatt på andel av overskuddet som deltakeren får fastsatt, dette fremgår av deltakermeldingen (RF-1221 og RF-1233) post 216.  "]
[{"$f":"+A34+1","v":16},"Er det foretatt en grundig kontroll av om mottatte utbytter og salgsgevinster/-tap på aksjer er innenfor eller utenfor fritaksmetoden?",null,null,0,0,0,"",null,null,null,null,null,""]
[17,"Er eventuelle skattepliktige beløp vedrørende aksjer ført inn i postene 0650-0653/0850?\nHusk spesielt tilbakeføring av 3 % av skattefritt utbytte etter fritaksmetoden, som skal inn i post 0653",null,null,0,0,0,"",null,null,null,null,null,""]
[{"$f":"+A36+1","v":18},"Er skattepliktig gevinst eller fradragsberettiget tap i post 0650/0850 samt skattepliktig utbytte i post 0652 spesifisert i RF-1359?"]
[{"$f":"+A37+1","v":19},"Andre forhold\nEr det kontrollert at avskrivning på goodwill etter skattefri fusjon/konserninterne overføringer ikke er behandlet som permanent forskjell? (Skal behandles som midlertidig forskjell (som ikke inngår i beregningsgrunnlaget for utsatt skatt) og endring i midlertidig forskjell)",null,null,{"$f":"IF(I38<>\"\",1,0)","v":0},{"$f":"IF(J38<>\"\",1,0)","v":0},{"$f":"IF(K38<>\"\",1,0)","v":0},"",null,null,null,null,null,""]
[20,"Er endringer i midlertidige forskjeller i post 0670/0870 i samsvar med post 100 i RF-1217? ",null,null,{"$f":"IF(I39<>\"\",1,0)","v":0},0,0,"",null,null,null,null,null,""]
[21,"Er endringer i totale midlertidige forskjeller i post 0670 / 0870 avstemt mot arbeidspapir for skatteberegning?",null,null,0,0,0,"",null,null,null,null,null,""]
[{"$f":"+A40+1","v":22},"Er det bare ført inn beløp i post 0877 når emisjons-/stiftelseskostnader er ført direkte mot egenkapitalen?",null,null,0,0,0,"",null,null,null,null,null,""]
["Spesifikasjon av forskjeller mellom regnskapsmessige og skattemessige verdier (RF-1217)"]
[{"$f":"+A41+1","v":23},"Generelt \nEr tallene i fjorårskolonnen i samsvar med RF-1217 i fjor? ",null,null,{"$f":"IF(I43<>\"\",1,0)","v":0},0,0,{"$f":"IF(SUM(E43:G43)>1,\"Velg kun et alt.\",\"\")","v":""},null,null,null,null,null,{"$f":"IF(J43<>\"\",\"Du har satt X for at forholdet ikke er avklart. Gi en nærmere foklaring i kommentarfeltet.\",\"\")","v":""}]
[{"$f":"+A43+1","v":24},"Ved fusjon til kontinuitet, er tallene i fjorårskolonnen korrigert, slik at de utgjør summen av selskapene? ",null,null,0,0,0,"",null,null,null,null,null,""]
[{"$f":"+A44+1","v":25},"Ved fisjon til kontinuitet, er tallene i fjorårskolonnen korrigert, slik at de utgjør fjorårstallene med fradrag for utfisjonerte midlertidige forskjeller? ",null,null,{"$f":"IF(I45<>\"\",1,0)","v":0},0,0,"",null,null,null,null,null,""]
[26,"Er store og/eller ulogiske endringer forklart? ",null,null,0,0,0,"",null,null,null,null,null,""]
[null,"Driftsmidler (inkl. immaterielle eiendeler) "]
[{"$f":"+A46+1","v":27},"Er det foretatt avstemming av midlertidige forskjeller vedrørende driftsmidler (immaterielle eiendeler og varige driftsmidler)? ",null,null,{"$f":"IF(I48<>\"\",1,0)","v":0},0,0,"",null,null,null,null,null,""]
[28,"Inkluderer den skattemessige verdien i post 2 samtlige driftsmidler (inkl. immaterielle eiendeler) innenfor og utenfor (for eksempel tomt og boligeiendom) saldosystemet? ",null,null,{"$f":"IF(I49<>\"\",1,0)","v":0},0,0,"",null,null,null,null,null,""]
[29,"Er det spesielt vurdert om det er foretatt egen (forskning og) utvikling som skal balanseføres skattemessig i post 2 (uavhengig av den regnskapsmessige behandlingen)? ",null,null,0,0,0,"",null,null,null,null,null,""]
[{"$f":"+A50+1","v":30},"Hvis utgifter er ført som investering/påkostning regnskapsmessig, men er kostnadsført skattemessig (for eksempel byggelånsrenter eller vedlikehold), er dette forklart i vedlegg? ",null,null,{"$f":"IF(I51<>\"\",1,0)","v":0},{"$f":"IF(J51<>\"\",1,0)","v":0},{"$f":"IF(K51<>\"\",1,0)","v":0},"",null,null,null,null,null,""]
[null,"Tilvirkningskontrakter"]
[null,"Ved bruk av løpende avregning regnskapsmessig, blir forskudd mv trukket fra i den regnskapsmessige verdien. For at den skattemessige verdien skal bli sammenlignbar med den regnskapsmessige verdien, må forskudd mv trekkes fra også i den skattemessige verdien (mens de er oppført som gjeld i balansen). Som oftest blir da den skattemessige verdien negativ. Den ofte enkleste og sikreste måte å finne den skattemessige verdien på er å trekke prosjektfortjenesten per 31.12 fra den regnskapsmessige verdien.",null,null,{"$f":"IF(I53<>\"\",1,0)","v":0}]
[{"$f":"+A51+1","v":31},"Ved bruk av løpende avregning regnskapsmessig, beregnes da skattemessig verdi som regnskapsmessig verdi av prosjekter ifølge årsregnskapet og post 21, med fradrag for beregnet prosjektfortjeneste pr. 31.12. på igangværende prosjekter? ",null,null,{"$f":"IF(I54<>\"\",1,0)","v":0}]
[null,"Fordringer/gjeld etter fordringsmodellen"]
[{"$f":"+A54+1","v":32},"Hvis selskapet har vært part i en konsernfusjon/-fisjon i år, er det da beregnet midlertidig forskjell på konsernfordringen-/gjelden, uavhengig av om utsatt skatt/skattefordel på den midlertidige forskjellen er balanseført eller ikke?"]
[{"$f":"+A56+1","v":33},"Ved senere nedbetaling av konsernfordringen/-gjelden, er da den skattemessige verdien av fordringen/gjelden redusert proprosjonalt med den regnskapsmessige verdien?"]
[{"$f":"+A57+1","v":34},"Utestående fordringer\nEr det påsett at det ikke er ført noen midlertidig forskjell på fordring på konsernselskap og eventuelle andre utlån der tapet ikke er fradragsberettiget?"]
[{"$f":"+A58+1","v":35},"Balanseførte leieavtaler \nNår skattemessig operasjonelle leieavtaler er balanseført (som finansielle) regnskapsmessig, er da regnskapsmessig verdi av eiendelene og gjelden ført inn i postene 46 og 47? ",null,null,{"$f":"IF(I59<>\"\",1,0)","v":0},{"$f":"IF(J59<>\"\",1,0)","v":0},{"$f":"IF(K59<>\"\",1,0)","v":0},"",null,null,null,null,null,""]
[null,"Aksjer i andre selskaper"]
[{"$f":"+A59+1","v":36},"Er bare aksjer og andre finansielle instrumenter som ikke er omfattet av fritaksmetoden tatt med i post 111-113? ",null,null,{"$f":"IF(I61<>\"\",1,0)","v":0},0,0,{"$f":"IF(SUM(E61:G61)>1,\"Velg kun et alt.\",\"\")","v":""},null,null,null,null,null,{"$f":"IF(J61<>\"\",\"Du har satt X for at forholdet ikke er avklart. Gi en nærmere foklaring i kommentarfeltet.\",\"\")","v":""}]
[{"$f":"+A61+1","v":37},"Er det beregnet 3 % av inntektsført avsatt utbytte fra datterselskap mv der en eier 90 % av aksjene eller mindre, og er beløpet ført inn i post 115? ",null,null,0,0,0,{"$f":"IF(SUM(E62:G62)>1,\"Velg kun et alt.\",\"\")","v":""},null,null,null,null,null,{"$f":"IF(J62<>\"\",\"Du har satt X for at forholdet ikke er avklart. Gi en nærmere foklaring i kommentarfeltet.\",\"\")","v":""}]
[null,"Andeler i andre selskaper"]
[{"$f":"+A62+1","v":38},"Er bare eventuelle andeler utenfor fritaksmetoden tatt med i post 121-123?",null,null,{"$f":"IF(I64<>\"\",1,0)","v":0},0,0,{"$f":"IF(SUM(E64:G64)>1,\"Velg kun et alt.\",\"\")","v":""},null,null,null,null,null,{"$f":"IF(J64<>\"\",\"Du har satt X for at forholdet ikke er avklart. Gi en nærmere foklaring i kommentarfeltet.\",\"\")","v":""}]
[{"$f":"+A64+1","v":39},"Er det beregnet midlertidig forskjell på andeler under fritaksmetoden i post 124, og er den skattemessige verdien riktig beregnet (se omtale og talleksempler i rettledningen)?",null,null,0,0,0,{"$f":"IF(SUM(E65:G65)>1,\"Velg kun et alt.\",\"\")","v":""},null,null,null,null,null,{"$f":"IF(J65<>\"\",\"Du har satt X for at forholdet ikke er avklart. Gi en nærmere foklaring i kommentarfeltet.\",\"\")","v":""}]
[null,"Kjøp og omorganisering av virksomhet"]
[{"$f":"+A65+1","v":40},"Når det har vært kjøp av «innmat», er gjenværende balanseført verdi av overtatte forpliktelser (for eksempel pensjonsforpliktelser og avsetninger etter god regnskapsskikk) trukket ut fra disse postene og i stedet ført inn i post 81? ",null,null,{"$f":"IF(I67<>\"\",1,0)","v":0},0,0,{"$f":"IF(SUM(E67:G67)>1,\"Velg kun et alt.\",\"\")","v":""},null,null,null,null,null,{"$f":"IF(J67<>\"\",\"Du har satt X for at forholdet ikke er avklart. Gi en nærmere foklaring i kommentarfeltet.\",\"\")","v":""}]
[{"$f":"+A67+1","v":41},"Ved konserninterne overføringer og «virkelig verdi»-fusjoner med skattemessig kontinuitet, er postene 91-94 riktig utfylt i overføringsåret? ",null,null,0,0,0,{"$f":"IF(SUM(E68:G68)>1,\"Velg kun et alt.\",\"\")","v":""},null,null,null,null,null,{"$f":"IF(J68<>\"\",\"Du har satt X for at forholdet ikke er avklart. Gi en nærmere foklaring i kommentarfeltet.\",\"\")","v":""}]
[{"$f":"+A68+1","v":42},"Er det laget redegjørelse i tilknytning til skattepapirene ved konserninterne overføringer (både i overdragende og overtakende selskap) der det opplyses om vederlag, inngangsverdi, deling av saldo mv, ifølge kravene i forskrift til utfylling og gjennomføring av skatteloven § 11-21-8? ",null,null,{"$f":"IF(I69<>\"\",1,0)","v":0},0,0,{"$f":"IF(SUM(E69:G69)>1,\"Velg kun et alt.\",\"\")","v":""},null,null,null,null,null,{"$f":"IF(J69<>\"\",\"Du har satt X for at forholdet ikke er avklart. Gi en nærmere foklaring i kommentarfeltet.\",\"\")","v":""}]
[null,"Kreditfradrag"]
[{"$f":"+A69+1","v":43},"Er ubenyttet kreditfradrag til fremføring fra RF-1145 del III og/eller IV grosset opp med skattesatsen og ført inn i post 140? "]
["Skattemelding (RF-1028) \n(ikke aktuell for ANS, KS mv, selskapsmelding fylles ut i stedet)"]
["Side 1"]
[{"$f":"+A71+1","v":44},"Diverse selskapsopplysninger\nEr det foretatt en nøye gjennomgang av at det er svart på alle spørsmål på side 1?",null,null,{"$f":"IF(I74<>\"\",1,0)","v":0},{"$f":"IF(J74<>\"\",1,0)","v":0},{"$f":"IF(K74<>\"\",1,0)","v":0},{"$f":"IF(SUM(E74:G74)>1,\"Velg kun et alt.\",\"\")","v":""}]
[{"$f":"+A74+1","v":45},"Foretak som omfattes av finansskatt\nEr det krysset av for at foretaket driver finansiell aktivitet som omfattes av næringshovedområdet K \"Finansierings- og forsikringsvirksomhet\" og at de er omfattet av finansskatt?"]
[{"$f":"+A75+1","v":46},"Mottatt utbytte fra utlandet\nEr det krysset av for om selskapet har mottatt utbytte i utenlandsk valuta, og er eventuelt mottatt beløp opplyst i norske kroner?"]
[{"$f":"+A76+1","v":47},"Skattefradrag for underskudd for inntektsåret 2020\nEr det krysset for Ja dersom selskapet har underskudd i 2020 og kan kreve tilbakeført skatt på positiv alminnelig inntekt for 2018 og/eller 2019?"]
[null,"Fusjon/fisjon"]
[{"$f":"+A77+1","v":48},"Hvis selskapet i inntektsåret har vært involvert i fisjon/fusjon, er det i tillegg til svar på spørsmål og avkryssing gitt opplysninger i eget vedlegg om følgende forhold, evt. kopi av fusjons-/fisjonsavtale dersom den redegjør for alle de forhold nevnt nedenfor (se rettledningen til RF-1028):"]
[{"$f":"+A79+1","v":49},"- Navn og org.nummer på de selskap som omfattes av fusjonen/fisjonen"]
[{"$f":"+A80+1","v":50},"- Tidspunktet for fusjonen/fisjonen "]
[51,"- Fordelingen av aksjene mellom tidligere og nye eiere"]
[52,"- Etter hvilke prinsipper selskapets skattemessige eiendeler/gjeld og skatteposisjoner er fordelt mellom overdragende og overtakende selskap"]
[53,"- Utbetaling av et eventuelt tilleggsvederlag til aksjonærene i det overdragende selskap. Tilleggsvederlagets form og størrelse, samt hvordan dette er fordelt mellom aksjonærene"]
[null,"Aksjonæropplysninger - skal ikke fylles ut for aksjonærer som er AS/ASA"]
[{"$f":"+A84+1","v":54},"Omfatter beløpene for lån og sikkerhetsstillelse til aksjonær også aksjonærenes nærstående? ",null,null,{"$f":"IF(I86<>\"\",1,0)","v":0},0,0,{"$f":"IF(SUM(E86:G86)>1,\"Velg kun et alt.\",\"\")","v":""},null,null,null,null,null,{"$f":"IF(J86<>\"\",\"Du har satt X for at forholdet ikke er avklart. Gi en nærmere foklaring i kommentarfeltet.\",\"\")","v":""}]
[{"$f":"+A86+1","v":55},"Er det opplyst om lånebeløp og/eller beløp for sikkerhetsstillelse per 06.10.2015?"]
[{"$f":"+A87+1","v":56},"Er det kontrollert at lånene er reelle lån? (Jfr. at skattemyndighetene har fått omgjort en rekke lån til aksjonærer til lønn eller utbytte).",null,null,0,0,0,{"$f":"IF(SUM(E88:G88)>1,\"Velg kun et alt.\",\"\")","v":""},null,null,null,null,null,""]
[{"$f":"+A88+1","v":57},"Hvis selskapet ikke har belastet renter på lånet minst tilsvarende skjermingsrenten, er det da vurdert om rentefordelen skal innberettes som lønn/utbytte?",null,null,{"$f":"IF(I89<>\"\",1,0)","v":0},0,0,{"$f":"IF(SUM(E89:G89)>1,\"Velg kun et alt.\",\"\")","v":""},null,null,null,null,null,""]
[58,"Hvis private aksjonærer har lånt inn penger til selskaper, og er godskrevet med høyere rente enn skjermingsrenten, har aksjonærene fått beskjed om skattepliktig rente etter skjermingsmodellen, og at den skal oppgis på skattemeldingen? (Dette spørsmålet har ikke direkte tilknytning til skattemeldingen, men bør vurderes med tanke på aksjonærenes skattemelding).",null,null,0,0,0,{"$f":"IF(SUM(E90:G90)>1,\"Velg kun et alt.\",\"\")","v":""},null,null,null,null,null,""]
[59,"Er det gitt opplysninger om utleie eller salg av formuesgjenstander til/fra aksjonær? ",null,null,{"$f":"IF(I91<>\"\",1,0)","v":0},{"$f":"IF(J91<>\"\",1,0)","v":0},{"$f":"IF(K91<>\"\",1,0)","v":0},{"$f":"IF(SUM(E91:G91)>1,\"Velg kun et alt.\",\"\")","v":""},null,null,null,null,null,""]
[{"$f":"+A91+1","v":60},"Spesielle transaksjoner mm \nEr det vurdert om det er foretatt spesielle transaksjoner eller lignende med aksjonærer mv. som det bør redegjøres for i vedlegg? (En har opplysningsplikt om forhold som kan ha betydning for skattelegging av aksjonærene, hvis de ikke er tilstrekkelig dekket av opplysningene og spørsmålene i skattepapirene.) ",null,null,0,0,0,"",null,null,null,null,null,{"$f":"IF(J92<>\"\",\"Du har satt X for at forholdet ikke er avklart. Gi en nærmere foklaring i kommentarfeltet.\",\"\")","v":""}]
[61,"Er transaksjoner med nærstående parter (aksjonærer, konsernselskaper m.v.) priset til markedsmessige vilkår?",null,null,0,0,0,"",null,null,null,null,null,""]
[{"$f":"+A93+1","v":62},"Er det foretatt egenkapitaltransaksjoner som kan ha skattemessige konsekvenser, og er de i så fall riktig behandlet skattemessig?",null,null,0,0,0,"",null,null,null,null,null,""]
[null,"Kontrollerte transaksjoner"]
[{"$f":"+A94+1","v":63},"Er det kontrollert om selskapet har transaksjoner til en samlet verdi på minst kr. 10.000.000 eller mellomværende på minst kr. 25.000.000 med nærstående som faller inn under  definisjonen av kontrollerte transaksjoner? ",null,null,0,0,0,"",null,null,null,null,null,""]
[64,"Hvis selskapet har ”kontrollerte transaksjoner”, er det da svart ja på spørsmålet, og er i så fall RF-1123 fylt ut?",null,null,0,0,0,"",null,null,null,null,null,""]
["Side 2"]
[{"$f":"+A97+1","v":65},"Er næringsinntekten i post 201, eventuelt underskudd i næring i post 222, i samsvar med næringsinntekten i post 0999 på side 4 i næringsoppgaven?",null,null,{"$f":"IF(I99<>\"\",1,0)","v":0},0,0,{"$f":"IF(SUM(E99:G99)>1,\"Velg kun et alt.\",\"\")","v":""},null,null,null,null,null,{"$f":"IF(J99<>\"\",\"Du har satt X for at forholdet ikke er avklart. Gi en nærmere foklaring i kommentarfeltet.\",\"\")","v":""}]
[{"$f":"+A99+1","v":66},"Er skattepliktig inntekt i post 260 i samsvar med eventuelle separate skatteberegninger og skattepliktig inntekt ifølge noten til årsregnskapet?",null,null,0,0,0,{"$f":"IF(SUM(E100:G100)>1,\"Velg kun et alt.\",\"\")","v":""},null,null,null,null,null,""]
[null,"Konsernbidrag",null,null,null,null,null,null,null,null,null,null,null,""]
[{"$f":"+A100+1","v":67},"Omfatter mottatt konsernbidrag i post 207 beløp som er ført både som inntekt, som reduksjon av investering og direkte mot egenkapitalen? ",null,null,{"$f":"IF(I102<>\"\",1,0)","v":0},0,0,{"$f":"IF(SUM(E102:G102)>1,\"Velg kun et alt.\",\"\")","v":""},null,null,null,null,null,""]
[{"$f":"+A102+1","v":68},"Er det påsett at det ikke er gitt konsernbidrag uten skattefradrag når selskapet har skattepliktig inntekt?",null,null,0,0,0,"",null,null,null,null,null,""]
[null,"Vær oppmerksom på bestemmelsen i sktl § 6-41 (3) vedr begrensning av rentefradrag mellom nærstående:\n\n\"Det gis ikke fradrag for ytterligere fremført underskudd eller konsernbidrag etter at det er foretatt avskjæring av rentefradrag. \"\n\nDette er aktuelt i tilfeller hvor alminnelig inntekt (etter fradrag for fremførbart underskudd) er positiv etter at rentefradraget er begrenset. Det kan da ikke kreves fradrag for fremførbart underskudd som ikke ville kommet til fradrag uten rentebegrensningsregelen. Tilsvarende gjelder for konsernbidrag, jf sktl § 10-2 om at konsernbidrag må ligge innenfor alminnelig inntekt. ",null,null,{"$f":"IF(I104<>\"\",1,0)","v":0}]
[{"$f":"+A103+1","v":69},"Er det påsett at det ikke er gitt konsernbidrag for å redusere skattepliktig inntekt som har oppstått som følge av rentefradragsbegrensningsreglene?"]
[{"$f":"+A105+1","v":70},"Omfatter ytet konsernbidrag i post 252 både beløp som er ført som investering og som disponering av resultatet? ",null,null,0,0,0,"",null,null,null,null,null,""]
[{"$f":"+A106+1","v":71},"Er RF-1206 fylt ut når det er avgitt eller mottatt konsernbidrag (med eller uten skattefradrag)? ",null,null,0,0,0,"",null,null,null,null,null,""]
[{"$f":"+A107+1","v":72},"Hvis det ikke er klar sammenheng mellom postene, den regnskapsmessige behandlingen og RF-1206, er sammenhengen da forklart/avstemt i arbeidspapir? ",null,null,0,0,0,"",null,null,null,null,null,""]
[null,"Andre fradrag og justeringer, framførbart underskudd, skattefradrag m.v."]
[{"$f":"+A108+1","v":73},"Er det gjort fradrag i post 232 for eventuelt framførbart underskudd? "]
[{"$f":"+A110+1","v":74},"Hvis det kreves fradrag for underskudd til framføring, er det vurdert om retten til fradrag kan ha falt bort, fordi salg av selskapet, fusjon eller lignende i det alt vesentlige er skattemessig motivert? ",null,null,{"$f":"IF(I111<>\"\",1,0)","v":0},0,0,"",null,null,null,null,null,""]
[{"$f":"+A111+1","v":75},"Er det påsett at det ikke er krevd fradrag for underskudd til framføring for å redusere skattepliktig inntekt som har oppstått som følge av rentefradragsbegrensningsreglene? \n(se rettledning i avsnittet Konsernbidrag ovenfor)"]
[{"$f":"+A112+1","v":76},"Er justering rett overført fra RF-1315 Begrensning av rentefradrag post 560?"]
[{"$f":"+A113+1","v":77},"Er det sendt med redegjørelse i vedlegg hvis det er krevd skattemessig fradrag for en post, avsetning eller lignende, og det er tvil om fradragsretten?",null,null,0,0,0,"",null,null,null,null,null,""]
[null,"Framført underskudd"]
[{"$f":"+A114+1","v":78},"Stemmer post 280 i oversikt over framført underskudd med skatteoppgjøret for forrige år?",null,null,0,0,0,"",null,null,null,null,null,""]
[79,"Er post 281-283 og 287 riktig fylt ut ved gjeldsforhandling eller underhåndsakkord i år?",null,null,{"$f":"IF(I117<>\"\",1,0)","v":0},{"$f":"IF(J117<>\"\",1,0)","v":0},{"$f":"IF(K117<>\"\",1,0)","v":0},"",null,null,null,null,null,""]
[80,"Er eventuelt underskudd i år tatt inn i post 286?",null,null,{"$f":"IF(I118<>\"\",1,0)","v":0},0,0,"",null,null,null,null,null,""]
["Side 4",null,null,null,null,null,null,null,null,null,null,null,null,{"$f":"IF(J119<>\"\",\"Du har satt X for at forholdet ikke er avklart. Gi en nærmere foklaring i kommentarfeltet.\",\"\")","v":""}]
[null,"ASA/AS som er børsnotert, og/eller heleid datterselskap av børsnotert selskap trenger ikke fylle ut oppstillingen over formue",null,null,null,null,null,null,null,null,null,null,null,{"$f":"IF(J120<>\"\",\"Du har satt X for at forholdet ikke er avklart. Gi en nærmere foklaring i kommentarfeltet.\",\"\")","v":""}]
[null,"Næringseiendom \nFormuesverdi av næringseiendom beregnes i eget skjema RF-1098 ”Formue av  næringseiendom”.  Dette omfatter all næringseiendom i Norge, samt utleid næringseiendom i utlandet. Formuesverdi av næringseiendom i utlandet som ikke leies ut skal ikke beregnes i dette skjemaet.\nBoliger som leies ut i næringsvirksomhet skal verdsettes etter egne regler.\nVerdsettelsesreglene gjelder ikke for næringseiendom knyttet til kraftverk, jord- og skogbrukseiendommer.   ",null,null,null,null,null,null,null,null,null,null,null,{"$f":"IF(J121<>\"\",\"Du har satt X for at forholdet ikke er avklart. Gi en nærmere foklaring i kommentarfeltet.\",\"\")","v":""}]
[{"$f":"+A118+1","v":81},"Er beregnet formuesverdi av næringseiendom fra RF-1098 post 288 høyre felt/290 høyre felt riktig overført til skattemeldingen post 401A (norske eiendommer) og/eller 401E (utenlandske utleide eiendommer)?\n\nMerk at selskaper og innretninger som er formuesskattepliktige skal overføre 100 % av markedsverdien hentet fra post 290 venstre felt.",null,null,{"$f":"IF(I122<>\"\",1,0)","v":0},{"$f":"IF(J122<>\"\",1,0)","v":0},{"$f":"IF(K122<>\"\",1,0)","v":0},{"$f":"IF(SUM(E122:G122)>1,\"Velg kun et alt.\",\"\")","v":""},null,null,null,null,null,{"$f":"IF(J122<>\"\",\"Du har satt X for at forholdet ikke er avklart. Gi en nærmere foklaring i kommentarfeltet.\",\"\")","v":""}]
[null,"Annen fast eiendom\nFormuesverdien for kraftverk, skogbrukseiendom og jordbrukseiendom  fastsettes etter egne regler.",null,null,null,null,null,null,null,null,null,null,null,{"$f":"IF(J123<>\"\",\"Du har satt X for at forholdet ikke er avklart. Gi en nærmere foklaring i kommentarfeltet.\",\"\")","v":""}]
[{"$f":"+A122+1","v":82},"Er det påsett at rente- og valutaswapavtaler er medtatt til nettoverdien av de gjenstående kontantstrømmene:\n- Netto positive gjenstående kontantstrømmer: verdien fastsettes til det som swapavtalen kan realiseres/avsluttes for ved årsskiftet\n- Netto negative gjenstående kontantstrømmer: forpliktelsen verdsettes til det vedkommende ved årsskiftet måtte betalt for å avslutte/realisere avtalen."]
[{"$f":"+A124+1","v":83},"Er det spesielt påsett at følgende eiendeler ikke er tatt med som skattemessig formue: \n- Goodwill \n- Tidsbegrensede bruksrettigheter (< 99 år), inkl. aktiverte innredningsarbeider utenfor saldosystemet \n- Patent-, forfatter- og kunstnerrettigheter på opphavsmannens hånd (omfatter programvare, mønsterrett, varemerkerett, firmarett) \n- Balanseførte leie-/leasingavtaler \n- Netto pensjonsmidler \n- Utsatt skattefordel \n- Aksjeutbytte fra DS/TS som er inntektsført i avsetningsåret \n- Forskuddsbetalte renter \n- Krav på konsernbidrag for regnskapsåret\n- Til gode skatt (inkl til gode skatt som følge av SkatteFUNN).",null,null,0,0,0,"",null,null,null,null,null,""]
[{"$f":"+A125+1","v":84},"Er det brukt riktig formuesverdi for eiendeler? Jfr. blant annet følgende unntaksregler fra hovedregelen om at skattemessig verdi er formuesverdien: \n- eventuell omsetningsverdi av forsknings- og utviklingsprosjekter\n- formuesverdier (ikke skattemessige verdier, og ikke «skattetakster» for eiendomsskatt) for fast eiendom \n- formuessverdier for skip \n- regnskapsmessig verdi for fordringer \n- verdi etter løpende avregning for tilvirkningskontrakter (selv om fullført kontrakt er brukt regnskapsmessig), anses som fordringer\n- kursverdi/antatt salgsverdi for verdipapirer \n- aksjer i norske selskaper tas med til formuesverdi pr 31.12. i regnskapsåret i post 461? (I praksis kan en normalt bruke fjorårets verdi for mindre investeringer, men for datterselskap mv må årets verdi normalt brukes) \n- markedsverdi for utenlandske aksjer, men verdsettelse på samme måte som norske aksjer i norske selskaper når det ikke finnes markedsverdi for aksjene.",null,null,0,0,0,"",null,null,null,null,null,""]
[{"$f":"+A126+1","v":85},"Er følgende regnskapsmessige gjeldsposter ikke tatt med som skattemessig gjeld \n- betingede forpliktelser, selv om de er regnskapsført som gjeld, for eksempel avsetninger til erstatningsansvar, regressansvar, gjenkjøpsansvar, oppryddingskostnader, restruktureringskostnader osv (normalt tilsvarende avsetninger som en ikke har kunne kreve fradrag for ved inntektsfastsettelsen) NB! Det gis likevel fradrag for avsetning til garantiansvar \n- utsatt skatt \n- netto pensjonsforpliktelser \n- påløpte renter \n- beregnet skatt for inntektsåret \n- avsatt utbytte \n- avsatt konsernbidrag for i år \n- leasinggjeld ved balanseførte leieavtaler.",null,null,0,0,0,"",null,null,null,null,null,""]
["Side 5",null,null,null,null,null,null,null,null,null,null,null,null,{"$f":"IF(J128<>\"\",\"Du har satt X for at forholdet ikke er avklart. Gi en nærmere foklaring i kommentarfeltet.\",\"\")","v":""}]
[{"$f":"+A127+1","v":86},"Er det foretatt en avstemming mellom regnskapsmessig egenkapital og skattemessig nettoformue? ",null,null,0,0,0,"",null,null,null,null,null,""]
[{"$f":"+A129+1","v":87},"Er egne aksjer trukket fra i totalt antall aksjer ved beregning av skattemessig formuesverdi pr aksje, og er antall aksjer i samsvar med aksjonærregisteroppgaven? ",null,null,0,0,0,"",null,null,null,null,null,""]
[null,"Formuesskattepliktige selskaper og innretninger "]
[{"$f":"+A130+1","v":88},"Er det kontrollert at verdsettingsrabatt på 25% for næringseiendommer vurdert etter hhv utleieverdi og markedsverdi er korrekt lagt inn i post 506 a1 og a2?"]
[{"$f":"+A132+1","v":89},"Er det kontrollert at verdsettingsrabatt på 10% for næringseiendommer vurdert etter markedsverdi er korrekt lagt inn i post 506 a2?"]
[{"$f":"+A133+1","v":90},"Er det lagt inn riktig verdsettelsesrabatt på følgende eiendeler:\n-Boliger og flerboligbygninger - 10%\n- Jord- og skogbrukseiendom - 25%\n-Aksjer og aksjedel av andel i verdipapirfond - 25%\n-Andeler i selskap med deltakerfastsetting - 25%\n-Driftsmidler unntatt faste eiendommer - 25%"]
[{"$f":"+A134+1","v":91},"Dersom foretaket har eiendeler med verdsettingsrabatt i post 506, er det påsett at reduksjon av gjelden på grunn av verdsettingsrabatten er korrekt beregnet:\n- Gjeld før reduksjon er korrekt overført fra post 516 (446)\n- Verdsettingsrabatt er korrekt overført fra post 506f\n- Bruttoformue før verdsettingsrabatt er korrekt overført fra post 505\n-Evt. skattefri formue i utlandet er lagt til i beregningen"]
["Formuesverdi av næringseiendom (RF-1098)",null,null,null,null,null,null,null,null,null,null,null,null,{"$f":"IF(J136<>\"\",\"Du har satt X for at forholdet ikke er avklart. Gi en nærmere foklaring i kommentarfeltet.\",\"\")","v":""}]
[null,"Skjemaet skal ikke leveres av børsnoterte selskap, eller selskap som i sin helhet er direkte eller indirekte eid av et børsnotert selskap, eller av personer/institusjoner som er fritatt for skatteplikt etter skatteloven § 2-30. ",null,null,null,null,null,null,null,null,null,null,null,""]
[null,"RF-1098 skal leveres for alle norske eiendommer, også de som ikke er utleid.  Boliger som leies ut i næringsvirksomhet skal derimot ikke tas med i dette skjemaet."]
[null,"Det skal leveres et skjema pr eiendom, som fylles ut som følger:",null,null,null,null,null,null,null,null,null,null,null,""]
[null,"Norsk eiendom:"]
[null,"Utleid næringseiendom - del I, II og IV"]
[null,"Ikke utleid næringseiendom - del I, III og IV"]
[null,"Utenlandsk eiendom:"]
[null,"Utleid næringseiendom - del I, II og IV (med unntak av post 116 og 117)"]
[null,"Ikke utleid næringseiendom - skjemaet skal ikke benyttes"]
[{"$f":"+A135+1","v":92},"Er det kontrollert om den beregnede utleieverdien er så høy at det kan være aktuelt å kreve reduksjon pga \"sikkerhetsventilen\" (78 % av antatt markedsverdi)?",null,null,{"$f":"IF(I146<>\"\",1,0)","v":0},{"$f":"IF(J146<>\"\",1,0)","v":0},{"$f":"IF(K146<>\"\",1,0)","v":0},{"$f":"IF(SUM(E146:G146)>1,\"Velg kun et alt.\",\"\")","v":""}]
["Oppgave over avgitt og mottatt konsernbidrag (RF-1206)",null,null,null,null,null,null,null,null,null,null,null,null,""]
[{"$f":"+A146+1","v":93},"Er skjemaet fylt ut hvis det er avgitt konsernbidrag med eller uten skattefradrag?",null,null,{"$f":"IF(I148<>\"\",1,0)","v":0},{"$f":"IF(J148<>\"\",1,0)","v":0},{"$f":"IF(K148<>\"\",1,0)","v":0},{"$f":"IF(SUM(E148:G148)>1,\"Velg kun et alt.\",\"\")","v":""},null,null,null,null,null,""]
["Avstemming av egenkapital (RF-1052)",null,null,null,null,null,null,null,null,null,null,null,null,""]
[{"$f":"+A148+1","v":94},"Avstemming av egenkapital \nStemmer egenkapital pr 31.12 i fjor (post 100) og i år (post 150) med egenkapital i næringsoppgaven (post 9450)? ",null,null,{"$f":"IF(I150<>\"\",1,0)","v":0},{"$f":"IF(J150<>\"\",1,0)","v":0},{"$f":"IF(K150<>\"\",1,0)","v":0},{"$f":"IF(SUM(E150:G150)>1,\"Velg kun et alt.\",\"\")","v":""},null,null,null,null,null,""]
[{"$f":"+A150+1","v":95},"Er nettovirkningen av prinsippendringer og korreksjoner med fradrag for skatt ført inn i post 100B, og spesifisert på side 2?",null,null,{"$f":"IF(I151<>\"\",1,0)","v":0},{"$f":"IF(J151<>\"\",1,0)","v":0},{"$f":"IF(K151<>\"\",1,0)","v":0},{"$f":"IF(SUM(E151:G151)>1,\"Velg kun et alt.\",\"\")","v":""},null,null,null,null,null,{"$f":"IF(J151<>\"\",\"Du har satt X for at forholdet ikke er avklart. Gi en nærmere foklaring i kommentarfeltet.\",\"\")","v":""}]
[{"$f":"+A151+1","v":96},"Er bare mottatt og avgitt konsernbidrag (etter skatt) som er ført mot egenkapitalen tatt med i post 103 og 104? ",null,null,0,0,0,"",null,null,null,null,null,""]
["Saldoskjema (RF-1084)",null,null,null,null,0,null,null,null,null,null,null,null,{"$f":"IF(J153<>\"\",\"Du har satt X for at forholdet ikke er avklart. Gi en nærmere foklaring i kommentarfeltet.\",\"\")","v":""}]
[{"$f":"+A152+1","v":97},"Ved anskaffelser/påkostinger i saldogruppe d, er det kontrollert om anskaffelsen kan tas med i grunnlaget for 10% startavskrivning for 2020?",null,null,{"$f":"IF(I154<>\"\",1,0)","v":0},0,{"$f":"IF(K154<>\"\",1,0)","v":0},{"$f":"IF(SUM(E154:G154)>1,\"Velg kun et alt.\",\"\")","v":""}]
[{"$f":"+A154+1","v":98},"Er det bare ført inn ett driftsmiddel pr saldo i saldogruppe e-i? ",null,null,{"$f":"IF(I155<>\"\",1,0)","v":0},0,0,{"$f":"IF(SUM(E155:G155)>1,\"Velg kun et alt.\",\"\")","v":""},null,null,null,null,null,""]
[{"$f":"+A155+1","v":99},"Er driftsmidler i saldogruppe j – faste tekniske installasjoner - fordelt med et saldoskjema pr bygning? ",null,null,0,0,0,{"$f":"IF(SUM(E156:G156)>1,\"Velg kun et alt.\",\"\")","v":""},null,null,null,null,null,""]
[{"$f":"+A156+1","v":100},"Er avskrivninger stoppet ved «nedre grense for avskrivninger» for forretningsbygg anskaffet før 01.01.1984? ",null,null,0,0,0,{"$f":"IF(SUM(E157:G157)>1,\"Velg kun et alt.\",\"\")","v":""},null,null,null,null,null,""]
["Gevinst- og tapskonto (RF-1219) ",null,null,null,null,null,null,null,null,null,null,null,null,""]
[{"$f":"+A157+1","v":101},"Er årets tilgang og avgang korrekt overført fra saldoskjemaer og gevinst-/tapsberegninger for driftsmidler (inkludert immaterielle eiendeler) som ikke inngår i saldosystemet? ",null,null,{"$f":"IF(I159<>\"\",1,0)","v":0},0,0,{"$f":"IF(SUM(E159:G159)>1,\"Velg kun et alt.\",\"\")","v":""},null,null,null,null,null,""]
["Gevinst, tap, utbytte på aksjer og andre finansielle produkter (RF-1359)"]
[{"$f":"+A159+1","v":102},"Dersom selskapet har skattepliktige gevister eller fradragsberettigede tap på aksjer eller andre finansielle produkter, har mottatt skattepliktig utbytte eller renter fra obligasjoner og renteinntektsandel fra verdipapirfondsandeler - er skjemaet korrekt fylt ut og vedlagt skattemeldingen?"]
["Fradrag i skatt for forskning og utvikling (RF-1053) ",null,null,null,null,null,null,null,null,null,null,null,null,""]
[{"$f":"+A161+1","v":103},"Er skjemaet riktig fylt ut? ",null,null,{"$f":"IF(I163<>\"\",1,0)","v":0},{"$f":"IF(J163<>\"\",1,0)","v":0},{"$f":"IF(K163<>\"\",1,0)","v":0},{"$f":"IF(SUM(E163:G163)>1,\"Velg kun et alt.\",\"\")","v":""},null,null,null,null,null,""]
["Kreditfradrag (RF-1145) ",null,null,null,null,null,null,null,null,null,null,null,null,""]
[{"$f":"+A163+1","v":104},"Ligger nødvendig dokumentasjon med som vedlegg? ",null,null,{"$f":"IF(I165<>\"\",1,0)","v":0},0,0,{"$f":"IF(SUM(E165:G165)>1,\"Velg kun et alt.\",\"\")","v":""},null,null,null,null,null,""]
[null,"Kreditfradrag etter sktl § 16-31"]
[{"$f":"+A165+1","v":105},"Stemmer post 10.1 ubenyttet framført kreditfradrag med med fjorårets post 10.5? ",null,null,{"$f":"IF(I167<>\"\",1,0)","v":0},{"$f":"IF(J167<>\"\",1,0)","v":0},{"$f":"IF(K167<>\"\",1,0)","v":0},{"$f":"IF(SUM(E167:G167)>1,\"Velg kun et alt.\",\"\")","v":""},null,null,null,null,null,{"$f":"IF(J167<>\"\",\"Du har satt X for at forholdet ikke er avklart. Gi en nærmere foklaring i kommentarfeltet.\",\"\")","v":""}]
[{"$f":"+A167+1","v":106},"Er det gjort fradrag for andel av underliggende selskapsskatt for i år i post 10.2?",null,null,0,0,0,"",null,null,null,null,null,""]
[107,"Er det passet på å kreve anvendelse av skattefradrag i år, og er beløpet i så fall ført inn i post 10.4?",null,null,0,0,0,"",null,null,null,null,null,""]
["Begrensning av rentefradrag mellom nærstående (RF-1315)"]
[{"$f":"+A169+1","v":108},"Er skjemaet fylt ut dersom selskapet kommer inn under en av følgende kriterier:\n- Selskap i konsern\n- Selskap utenfor konsern som enten\n  - har netto rentekostnader som overstiger kr 5.000.000\n  - fremfører rentekostnader som er avskåret fra tidligere år"]
[null,"Del A - opplysninger om selskapet og eventuell konserntilknytning"]
[null,"Selskaper i konsern"]
[{"$f":"+A171+1","v":109},"Dersom selskapet benytter seg av en av unntaksreglene, er det påsett at selskapet også har fylt ut RF-1509 Unntak for rentebegrensning for selskap mv. i konsern?"]
[null,"Del B II Beregning av netto rentekostnader til nærstående mv. "]
[{"$f":"+A174+1","v":110},"Er rentekostnader til andre enn nærstående tatt med dersom nærstående har stilt sikkerhet for gjelden, eller nærstående har fordring på långiveren/kreditoren og fordringen har sammenheng med gjelden (\"back-to-back\")?"]
[{"$f":"+A176+1","v":111},"Dersom selskapet har kostnader til garantiprovisjon, er det kontrollert om denne provisjonen skal tas med i beregningen av rentekostnad til nærstående?"]
[null,"Del B VI Framføring av rentefradrag som er avskåret "]
[{"$f":"+A177+1","v":112},"Er det påsett at begrenset rentefradrag til framføring er rett overført til RF-1217 Forskjellsskjema post 157?"]
["Opplysninger om bruk av bil (RF-1125) ",null,null,null,null,null,null,null,null,null,null,null,null,""]
[{"$f":"+A179+1","v":113},"Er skjemaet inkludert i likningspapirene dersom dette er relevant? \nNB! Skjemaet skal ikke leveres inn for arbeidsgivers bil som brukes av arbeidstaker når standard fordel er innberettet på lønns- og trekkoppgave. ",null,null,{"$f":"IF(I181<>\"\",1,0)","v":0},{"$f":"IF(J181<>\"\",1,0)","v":0},{"$f":"IF(K181<>\"\",1,0)","v":0},{"$f":"IF(SUM(E181:G181)>1,\"Velg kun et alt.\",\"\")","v":""},null,null,null,null,null,""]
["Lønns- og pensjonskostnader (RF-1022) ",null,null,null,null,null,null,null,null,null,null,null,null,{"$f":"IF(J182<>\"\",\"Du har satt X for at forholdet ikke er avklart. Gi en nærmere foklaring i kommentarfeltet.\",\"\")","v":""}]
[{"$f":"+A181+1","v":114},"Er post 120 i RF-1022 avstemt mot faktisk innberettet oppgavepliktige og arbeidsgiveravgiftspliktige ytelser (hentes fra A07 Avstemmingsinformasjon fra Altinn)?",null,null,{"$f":"IF(I183<>\"\",1,0)","v":0},{"$f":"IF(J183<>\"\",1,0)","v":0},{"$f":"IF(K183<>\"\",1,0)","v":0},{"$f":"IF(SUM(E183:G183)>1,\"Velg kun et alt.\",\"\")","v":""},null,null,null,null,null,""]
["Deltakermelding ANS, DA, KS osv (RF-1221)"]
[{"$f":"+A183+1","v":115},"Dersom selskapet er deltaker i selskap med deltakerfastsetting, er opplysningene fra selskapets deltakermelding RF-1233 rett overført til deltakerens melding RF-1221?",null,null,{"$f":"IF(I185<>\"\",1,0)","v":0},{"$f":"IF(J185<>\"\",1,0)","v":0},{"$f":"IF(K185<>\"\",1,0)","v":0},{"$f":"IF(SUM(E185:G185)>1,\"Velg kun et alt.\",\"\")","v":""}]
[{"$f":"+A185+1","v":116},"Har deltakeren gått igjennom opplysningene i RF-1233 og sagt seg enig i disse opplysningene?"]
["Overnattings- og serveringssted (RF-1122)"]
[{"$f":"+A186+1","v":117},"For foretak som driver overnattings- eller serveringssted som serverer øl, vin eller brennevin, er RF-1122 fylt ut for hvert sted?",null,null,{"$f":"IF(I188<>\"\",1,0)","v":0},{"$f":"IF(J188<>\"\",1,0)","v":0},{"$f":"IF(K188<>\"\",1,0)","v":0},{"$f":"IF(SUM(E188:G188)>1,\"Velg kun et alt.\",\"\")","v":""}]
["Er alle aktuelle skattepapirer utarbeidet? ",null,null,null,null,null,null,null,null,null,null,null,null,""]
[{"$f":"+A188+1","v":118},"Er eventuelle andre meldinger som kreves av skattemyndighetene (for eksempel i spesielle bransjer) utarbeidet og riktig fylt ut? ",null,null,{"$f":"IF(I190<>\"\",1,0)","v":0},0,0,{"$f":"IF(SUM(E190:G190)>1,\"Velg kun et alt.\",\"\")","v":""},null,null,null,null,null,""]
[{"$f":"+A190+1","v":119},"Er alle skjemaer som ble sendt inn i fjor også sendt inn i år? Hvis ikke, angi hvilket skjema som ikke er sendt inn i år og årsaken. ",null,null,0,0,0,{"$f":"IF(SUM(E191:G191)>1,\"Velg kun et alt.\",\"\")","v":""},null,null,null,null,null,""]
["Skattepapirer for ANS/KS MV  ",null,null,null,null,null,null,null,null,null,null,null,null,""]
["Selskapsmelding for ANS, KS mv (RF-1215) ",null,null,null,null,null,null,null,null,null,null,null,null,{"$f":"IF(J193<>\"\",\"Du har satt X for at forholdet ikke er avklart. Gi en nærmere foklaring i kommentarfeltet.\",\"\")","v":""}]
[{"$f":"+A191+1","v":120},"Side 1\nEr overskudd/underskudd i post 1105 riktig overført fra næringsoppgaven?",null,null,{"$f":"IF(I194<>\"\",1,0)","v":0},0,0,{"$f":"IF(SUM(E194:G194)>1,\"Velg kun et alt.\",\"\")","v":""},null,null,null,null,null,""]
[{"$f":"+A194+1","v":121},"Er justering rett overført fra RF-1315 Begrensning av rentefradrag mellom nærstående post 640?"]
[122,"Side 2\nSkattemessig verdi \nStemmer skattemessig egenkapital med egenkapital ifølge næringsoppgaven korrigert for midlertidige forskjeller pr 31.12? Hvis ikke, forklar årsaken. ",null,null,0,0,0,{"$f":"IF(SUM(E196:G196)>1,\"Velg kun et alt.\",\"\")","v":""},null,null,null,null,null,""]
[123,"Formuesverdi \nEr det brukt formuesverdier i stedet for skattemessige verdier i kolonne II der det er aktuelt (for eksempel for aksjer, bygninger, bygg under oppføring og skip)? Jf spørsmålene til side 4 og 5 på skattemeldingen til AS ovenfor.",null,null,0,0,0,{"$f":"IF(SUM(E197:G197)>1,\"Velg kun et alt.\",\"\")","v":""},null,null,null,null,null,""]
[124,"Er det påsett at formuesverdi på næringseiendom er rett overført fra RF-1098 post 288/290?",null,null,{"$f":"IF(I198<>\"\",1,0)","v":0},{"$f":"IF(J198<>\"\",1,0)","v":0},{"$f":"IF(K198<>\"\",1,0)","v":0},{"$f":"IF(SUM(E198:G198)>1,\"Velg kun et alt.\",\"\")","v":""}]
[125,"Er poster som ikke er skattemessig formue/gjeld holdt utenfor beregningen av formuesverdi? Jf spørsmålene til side 4 på skattemeldingen for AS ovenfor.",null,null,0,0,0,{"$f":"IF(SUM(E199:G199)>1,\"Velg kun et alt.\",\"\")","v":""},null,null,null,null,null,""]
[126,"Side 3\nEr summene i samsvar med side 2 og næringsoppgaven?",null,null,0,0,0,{"$f":"IF(SUM(E200:G200)>1,\"Velg kun et alt.\",\"\")","v":""},null,null,null,null,null,""]
["Melding over deltakernes formue og inntekt (RF-1233) ",null,null,null,null,null,null,null,null,null,null,null,null,""]
[{"$f":"+A200+1","v":127},"Er det utarbeidet ett skjema pr deltaker, også for deltakere som har solgt sin andel i året, slik at sum formue og inntekt ifølge deltakermeldingene stemmer med selskapsmeldingen? ",null,null,{"$f":"IF(I202<>\"\",1,0)","v":0},0,0,{"$f":"IF(SUM(E202:G202)>1,\"Velg kun et alt.\",\"\")","v":""},null,null,null,null,null,{"$f":"IF(J202<>\"\",\"Du har satt X for at forholdet ikke er avklart. Gi en nærmere foklaring i kommentarfeltet.\",\"\")","v":""}]
[{"$f":"+A202+1","v":128},"Er skjemaet for øvrig riktig fylt ut, og i samsvar med opplysningene på selskapsmeldingen side 3? ",null,null,0,0,0,{"$f":"IF(SUM(E203:G203)>1,\"Velg kun et alt.\",\"\")","v":""},null,null,null,null,null,""]
["Avstemming av egenkapital (RF-1052) ",null,null,null,null,null,null,null,null,null,null,null,null,""]
[{"$f":"+A203+1","v":129},"Stemmer egenkapital pr 31.12 i fjor (post 300) og i år (post 350) med egenkapital i næringsoppgaven (post 9450)? ",null,null,{"$f":"IF(I205<>\"\",1,0)","v":0},0,0,{"$f":"IF(SUM(E205:G205)>1,\"Velg kun et alt.\",\"\")","v":""},null,null,null,null,null,""]
[{"$f":"+A205+1","v":130},"Er for øvrig alle aktuelle poster riktig fylt ut? "]
[{"$f":"+A206+1","v":131},"Spesifikasjon av privatkonto \nEr alle aktuelle poster riktig fylt ut? ",null,null,0,0,0,null,null,null,null,null,null,""]
[null,null,null,null,null,0,null,null,null,null,null,null,null,""]

{"sheet":"Ikke besvart","index":2,"n_rows":132,"n_cols":9,"rows_kept":132,"cut":false,"hidden":false,"merged":[]}
[null,null,null,null,{"$f":"COUNTIF(E2:E199,\"=0\")","v":131},"Ikke besvart",{"$f":"'Sjekkliste for utfylling'!B2","v":0},{"$f":"'Sjekkliste for utfylling'!B3","v":2020},"Kommentarer"]
[{"$f":"'Sjekkliste for utfylling'!A13","v":1},{"$f":"IF('Sjekkliste for utfylling'!I13<>\"\",1,0)","v":0},{"$f":"IF('Sjekkliste for utfylling'!J13<>\"\",1,0)","v":0},{"$f":"IF('Sjekkliste for utfylling'!K13<>\"\",1,0)","v":0},{"$f":"SUM(B2:D2)","v":0},{"$f":"IF($E2=0,'Sjekkliste for utfylling'!A13,\"\")","v":1},{"$f":"IF($E2=0,'Sjekkliste for utfylling'!B13,\"\")","v":"Finnes det en oppstilling (som for eksempel kan være noten til regnskapet eller skatteberegningsmodellen) som viser sammenhengen mellom resultat før skatt og skattekostnaden?"},null,{"$f":"IF($E2=0,'Sjekkliste for utfylling'!L13,\"\")","v":0}]
[{"$f":"'Sjekkliste for utfylling'!A16","v":2},{"$f":"IF('Sjekkliste for utfylling'!I16<>\"\",1,0)","v":0},{"$f":"IF('Sjekkliste for utfylling'!J16<>\"\",1,0)","v":0},{"$f":"IF('Sjekkliste for utfylling'!K16<>\"\",1,0)","v":0},0,{"$f":"IF($E3=0,'Sjekkliste for utfylling'!A16,\"\")","v":2},{"$f":"IF($E3=0,'Sjekkliste for utfylling'!B16,\"\")","v":"Er regnskapsmessig og skattemessig verdi av varelager avstemt mot arbeidspapir for varelager? "},null,{"$f":"IF($E3=0,'Sjekkliste for utfylling'!L16,\"\")","v":0}]
[{"$f":"'Sjekkliste for utfylling'!A17","v":3},{"$f":"IF('Sjekkliste for utfylling'!I17<>\"\",1,0)","v":0},{"$f":"IF('Sjekkliste for utfylling'!J17<>\"\",1,0)","v":0},{"$f":"IF('Sjekkliste for utfylling'!K17<>\"\",1,0)","v":0},0,{"$f":"IF($E4=0,'Sjekkliste for utfylling'!A17,\"\")","v":3},{"$f":"IF($E4=0,'Sjekkliste for utfylling'!B17,\"\")","v":"Er utregning av skattemessig verdi på fordringer kontrollert og funnet i orden? "},null,{"$f":"IF($E4=0,'Sjekkliste for utfylling'!L17,\"\")","v":0}]
[{"$f":"'Sjekkliste for utfylling'!A18","v":4},{"$f":"IF('Sjekkliste for utfylling'!I18<>\"\",1,0)","v":0},{"$f":"IF('Sjekkliste for utfylling'!J18<>\"\",1,0)","v":0},{"$f":"IF('Sjekkliste for utfylling'!K18<>\"\",1,0)","v":0},0,{"$f":"IF($E5=0,'Sjekkliste for utfylling'!A18,\"\")","v":4},{"$f":"IF($E5=0,'Sjekkliste for utfylling'!B18,\"\")","v":"Er det spesielt kontrollert at \n- konstaterte tap på kundefordringer i post 0420 ikke er lavere enn 0, og at \n- konstaterte tap på kundefordringer i post 0420 ikke inneholder endring i regnskapsmessig tapsavsetning?"},null,{"$f":"IF($E5=0,'Sjekkliste for utfylling'!L18,\"\")","v":0}]
[{"$f":"'Sjekkliste for utfylling'!A20","v":5},{"$f":"IF('Sjekkliste for utfylling'!I20<>\"\",1,0)","v":0},{"$f":"IF('Sjekkliste for utfylling'!J20<>\"\",1,0)","v":0},{"$f":"IF('Sjekkliste for utfylling'!K20<>\"\",1,0)","v":0},0,{"$f":"IF($E6=0,'Sjekkliste for utfylling'!A20,\"\")","v":5},{"$f":"IF($E6=0,'Sjekkliste for utfylling'!B20,\"\")","v":"Er resultatregnskap og balanse «avskrift» av årsregnskapet, bare med økt spesifikasjon? "},null,{"$f":"IF($E6=0,'Sjekkliste for utfylling'!L20,\"\")","v":0}]
[{"$f":"'Sjekkliste for utfylling'!A21","v":6},{"$f":"IF('Sjekkliste for utfylling'!I21<>\"\",1,0)","v":0},{"$f":"IF('Sjekkliste for utfylling'!J21<>\"\",1,0)","v":0},{"$f":"IF('Sjekkliste for utfylling'!K21<>\"\",1,0)","v":0},0,{"$f":"IF($E7=0,'Sjekkliste for utfylling'!A21,\"\")","v":6},{"$f":"IF($E7=0,'Sjekkliste for utfylling'!B21,\"\")","v":"Er følgende i samsvar med offisielt regnskap:\n• sum driftsinntekter (post 9000) \n• driftsresultat (post 9050) \n• ordinært resultat (post 9150)  "},null,{"$f":"IF($E7=0,'Sjekkliste for utfylling'!L21,\"\")","v":0}]
[{"$f":"'Sjekkliste for utfylling'!A24","v":7},{"$f":"IF('Sjekkliste for utfylling'!I24<>\"\",1,0)","v":0},{"$f":"IF('Sjekkliste for utfylling'!J24<>\"\",1,0)","v":0},{"$f":"IF('Sjekkliste for utfylling'!K24<>\"\",1,0)","v":0},0,{"$f":"IF($E8=0,'Sjekkliste for utfylling'!A24,\"\")","v":7},{"$f":"IF($E8=0,'Sjekkliste for utfylling'!B24,\"\")","v":"Er det konsistens med årsregnskapet ved fusjon og fisjon? "},null,{"$f":"IF($E8=0,'Sjekkliste for utfylling'!L24,\"\")","v":0}]
[{"$f":"'Sjekkliste for utfylling'!A25","v":8},{"$f":"IF('Sjekkliste for utfylling'!I25<>\"\",1,0)","v":0},{"$f":"IF('Sjekkliste for utfylling'!J25<>\"\",1,0)","v":0},{"$f":"IF('Sjekkliste for utfylling'!K25<>\"\",1,0)","v":0},0,{"$f":"IF($E9=0,'Sjekkliste for utfylling'!A25,\"\")","v":8},{"$f":"IF($E9=0,'Sjekkliste for utfylling'!B25,\"\")","v":"Hvis sammenligningstallene er endret i forhold til fjoråret, er det i så fall vedlagt forklaring i vedlegg til skattepapirene? "},null,{"$f":"IF($E9=0,'Sjekkliste for utfylling'!L25,\"\")","v":0}]
[{"$f":"'Sjekkliste for utfylling'!A27","v":9},{"$f":"IF('Sjekkliste for utfylling'!I27<>\"\",1,0)","v":0},{"$f":"IF('Sjekkliste for utfylling'!J27<>\"\",1,0)","v":0},{"$f":"IF('Sjekkliste for utfylling'!K27<>\"\",1,0)","v":0},0,{"$f":"IF($E10=0,'Sjekkliste for utfylling'!A27,\"\")","v":9},{"$f":"IF($E10=0,'Sjekkliste for utfylling'!B27,\"\")","v":"Permanente forskjeller \nEr permanente forskjeller avstemt mot arbeidspapir for skatteberegning? "},null,{"$f":"IF($E10=0,'Sjekkliste for utfylling'!L27,\"\")","v":0}]
[{"$f":"'Sjekkliste for utfylling'!A28","v":10},{"$f":"IF('Sjekkliste for utfylling'!I28<>\"\",1,0)","v":0},{"$f":"IF('Sjekkliste for utfylling'!J28<>\"\",1,0)","v":0},{"$f":"IF('Sjekkliste for utfylling'!K28<>\"\",1,0)","v":0},0,{"$f":"IF($E11=0,'Sjekkliste for utfylling'!A28,\"\")","v":10},{"$f":"IF($E11=0,'Sjekkliste for utfylling'!B28,\"\")","v":"Er skattefrie offentlige tilskudd behandlet riktig i opptjenings-/utbetalingsåret og senere år, ved at et beløp tilsvarende tilskuddet er ført som «andre fradrag», også når tilskuddet har redusert regnskapsmessig kostpris av investeringen? (svært vanlig for eksempel for investeringstilskudd fra Innovasjon Norge, og SkatteFUNN) "},null,{"$f":"IF($E11=0,'Sjekkliste for utfylling'!L28,\"\")","v":0}]
[{"$f":"'Sjekkliste for utfylling'!A29","v":11},{"$f":"IF('Sjekkliste for utfylling'!I29<>\"\",1,0)","v":0},{"$f":"IF('Sjekkliste for utfylling'!J29<>\"\",1,0)","v":0},{"$f":"IF('Sjekkliste for utfylling'!K29<>\"\",1,0)","v":0},0,{"$f":"IF($E12=0,'Sjekkliste for utfylling'!A29,\"\")","v":11},{"$f":"IF($E12=0,'Sjekkliste for utfylling'!B29,\"\")","v":"Er realiserte tap på fordringer som ikke er i næring tilbakeført som ikke fradragsberettiget kostnad? \nNB! Retten til fradrag for tap på fordringer på selskap i samme skattekonsern er i stor grad avskåret."},null,{"$f":"IF($E12=0,'Sjekkliste for utfylling'!L29,\"\")","v":0}]
[{"$f":"'Sjekkliste for utfylling'!A31","v":12},{"$f":"IF('Sjekkliste for utfylling'!I31<>\"\",1,0)","v":0},{"$f":"IF('Sjekkliste for utfylling'!J31<>\"\",1,0)","v":0},{"$f":"IF('Sjekkliste for utfylling'!K31<>\"\",1,0)","v":0},0,{"$f":"IF($E13=0,'Sjekkliste for utfylling'!A31,\"\")","v":12},{"$f":"IF($E13=0,'Sjekkliste for utfylling'!B31,\"\")","v":"Er det påsett at «Tilbakeføring av inntektsført utbytte» og «Resultatførte konsernbidrag» i post 0815 og 0816 ikke inneholder beløp som er ført mot balanseposten \"Aksjer\" i årsregnskapet (skattepliktige konsernbidrag skal inntektsføres igjen i skattemeldingen)? "},null,{"$f":"IF($E13=0,'Sjekkliste for utfylling'!L31,\"\")","v":0}]
[{"$f":"'Sjekkliste for utfylling'!A32","v":13},{"$f":"IF('Sjekkliste for utfylling'!I32<>\"\",1,0)","v":0},{"$f":"IF('Sjekkliste for utfylling'!J32<>\"\",1,0)","v":0},{"$f":"IF('Sjekkliste for utfylling'!K32<>\"\",1,0)","v":0},0,{"$f":"IF($E14=0,'Sjekkliste for utfylling'!A32,\"\")","v":13},{"$f":"IF($E14=0,'Sjekkliste for utfylling'!B32,\"\")","v":"Er alle andre inntekter/kostnader i resultatregnskapet knyttet til aksjer/andeler i andre selskaper tilbakeført?"},null,{"$f":"IF($E14=0,'Sjekkliste for utfylling'!L32,\"\")","v":0}]
[{"$f":"'Sjekkliste for utfylling'!A33","v":14},{"$f":"IF('Sjekkliste for utfylling'!I33<>\"\",1,0)","v":0},{"$f":"IF('Sjekkliste for utfylling'!J33<>\"\",1,0)","v":0},{"$f":"IF('Sjekkliste for utfylling'!K33<>\"\",1,0)","v":0},0,{"$f":"IF($E15=0,'Sjekkliste for utfylling'!A33,\"\")","v":14},{"$f":"IF($E15=0,'Sjekkliste for utfylling'!B33,\"\")","v":"Ved investering i selskap med deltakerfastsetting, er årets skattemessige resultat fra andelen tatt inn i post 0655/0855?"},null,{"$f":"IF($E15=0,'Sjekkliste for utfylling'!L33,\"\")","v":0}]
[{"$f":"'Sjekkliste for utfylling'!A34","v":15},{"$f":"IF('Sjekkliste for utfylling'!I34<>\"\",1,0)","v":0},{"$f":"IF('Sjekkliste for utfylling'!J34<>\"\",1,0)","v":0},{"$f":"IF('Sjekkliste for utfylling'!K34<>\"\",1,0)","v":0},0,{"$f":"IF($E16=0,'Sjekkliste for utfylling'!A34,\"\")","v":15},{"$f":"IF($E16=0,'Sjekkliste for utfylling'!B34,\"\")","v":"Ved utdeling av opptjent kapital fra selskap med deltakerfastsetting, er 3% av netto utdeling tilbakeført i post 0653? \nNetto utdeling vil si utdeling redusert med skatt på andel av overskuddet som deltakeren får fastsatt, dette fremgår av deltakermeldingen (RF-1221 og RF-1233) post 216.  "},null,{"$f":"IF($E16=0,'Sjekkliste for utfylling'!L34,\"\")","v":0}]
[{"$f":"'Sjekkliste for utfylling'!A35","v":16},{"$f":"IF('Sjekkliste for utfylling'!I35<>\"\",1,0)","v":0},{"$f":"IF('Sjekkliste for utfylling'!J35<>\"\",1,0)","v":0},{"$f":"IF('Sjekkliste for utfylling'!K35<>\"\",1,0)","v":0},0,{"$f":"IF($E17=0,'Sjekkliste for utfylling'!A35,\"\")","v":16},{"$f":"IF($E17=0,'Sjekkliste for utfylling'!B35,\"\")","v":"Er det foretatt en grundig kontroll av om mottatte utbytter og salgsgevinster/-tap på aksjer er innenfor eller utenfor fritaksmetoden?"},null,{"$f":"IF($E17=0,'Sjekkliste for utfylling'!L35,\"\")","v":0}]
[{"$f":"'Sjekkliste for utfylling'!A36","v":17},{"$f":"IF('Sjekkliste for utfylling'!I36<>\"\",1,0)","v":0},{"$f":"IF('Sjekkliste for utfylling'!J36<>\"\",1,0)","v":0},{"$f":"IF('Sjekkliste for utfylling'!K36<>\"\",1,0)","v":0},0,{"$f":"IF($E18=0,'Sjekkliste for utfylling'!A36,\"\")","v":17},{"$f":"IF($E18=0,'Sjekkliste for utfylling'!B36,\"\")","v":"Er eventuelle skattepliktige beløp vedrørende aksjer ført inn i postene 0650-0653/0850?\nHusk spesielt tilbakeføring av 3 % av skattefritt utbytte etter fritaksmetoden, som skal inn i post 0653"},null,{"$f":"IF($E18=0,'Sjekkliste for utfylling'!L36,\"\")","v":0}]
[{"$f":"'Sjekkliste for utfylling'!A37","v":18},{"$f":"IF('Sjekkliste for utfylling'!I37<>\"\",1,0)","v":0},{"$f":"IF('Sjekkliste for utfylling'!J37<>\"\",1,0)","v":0},{"$f":"IF('Sjekkliste for utfylling'!K37<>\"\",1,0)","v":0},0,{"$f":"IF($E19=0,'Sjekkliste for utfylling'!A37,\"\")","v":18},{"$f":"IF($E19=0,'Sjekkliste for utfylling'!B37,\"\")","v":"Er skattepliktig gevinst eller fradragsberettiget tap i post 0650/0850 samt skattepliktig utbytte i post 0652 spesifisert i RF-1359?"},null,{"$f":"IF($E19=0,'Sjekkliste for utfylling'!L37,\"\")","v":0}]
[{"$f":"'Sjekkliste for utfylling'!A38","v":19},{"$f":"IF('Sjekkliste for utfylling'!I38<>\"\",1,0)","v":0},{"$f":"IF('Sjekkliste for utfylling'!J38<>\"\",1,0)","v":0},{"$f":"IF('Sjekkliste for utfylling'!K38<>\"\",1,0)","v":0},0,{"$f":"IF($E20=0,'Sjekkliste for utfylling'!A38,\"\")","v":19},{"$f":"IF($E20=0,'Sjekkliste for utfylling'!B38,\"\")","v":"Andre forhold\nEr det kontrollert at avskrivning på goodwill etter skattefri fusjon/konserninterne overføringer ikke er behandlet som permanent forskjell? (Skal behandles som midlertidig forskjell (som ikke inngår i beregningsgrunnlaget for utsatt skatt) og endring i midlertidig forskjell)"},null,{"$f":"IF($E20=0,'Sjekkliste for utfylling'!L38,\"\")","v":0}]
[{"$f":"'Sjekkliste for utfylling'!A39","v":20},{"$f":"IF('Sjekkliste for utfylling'!I39<>\"\",1,0)","v":0},{"$f":"IF('Sjekkliste for utfylling'!J39<>\"\",1,0)","v":0},{"$f":"IF('Sjekkliste for utfylling'!K39<>\"\",1,0)","v":0},0,{"$f":"IF($E21=0,'Sjekkliste for utfylling'!A39,\"\")","v":20},{"$f":"IF($E21=0,'Sjekkliste for utfylling'!B39,\"\")","v":"Er endringer i midlertidige forskjeller i post 0670/0870 i samsvar med post 100 i RF-1217? "},null,{"$f":"IF($E21=0,'Sjekkliste for utfylling'!L39,\"\")","v":0}]
[{"$f":"'Sjekkliste for utfylling'!A40","v":21},{"$f":"IF('Sjekkliste for utfylling'!I40<>\"\",1,0)","v":0},{"$f":"IF('Sjekkliste for utfylling'!J40<>\"\",1,0)","v":0},{"$f":"IF('Sjekkliste for utfylling'!K40<>\"\",1,0)","v":0},0,{"$f":"IF($E22=0,'Sjekkliste for utfylling'!A40,\"\")","v":21},{"$f":"IF($E22=0,'Sjekkliste for utfylling'!B40,\"\")","v":"Er endringer i totale midlertidige forskjeller i post 0670 / 0870 avstemt mot arbeidspapir for skatteberegning?"},null,{"$f":"IF($E22=0,'Sjekkliste for utfylling'!L40,\"\")","v":0}]
[{"$f":"'Sjekkliste for utfylling'!A41","v":22},{"$f":"IF('Sjekkliste for utfylling'!I41<>\"\",1,0)","v":0},{"$f":"IF('Sjekkliste for utfylling'!J41<>\"\",1,0)","v":0},{"$f":"IF('Sjekkliste for utfylling'!K41<>\"\",1,0)","v":0},0,{"$f":"IF($E23=0,'Sjekkliste for utfylling'!A41,\"\")","v":22},{"$f":"IF($E23=0,'Sjekkliste for utfylling'!B41,\"\")","v":"Er det bare ført inn beløp i post 0877 når emisjons-/stiftelseskostnader er ført direkte mot egenkapitalen?"},null,{"$f":"IF($E23=0,'Sjekkliste for utfylling'!L41,\"\")","v":0}]
[{"$f":"'Sjekkliste for utfylling'!A43","v":23},{"$f":"IF('Sjekkliste for utfylling'!I43<>\"\",1,0)","v":0},{"$f":"IF('Sjekkliste for utfylling'!J43<>\"\",1,0)","v":0},{"$f":"IF('Sjekkliste for utfylling'!K43<>\"\",1,0)","v":0},0,{"$f":"IF($E24=0,'Sjekkliste for utfylling'!A43,\"\")","v":23},{"$f":"IF($E24=0,'Sjekkliste for utfylling'!B43,\"\")","v":"Generelt \nEr tallene i fjorårskolonnen i samsvar med RF-1217 i fjor? "},null,{"$f":"IF($E24=0,'Sjekkliste for utfylling'!L43,\"\")","v":0}]
[{"$f":"'Sjekkliste for utfylling'!A44","v":24},{"$f":"IF('Sjekkliste for utfylling'!I44<>\"\",1,0)","v":0},{"$f":"IF('Sjekkliste for utfylling'!J44<>\"\",1,0)","v":0},{"$f":"IF('Sjekkliste for utfylling'!K44<>\"\",1,0)","v":0},0,{"$f":"IF($E25=0,'Sjekkliste for utfylling'!A44,\"\")","v":24},{"$f":"IF($E25=0,'Sjekkliste for utfylling'!B44,\"\")","v":"Ved fusjon til kontinuitet, er tallene i fjorårskolonnen korrigert, slik at de utgjør summen av selskapene? "},null,{"$f":"IF($E25=0,'Sjekkliste for utfylling'!L44,\"\")","v":0}]
[{"$f":"'Sjekkliste for utfylling'!A45","v":25},{"$f":"IF('Sjekkliste for utfylling'!I45<>\"\",1,0)","v":0},{"$f":"IF('Sjekkliste for utfylling'!J45<>\"\",1,0)","v":0},{"$f":"IF('Sjekkliste for utfylling'!K45<>\"\",1,0)","v":0},0,{"$f":"IF($E26=0,'Sjekkliste for utfylling'!A45,\"\")","v":25},{"$f":"IF($E26=0,'Sjekkliste for utfylling'!B45,\"\")","v":"Ved fisjon til kontinuitet, er tallene i fjorårskolonnen korrigert, slik at de utgjør fjorårstallene med fradrag for utfisjonerte midlertidige forskjeller? "},null,{"$f":"IF($E26=0,'Sjekkliste for utfylling'!L45,\"\")","v":0}]
[{"$f":"'Sjekkliste for utfylling'!A46","v":26},{"$f":"IF('Sjekkliste for utfylling'!I46<>\"\",1,0)","v":0},{"$f":"IF('Sjekkliste for utfylling'!J46<>\"\",1,0)","v":0},{"$f":"IF('Sjekkliste for utfylling'!K46<>\"\",1,0)","v":0},0,{"$f":"IF($E27=0,'Sjekkliste for utfylling'!A46,\"\")","v":26},{"$f":"IF($E27=0,'Sjekkliste for utfylling'!B46,\"\")","v":"Er store og/eller ulogiske endringer forklart? "},null,{"$f":"IF($E27=0,'Sjekkliste for utfylling'!L46,\"\")","v":0}]
[{"$f":"'Sjekkliste for utfylling'!A48","v":27},{"$f":"IF('Sjekkliste for utfylling'!I48<>\"\",1,0)","v":0},{"$f":"IF('Sjekkliste for utfylling'!J48<>\"\",1,0)","v":0},{"$f":"IF('Sjekkliste for utfylling'!K48<>\"\",1,0)","v":0},0,{"$f":"IF($E28=0,'Sjekkliste for utfylling'!A48,\"\")","v":27},{"$f":"IF($E28=0,'Sjekkliste for utfylling'!B48,\"\")","v":"Er det foretatt avstemming av midlertidige forskjeller vedrørende driftsmidler (immaterielle eiendeler og varige driftsmidler)? "},null,{"$f":"IF($E28=0,'Sjekkliste for utfylling'!L48,\"\")","v":0}]
[{"$f":"'Sjekkliste for utfylling'!A49","v":28},{"$f":"IF('Sjekkliste for utfylling'!I49<>\"\",1,0)","v":0},{"$f":"IF('Sjekkliste for utfylling'!J49<>\"\",1,0)","v":0},{"$f":"IF('Sjekkliste for utfylling'!K49<>\"\",1,0)","v":0},0,{"$f":"IF($E29=0,'Sjekkliste for utfylling'!A49,\"\")","v":28},{"$f":"IF($E29=0,'Sjekkliste for utfylling'!B49,\"\")","v":"Inkluderer den skattemessige verdien i post 2 samtlige driftsmidler (inkl. immaterielle eiendeler) innenfor og utenfor (for eksempel tomt og boligeiendom) saldosystemet? "},null,{"$f":"IF($E29=0,'Sjekkliste for utfylling'!L49,\"\")","v":0}]
[{"$f":"'Sjekkliste for utfylling'!A50","v":29},{"$f":"IF('Sjekkliste for utfylling'!I50<>\"\",1,0)","v":0},{"$f":"IF('Sjekkliste for utfylling'!J50<>\"\",1,0)","v":0},{"$f":"IF('Sjekkliste for utfylling'!K50<>\"\",1,0)","v":0},0,{"$f":"IF($E30=0,'Sjekkliste for utfylling'!A50,\"\")","v":29},{"$f":"IF($E30=0,'Sjekkliste for utfylling'!B50,\"\")","v":"Er det spesielt vurdert om det er foretatt egen (forskning og) utvikling som skal balanseføres skattemessig i post 2 (uavhengig av den regnskapsmessige behandlingen)? "},null,{"$f":"IF($E30=0,'Sjekkliste for utfylling'!L50,\"\")","v":0}]
[{"$f":"'Sjekkliste for utfylling'!A51","v":30},{"$f":"IF('Sjekkliste for utfylling'!I51<>\"\",1,0)","v":0},{"$f":"IF('Sjekkliste for utfylling'!J51<>\"\",1,0)","v":0},{"$f":"IF('Sjekkliste for utfylling'!K51<>\"\",1,0)","v":0},0,{"$f":"IF($E31=0,'Sjekkliste for utfylling'!A51,\"\")","v":30},{"$f":"IF($E31=0,'Sjekkliste for utfylling'!B51,\"\")","v":"Hvis utgifter er ført som investering/påkostning regnskapsmessig, men er kostnadsført skattemessig (for eksempel byggelånsrenter eller vedlikehold), er dette forklart i vedlegg? "},null,{"$f":"IF($E31=0,'Sjekkliste for utfylling'!L51,\"\")","v":0}]
[{"$f":"'Sjekkliste for utfylling'!A54","v":31},{"$f":"IF('Sjekkliste for utfylling'!I54<>\"\",1,0)","v":0},{"$f":"IF('Sjekkliste for utfylling'!J54<>\"\",1,0)","v":0},{"$f":"IF('Sjekkliste for utfylling'!K54<>\"\",1,0)","v":0},0,{"$f":"IF($E32=0,'Sjekkliste for utfylling'!A54,\"\")","v":31},{"$f":"IF($E32=0,'Sjekkliste for utfylling'!B54,\"\")","v":"Ved bruk av løpende avregning regnskapsmessig, beregnes da skattemessig verdi som regnskapsmessig verdi av prosjekter ifølge årsregnskapet og post 21, med fradrag for beregnet prosjektfortjeneste pr. 31.12. på igangværende prosjekter? "},null,{"$f":"IF($E32=0,'Sjekkliste for utfylling'!L54,\"\")","v":0}]
[{"$f":"'Sjekkliste for utfylling'!A56","v":32},{"$f":"IF('Sjekkliste for utfylling'!I56<>\"\",1,0)","v":0},{"$f":"IF('Sjekkliste for utfylling'!J56<>\"\",1,0)","v":0},{"$f":"IF('Sjekkliste for utfylling'!K56<>\"\",1,0)","v":0},{"$f":"SUM(B33:D33)","v":0},{"$f":"IF($E33=0,'Sjekkliste for utfylling'!A56,\"\")","v":32},{"$f":"IF($E33=0,'Sjekkliste for utfylling'!B56,\"\")","v":"Hvis selskapet har vært part i en konsernfusjon/-fisjon i år, er det da beregnet midlertidig forskjell på konsernfordringen-/gjelden, uavhengig av om utsatt skatt/skattefordel på den midlertidige forskjellen er balanseført eller ikke?"},null,{"$f":"IF($E33=0,'Sjekkliste for utfylling'!L56,\"\")","v":0}]
[{"$f":"'Sjekkliste for utfylling'!A57","v":33},{"$f":"IF('Sjekkliste for utfylling'!I57<>\"\",1,0)","v":0},{"$f":"IF('Sjekkliste for utfylling'!J57<>\"\",1,0)","v":0},{"$f":"IF('Sjekkliste for utfylling'!K57<>\"\",1,0)","v":0},0,{"$f":"IF($E34=0,'Sjekkliste for utfylling'!A57,\"\")","v":33},{"$f":"IF($E34=0,'Sjekkliste for utfylling'!B57,\"\")","v":"Ved senere nedbetaling av konsernfordringen/-gjelden, er da den skattemessige verdien av fordringen/gjelden redusert proprosjonalt med den regnskapsmessige verdien?"},null,{"$f":"IF($E34=0,'Sjekkliste for utfylling'!L57,\"\")","v":0}]
[{"$f":"'Sjekkliste for utfylling'!A58","v":34},{"$f":"IF('Sjekkliste for utfylling'!I58<>\"\",1,0)","v":0},{"$f":"IF('Sjekkliste for utfylling'!J58<>\"\",1,0)","v":0},{"$f":"IF('Sjekkliste for utfylling'!K58<>\"\",1,0)","v":0},0,{"$f":"IF($E35=0,'Sjekkliste for utfylling'!A58,\"\")","v":34},{"$f":"IF($E35=0,'Sjekkliste for utfylling'!B58,\"\")","v":"Utestående fordringer\nEr det påsett at det ikke er ført noen midlertidig forskjell på fordring på konsernselskap og eventuelle andre utlån der tapet ikke er fradragsberettiget?"},null,{"$f":"IF($E35=0,'Sjekkliste for utfylling'!L58,\"\")","v":0}]
[{"$f":"'Sjekkliste for utfylling'!A59","v":35},{"$f":"IF('Sjekkliste for utfylling'!I59<>\"\",1,0)","v":0},{"$f":"IF('Sjekkliste for utfylling'!J59<>\"\",1,0)","v":0},{"$f":"IF('Sjekkliste for utfylling'!K59<>\"\",1,0)","v":0},0,{"$f":"IF($E36=0,'Sjekkliste for utfylling'!A59,\"\")","v":35},{"$f":"IF($E36=0,'Sjekkliste for utfylling'!B59,\"\")","v":"Balanseførte leieavtaler \nNår skattemessig operasjonelle leieavtaler er balanseført (som finansielle) regnskapsmessig, er da regnskapsmessig verdi av eiendelene og gjelden ført inn i postene 46 og 47? "},null,{"$f":"IF($E36=0,'Sjekkliste for utfylling'!L59,\"\")","v":0}]
[{"$f":"'Sjekkliste for utfylling'!A61","v":36},{"$f":"IF('Sjekkliste for utfylling'!I61<>\"\",1,0)","v":0},{"$f":"IF('Sjekkliste for utfylling'!J61<>\"\",1,0)","v":0},{"$f":"IF('Sjekkliste for utfylling'!K61<>\"\",1,0)","v":0},0,{"$f":"IF($E37=0,'Sjekkliste for utfylling'!A61,\"\")","v":36},{"$f":"IF($E37=0,'Sjekkliste for utfylling'!B61,\"\")","v":"Er bare aksjer og andre finansielle instrumenter som ikke er omfattet av fritaksmetoden tatt med i post 111-113? "},null,{"$f":"IF($E37=0,'Sjekkliste for utfylling'!L61,\"\")","v":0}]
[{"$f":"'Sjekkliste for utfylling'!A62","v":37},{"$f":"IF('Sjekkliste for utfylling'!I62<>\"\",1,0)","v":0},{"$f":"IF('Sjekkliste for utfylling'!J62<>\"\",1,0)","v":0},{"$f":"IF('Sjekkliste for utfylling'!K62<>\"\",1,0)","v":0},0,{"$f":"IF($E38=0,'Sjekkliste for utfylling'!A62,\"\")","v":37},{"$f":"IF($E38=0,'Sjekkliste for utfylling'!B62,\"\")","v":"Er det beregnet 3 % av inntektsført avsatt utbytte fra datterselskap mv der en eier 90 % av aksjene eller mindre, og er beløpet ført inn i post 115? "},null,{"$f":"IF($E38=0,'Sjekkliste for utfylling'!L62,\"\")","v":0}]
[{"$f":"'Sjekkliste for utfylling'!A64","v":38},{"$f":"IF('Sjekkliste for utfylling'!I64<>\"\",1,0)","v":0},{"$f":"IF('Sjekkliste for utfylling'!J64<>\"\",1,0)","v":0},{"$f":"IF('Sjekkliste for utfylling'!K64<>\"\",1,0)","v":0},0,{"$f":"IF($E39=0,'Sjekkliste for utfylling'!A64,\"\")","v":38},{"$f":"IF($E39=0,'Sjekkliste for utfylling'!B64,\"\")","v":"Er bare eventuelle andeler utenfor fritaksmetoden tatt med i post 121-123?"},null,{"$f":"IF($E39=0,'Sjekkliste for utfylling'!L64,\"\")","v":0}]
[{"$f":"'Sjekkliste for utfylling'!A65","v":39},{"$f":"IF('Sjekkliste for utfylling'!I65<>\"\",1,0)","v":0},{"$f":"IF('Sjekkliste for utfylling'!J65<>\"\",1,0)","v":0},{"$f":"IF('Sjekkliste for utfylling'!K65<>\"\",1,0)","v":0},0,{"$f":"IF($E40=0,'Sjekkliste for utfylling'!A65,\"\")","v":39},{"$f":"IF($E40=0,'Sjekkliste for utfylling'!B65,\"\")","v":"Er det beregnet midlertidig forskjell på andeler under fritaksmetoden i post 124, og er den skattemessige verdien riktig beregnet (se omtale og talleksempler i rettledningen)?"},null,{"$f":"IF($E40=0,'Sjekkliste for utfylling'!L65,\"\")","v":0}]
[{"$f":"'Sjekkliste for utfylling'!A67","v":40},{"$f":"IF('Sjekkliste for utfylling'!I67<>\"\",1,0)","v":0},{"$f":"IF('Sjekkliste for utfylling'!J67<>\"\",1,0)","v":0},{"$f":"IF('Sjekkliste for utfylling'!K67<>\"\",1,0)","v":0},0,{"$f":"IF($E41=0,'Sjekkliste for utfylling'!A67,\"\")","v":40},{"$f":"IF($E41=0,'Sjekkliste for utfylling'!B67,\"\")","v":"Når det har vært kjøp av «innmat», er gjenværende balanseført verdi av overtatte forpliktelser (for eksempel pensjonsforpliktelser og avsetninger etter god regnskapsskikk) trukket ut fra disse postene og i stedet ført inn i post 81? "},null,{"$f":"IF($E41=0,'Sjekkliste for utfylling'!L67,\"\")","v":0}]
[{"$f":"'Sjekkliste for utfylling'!A68","v":41},{"$f":"IF('Sjekkliste for utfylling'!I68<>\"\",1,0)","v":0},{"$f":"IF('Sjekkliste for utfylling'!J68<>\"\",1,0)","v":0},{"$f":"IF('Sjekkliste for utfylling'!K68<>\"\",1,0)","v":0},0,{"$f":"IF($E42=0,'Sjekkliste for utfylling'!A68,\"\")","v":41},{"$f":"IF($E42=0,'Sjekkliste for utfylling'!B68,\"\")","v":"Ved konserninterne overføringer og «virkelig verdi»-fusjoner med skattemessig kontinuitet, er postene 91-94 riktig utfylt i overføringsåret? "},null,{"$f":"IF($E42=0,'Sjekkliste for utfylling'!L68,\"\")","v":0}]
[{"$f":"'Sjekkliste for utfylling'!A69","v":42},{"$f":"IF('Sjekkliste for utfylling'!I69<>\"\",1,0)","v":0},{"$f":"IF('Sjekkliste for utfylling'!J69<>\"\",1,0)","v":0},{"$f":"IF('Sjekkliste for utfylling'!K69<>\"\",1,0)","v":0},0,{"$f":"IF($E43=0,'Sjekkliste for utfylling'!A69,\"\")","v":42},{"$f":"IF($E43=0,'Sjekkliste for utfylling'!B69,\"\")","v":"Er det laget redegjørelse i tilknytning til skattepapirene ved konserninterne overføringer (både i overdragende og overtakende selskap) der det opplyses om vederlag, inngangsverdi, deling av saldo mv, ifølge kravene i forskrift til utfylling og gjennomføring av skatteloven § 11-21-8? "},null,{"$f":"IF($E43=0,'Sjekkliste for utfylling'!L69,\"\")","v":0}]
[{"$f":"'Sjekkliste for utfylling'!A71","v":43},{"$f":"IF('Sjekkliste for utfylling'!I71<>\"\",1,0)","v":0},{"$f":"IF('Sjekkliste for utfylling'!J71<>\"\",1,0)","v":0},{"$f":"IF('Sjekkliste for utfylling'!K71<>\"\",1,0)","v":0},0,{"$f":"IF($E44=0,'Sjekkliste for utfylling'!A71,\"\")","v":43},{"$f":"IF($E44=0,'Sjekkliste for utfylling'!B71,\"\")","v":"Er ubenyttet kreditfradrag til fremføring fra RF-1145 del III og/eller IV grosset opp med skattesatsen og ført inn i post 140? "},null,{"$f":"IF($E44=0,'Sjekkliste for utfylling'!L71,\"\")","v":0}]
[{"$f":"'Sjekkliste for utfylling'!A74","v":44},{"$f":"IF('Sjekkliste for utfylling'!I74<>\"\",1,0)","v":0},{"$f":"IF('Sjekkliste for utfylling'!J74<>\"\",1,0)","v":0},{"$f":"IF('Sjekkliste for utfylling'!K74<>\"\",1,0)","v":0},0,{"$f":"IF($E45=0,'Sjekkliste for utfylling'!A74,\"\")","v":44},{"$f":"IF($E45=0,'Sjekkliste for utfylling'!B74,\"\")","v":"Diverse selskapsopplysninger\nEr det foretatt en nøye gjennomgang av at det er svart på alle spørsmål på side 1?"},null,{"$f":"IF($E45=0,'Sjekkliste for utfylling'!L74,\"\")","v":0}]
[{"$f":"'Sjekkliste for utfylling'!A75","v":45},{"$f":"IF('Sjekkliste for utfylling'!I75<>\"\",1,0)","v":0},{"$f":"IF('Sjekkliste for utfylling'!J75<>\"\",1,0)","v":0},{"$f":"IF('Sjekkliste for utfylling'!K75<>\"\",1,0)","v":0},0,{"$f":"IF($E46=0,'Sjekkliste for utfylling'!A75,\"\")","v":45},{"$f":"IF($E46=0,'Sjekkliste for utfylling'!B75,\"\")","v":"Foretak som omfattes av finansskatt\nEr det krysset av for at foretaket driver finansiell aktivitet som omfattes av næringshovedområdet K \"Finansierings- og forsikringsvirksomhet\" og at de er omfattet av finansskatt?"},null,{"$f":"IF($E46=0,'Sjekkliste for utfylling'!L75,\"\")","v":0}]
[{"$f":"'Sjekkliste for utfylling'!A76","v":46},{"$f":"IF('Sjekkliste for utfylling'!I76<>\"\",1,0)","v":0},{"$f":"IF('Sjekkliste for utfylling'!J76<>\"\",1,0)","v":0},{"$f":"IF('Sjekkliste for utfylling'!K76<>\"\",1,0)","v":0},0,{"$f":"IF($E47=0,'Sjekkliste for utfylling'!A76,\"\")","v":46},{"$f":"IF($E47=0,'Sjekkliste for utfylling'!B76,\"\")","v":"Mottatt utbytte fra utlandet\nEr det krysset av for om selskapet har mottatt utbytte i utenlandsk valuta, og er eventuelt mottatt beløp opplyst i norske kroner?"},null,{"$f":"IF($E47=0,'Sjekkliste for utfylling'!L76,\"\")","v":0}]
[{"$f":"'Sjekkliste for utfylling'!A77","v":47},{"$f":"IF('Sjekkliste for utfylling'!I77<>\"\",1,0)","v":0},{"$f":"IF('Sjekkliste for utfylling'!J77<>\"\",1,0)","v":0},{"$f":"IF('Sjekkliste for utfylling'!K77<>\"\",1,0)","v":0},{"$f":"SUM(B48:D48)","v":0},{"$f":"IF($E48=0,'Sjekkliste for utfylling'!A77,\"\")","v":47},{"$f":"IF($E48=0,'Sjekkliste for utfylling'!B77,\"\")","v":"Skattefradrag for underskudd for inntektsåret 2020\nEr det krysset for Ja dersom selskapet har underskudd i 2020 og kan kreve tilbakeført skatt på positiv alminnelig inntekt for 2018 og/eller 2019?"},null,{"$f":"IF($E48=0,'Sjekkliste for utfylling'!L77,\"\")","v":0}]
[{"$f":"'Sjekkliste for utfylling'!A79","v":48},{"$f":"IF('Sjekkliste for utfylling'!I79<>\"\",1,0)","v":0},{"$f":"IF('Sjekkliste for utfylling'!J79<>\"\",1,0)","v":0},{"$f":"IF('Sjekkliste for utfylling'!K79<>\"\",1,0)","v":0},0,{"$f":"IF($E49=0,'Sjekkliste for utfylling'!A79,\"\")","v":48},{"$f":"IF($E49=0,'Sjekkliste for utfylling'!B79,\"\")","v":"Hvis selskapet i inntektsåret har vært involvert i fisjon/fusjon, er det i tillegg til svar på spørsmål og avkryssing gitt opplysninger i eget vedlegg om følgende forhold, evt. kopi av fusjons-/fisjonsavtale dersom den redegjør for alle de forhold nevnt nedenfor (se rettledningen til RF-1028):"},null,{"$f":"IF($E49=0,'Sjekkliste for utfylling'!L79,\"\")","v":0}]
[{"$f":"'Sjekkliste for utfylling'!A80","v":49},{"$f":"IF('Sjekkliste for utfylling'!I80<>\"\",1,0)","v":0},{"$f":"IF('Sjekkliste for utfylling'!J80<>\"\",1,0)","v":0},{"$f":"IF('Sjekkliste for utfylling'!K80<>\"\",1,0)","v":0},0,{"$f":"IF($E50=0,'Sjekkliste for utfylling'!A80,\"\")","v":49},{"$f":"IF($E50=0,'Sjekkliste for utfylling'!B80,\"\")","v":"- Navn og org.nummer på de selskap som omfattes av fusjonen/fisjonen"},null,{"$f":"IF($E50=0,'Sjekkliste for utfylling'!L80,\"\")","v":0}]
[{"$f":"'Sjekkliste for utfylling'!A81","v":50},{"$f":"IF('Sjekkliste for utfylling'!I81<>\"\",1,0)","v":0},{"$f":"IF('Sjekkliste for utfylling'!J81<>\"\",1,0)","v":0},{"$f":"IF('Sjekkliste for utfylling'!K81<>\"\",1,0)","v":0},0,{"$f":"IF($E51=0,'Sjekkliste for utfylling'!A81,\"\")","v":50},{"$f":"IF($E51=0,'Sjekkliste for utfylling'!B81,\"\")","v":"- Tidspunktet for fusjonen/fisjonen "},null,{"$f":"IF($E51=0,'Sjekkliste for utfylling'!L81,\"\")","v":0}]
[{"$f":"'Sjekkliste for utfylling'!A82","v":51},{"$f":"IF('Sjekkliste for utfylling'!I82<>\"\",1,0)","v":0},{"$f":"IF('Sjekkliste for utfylling'!J82<>\"\",1,0)","v":0},{"$f":"IF('Sjekkliste for utfylling'!K82<>\"\",1,0)","v":0},0,{"$f":"IF($E52=0,'Sjekkliste for utfylling'!A82,\"\")","v":51},{"$f":"IF($E52=0,'Sjekkliste for utfylling'!B82,\"\")","v":"- Fordelingen av aksjene mellom tidligere og nye eiere"},null,{"$f":"IF($E52=0,'Sjekkliste for utfylling'!L82,\"\")","v":0}]
[{"$f":"'Sjekkliste for utfylling'!A83","v":52},{"$f":"IF('Sjekkliste for utfylling'!I83<>\"\",1,0)","v":0},{"$f":"IF('Sjekkliste for utfylling'!J83<>\"\",1,0)","v":0},{"$f":"IF('Sjekkliste for utfylling'!K83<>\"\",1,0)","v":0},0,{"$f":"IF($E53=0,'Sjekkliste for utfylling'!A83,\"\")","v":52},{"$f":"IF($E53=0,'Sjekkliste for utfylling'!B83,\"\")","v":"- Etter hvilke prinsipper selskapets skattemessige eiendeler/gjeld og skatteposisjoner er fordelt mellom overdragende og overtakende selskap"},null,{"$f":"IF($E53=0,'Sjekkliste for utfylling'!L83,\"\")","v":0}]
[{"$f":"'Sjekkliste for utfylling'!A84","v":53},{"$f":"IF('Sjekkliste for utfylling'!I84<>\"\",1,0)","v":0},{"$f":"IF('Sjekkliste for utfylling'!J84<>\"\",1,0)","v":0},{"$f":"IF('Sjekkliste for utfylling'!K84<>\"\",1,0)","v":0},0,{"$f":"IF($E54=0,'Sjekkliste for utfylling'!A84,\"\")","v":53},{"$f":"IF($E54=0,'Sjekkliste for utfylling'!B84,\"\")","v":"- Utbetaling av et eventuelt tilleggsvederlag til aksjonærene i det overdragende selskap. Tilleggsvederlagets form og størrelse, samt hvordan dette er fordelt mellom aksjonærene"},null,{"$f":"IF($E54=0,'Sjekkliste for utfylling'!L84,\"\")","v":0}]
[{"$f":"'Sjekkliste for utfylling'!A86","v":54},{"$f":"IF('Sjekkliste for utfylling'!I86<>\"\",1,0)","v":0},{"$f":"IF('Sjekkliste for utfylling'!J86<>\"\",1,0)","v":0},{"$f":"IF('Sjekkliste for utfylling'!K86<>\"\",1,0)","v":0},0,{"$f":"IF($E55=0,'Sjekkliste for utfylling'!A86,\"\")","v":54},{"$f":"IF($E55=0,'Sjekkliste for utfylling'!B86,\"\")","v":"Omfatter beløpene for lån og sikkerhetsstillelse til aksjonær også aksjonærenes nærstående? "},null,{"$f":"IF($E55=0,'Sjekkliste for utfylling'!L86,\"\")","v":0}]
[{"$f":"'Sjekkliste for utfylling'!A87","v":55},{"$f":"IF('Sjekkliste for utfylling'!I87<>\"\",1,0)","v":0},{"$f":"IF('Sjekkliste for utfylling'!J87<>\"\",1,0)","v":0},{"$f":"IF('Sjekkliste for utfylling'!K87<>\"\",1,0)","v":0},0,{"$f":"IF($E56=0,'Sjekkliste for utfylling'!A87,\"\")","v":55},{"$f":"IF($E56=0,'Sjekkliste for utfylling'!B87,\"\")","v":"Er det opplyst om lånebeløp og/eller beløp for sikkerhetsstillelse per 06.10.2015?"},null,{"$f":"IF($E56=0,'Sjekkliste for utfylling'!L87,\"\")","v":0}]
[{"$f":"'Sjekkliste for utfylling'!A88","v":56},{"$f":"IF('Sjekkliste for utfylling'!I88<>\"\",1,0)","v":0},{"$f":"IF('Sjekkliste for utfylling'!J88<>\"\",1,0)","v":0},{"$f":"IF('Sjekkliste for utfylling'!K88<>\"\",1,0)","v":0},0,{"$f":"IF($E57=0,'Sjekkliste for utfylling'!A88,\"\")","v":56},{"$f":"IF($E57=0,'Sjekkliste for utfylling'!B88,\"\")","v":"Er det kontrollert at lånene er reelle lån? (Jfr. at skattemyndighetene har fått omgjort en rekke lån til aksjonærer til lønn eller utbytte)."},null,{"$f":"IF($E57=0,'Sjekkliste for utfylling'!L88,\"\")","v":0}]
[{"$f":"'Sjekkliste for utfylling'!A89","v":57},{"$f":"IF('Sjekkliste for utfylling'!I89<>\"\",1,0)","v":0},{"$f":"IF('Sjekkliste for utfylling'!J89<>\"\",1,0)","v":0},{"$f":"IF('Sjekkliste for utfylling'!K89<>\"\",1,0)","v":0},0,{"$f":"IF($E58=0,'Sjekkliste for utfylling'!A89,\"\")","v":57},{"$f":"IF($E58=0,'Sjekkliste for utfylling'!B89,\"\")","v":"Hvis selskapet ikke har belastet renter på lånet minst tilsvarende skjermingsrenten, er det da vurdert om rentefordelen skal innberettes som lønn/utbytte?"},null,{"$f":"IF($E58=0,'Sjekkliste for utfylling'!L89,\"\")","v":0}]
[{"$f":"'Sjekkliste for utfylling'!A90","v":58},{"$f":"IF('Sjekkliste for utfylling'!I90<>\"\",1,0)","v":0},{"$f":"IF('Sjekkliste for utfylling'!J90<>\"\",1,0)","v":0},{"$f":"IF('Sjekkliste for utfylling'!K90<>\"\",1,0)","v":0},0,{"$f":"IF($E59=0,'Sjekkliste for utfylling'!A90,\"\")","v":58},{"$f":"IF($E59=0,'Sjekkliste for utfylling'!B90,\"\")","v":"Hvis private aksjonærer har lånt inn penger til selskaper, og er godskrevet med høyere rente enn skjermingsrenten, har aksjonærene fått beskjed om skattepliktig rente etter skjermingsmodellen, og at den skal oppgis på skattemeldingen? (Dette spørsmålet har ikke direkte tilknytning til skattemeldingen, men bør vurderes med tanke på aksjonærenes skattemelding)."},null,{"$f":"IF($E59=0,'Sjekkliste for utfylling'!L90,\"\")","v":0}]
[{"$f":"'Sjekkliste for utfylling'!A91","v":59},{"$f":"IF('Sjekkliste for utfylling'!I91<>\"\",1,0)","v":0},{"$f":"IF('Sjekkliste for utfylling'!J91<>\"\",1,0)","v":0},{"$f":"IF('Sjekkliste for utfylling'!K91<>\"\",1,0)","v":0},0,{"$f":"IF($E60=0,'Sjekkliste for utfylling'!A91,\"\")","v":59},{"$f":"IF($E60=0,'Sjekkliste for utfylling'!B91,\"\")","v":"Er det gitt opplysninger om utleie eller salg av formuesgjenstander til/fra aksjonær? "},null,{"$f":"IF($E60=0,'Sjekkliste for utfylling'!L91,\"\")","v":0}]
[{"$f":"'Sjekkliste for utfylling'!A92","v":60},{"$f":"IF('Sjekkliste for utfylling'!I92<>\"\",1,0)","v":0},{"$f":"IF('Sjekkliste for utfylling'!J92<>\"\",1,0)","v":0},{"$f":"IF('Sjekkliste for utfylling'!K92<>\"\",1,0)","v":0},0,{"$f":"IF($E61=0,'Sjekkliste for utfylling'!A92,\"\")","v":60},{"$f":"IF($E61=0,'Sjekkliste for utfylling'!B92,\"\")","v":"Spesielle transaksjoner mm \nEr det vurdert om det er foretatt spesielle transaksjoner eller lignende med aksjonærer mv. som det bør redegjøres for i vedlegg? (En har opplysningsplikt om forhold som kan ha betydning for skattelegging av aksjonærene, hvis de ikke er tilstrekkelig dekket av opplysningene og spørsmålene i skattepapirene.) "},null,{"$f":"IF($E61=0,'Sjekkliste for utfylling'!L92,\"\")","v":0}]
[{"$f":"'Sjekkliste for utfylling'!A93","v":61},{"$f":"IF('Sjekkliste for utfylling'!I93<>\"\",1,0)","v":0},{"$f":"IF('Sjekkliste for utfylling'!J93<>\"\",1,0)","v":0},{"$f":"IF('Sjekkliste for utfylling'!K93<>\"\",1,0)","v":0},0,{"$f":"IF($E62=0,'Sjekkliste for utfylling'!A93,\"\")","v":61},{"$f":"IF($E62=0,'Sjekkliste for utfylling'!B93,\"\")","v":"Er transaksjoner med nærstående parter (aksjonærer, konsernselskaper m.v.) priset til markedsmessige vilkår?"},null,{"$f":"IF($E62=0,'Sjekkliste for utfylling'!L93,\"\")","v":0}]
[{"$f":"'Sjekkliste for utfylling'!A94","v":62},{"$f":"IF('Sjekkliste for utfylling'!I94<>\"\",1,0)","v":0},{"$f":"IF('Sjekkliste for utfylling'!J94<>\"\",1,0)","v":0},{"$f":"IF('Sjekkliste for utfylling'!K94<>\"\",1,0)","v":0},0,{"$f":"IF($E63=0,'Sjekkliste for utfylling'!A94,\"\")","v":62},{"$f":"IF($E63=0,'Sjekkliste for utfylling'!B94,\"\")","v":"Er det foretatt egenkapitaltransaksjoner som kan ha skattemessige konsekvenser, og er de i så fall riktig behandlet skattemessig?"},null,{"$f":"IF($E63=0,'Sjekkliste for utfylling'!L94,\"\")","v":0}]
[{"$f":"'Sjekkliste for utfylling'!A96","v":63},{"$f":"IF('Sjekkliste for utfylling'!I96<>\"\",1,0)","v":0},{"$f":"IF('Sjekkliste for utfylling'!J96<>\"\",1,0)","v":0},{"$f":"IF('Sjekkliste for utfylling'!K96<>\"\",1,0)","v":0},0,{"$f":"IF($E64=0,'Sjekkliste for utfylling'!A96,\"\")","v":63},{"$f":"IF($E64=0,'Sjekkliste for utfylling'!B96,\"\")","v":"Er det kontrollert om selskapet har transaksjoner til en samlet verdi på minst kr. 10.000.000 eller mellomværende på minst kr. 25.000.000 med nærstående som faller inn under  definisjonen av kontrollerte transaksjoner? "},null,{"$f":"IF($E64=0,'Sjekkliste for utfylling'!L96,\"\")","v":0}]
[{"$f":"'Sjekkliste for utfylling'!A97","v":64},{"$f":"IF('Sjekkliste for utfylling'!I97<>\"\",1,0)","v":0},{"$f":"IF('Sjekkliste for utfylling'!J97<>\"\",1,0)","v":0},{"$f":"IF('Sjekkliste for utfylling'!K97<>\"\",1,0)","v":0},0,{"$f":"IF($E65=0,'Sjekkliste for utfylling'!A97,\"\")","v":64},{"$f":"IF($E65=0,'Sjekkliste for utfylling'!B97,\"\")","v":"Hvis selskapet har ”kontrollerte transaksjoner”, er det da svart ja på spørsmålet, og er i så fall RF-1123 fylt ut?"},null,{"$f":"IF($E65=0,'Sjekkliste for utfylling'!L97,\"\")","v":0}]
[{"$f":"'Sjekkliste for utfylling'!A99","v":65},{"$f":"IF('Sjekkliste for utfylling'!I99<>\"\",1,0)","v":0},{"$f":"IF('Sjekkliste for utfylling'!J99<>\"\",1,0)","v":0},{"$f":"IF('Sjekkliste for utfylling'!K99<>\"\",1,0)","v":0},{"$f":"SUM(B66:D66)","v":0},{"$f":"IF($E66=0,'Sjekkliste for utfylling'!A99,\"\")","v":65},{"$f":"IF($E66=0,'Sjekkliste for utfylling'!B99,\"\")","v":"Er næringsinntekten i post 201, eventuelt underskudd i næring i post 222, i samsvar med næringsinntekten i post 0999 på side 4 i næringsoppgaven?"},null,{"$f":"IF($E66=0,'Sjekkliste for utfylling'!L99,\"\")","v":0}]
[{"$f":"'Sjekkliste for utfylling'!A100","v":66},{"$f":"IF('Sjekkliste for utfylling'!I100<>\"\",1,0)","v":0},{"$f":"IF('Sjekkliste for utfylling'!J100<>\"\",1,0)","v":0},{"$f":"IF('Sjekkliste for utfylling'!K100<>\"\",1,0)","v":0},0,{"$f":"IF($E67=0,'Sjekkliste for utfylling'!A100,\"\")","v":66},{"$f":"IF($E67=0,'Sjekkliste for utfylling'!B100,\"\")","v":"Er skattepliktig inntekt i post 260 i samsvar med eventuelle separate skatteberegninger og skattepliktig inntekt ifølge noten til årsregnskapet?"},null,{"$f":"IF($E67=0,'Sjekkliste for utfylling'!L100,\"\")","v":0}]
[{"$f":"'Sjekkliste for utfylling'!A102","v":67},{"$f":"IF('Sjekkliste for utfylling'!I102<>\"\",1,0)","v":0},{"$f":"IF('Sjekkliste for utfylling'!J102<>\"\",1,0)","v":0},{"$f":"IF('Sjekkliste for utfylling'!K102<>\"\",1,0)","v":0},0,{"$f":"IF($E68=0,'Sjekkliste for utfylling'!A102,\"\")","v":67},{"$f":"IF($E68=0,'Sjekkliste for utfylling'!B102,\"\")","v":"Omfatter mottatt konsernbidrag i post 207 beløp som er ført både som inntekt, som reduksjon av investering og direkte mot egenkapitalen? "},null,{"$f":"IF($E68=0,'Sjekkliste for utfylling'!L102,\"\")","v":0}]
[{"$f":"'Sjekkliste for utfylling'!A103","v":68},{"$f":"IF('Sjekkliste for utfylling'!I103<>\"\",1,0)","v":0},{"$f":"IF('Sjekkliste for utfylling'!J103<>\"\",1,0)","v":0},{"$f":"IF('Sjekkliste for utfylling'!K103<>\"\",1,0)","v":0},0,{"$f":"IF($E69=0,'Sjekkliste for utfylling'!A103,\"\")","v":68},{"$f":"IF($E69=0,'Sjekkliste for utfylling'!B103,\"\")","v":"Er det påsett at det ikke er gitt konsernbidrag uten skattefradrag når selskapet har skattepliktig inntekt?"},null,{"$f":"IF($E69=0,'Sjekkliste for utfylling'!L103,\"\")","v":0}]
[{"$f":"'Sjekkliste for utfylling'!A105","v":69},{"$f":"IF('Sjekkliste for utfylling'!I105<>\"\",1,0)","v":0},{"$f":"IF('Sjekkliste for utfylling'!J105<>\"\",1,0)","v":0},{"$f":"IF('Sjekkliste for utfylling'!K105<>\"\",1,0)","v":0},0,{"$f":"IF($E70=0,'Sjekkliste for utfylling'!A105,\"\")","v":69},{"$f":"IF($E70=0,'Sjekkliste for utfylling'!B105,\"\")","v":"Er det påsett at det ikke er gitt konsernbidrag for å redusere skattepliktig inntekt som har oppstått som følge av rentefradragsbegrensningsreglene?"},null,{"$f":"IF($E70=0,'Sjekkliste for utfylling'!L105,\"\")","v":0}]
[{"$f":"'Sjekkliste for utfylling'!A106","v":70},{"$f":"IF('Sjekkliste for utfylling'!I106<>\"\",1,0)","v":0},{"$f":"IF('Sjekkliste for utfylling'!J106<>\"\",1,0)","v":0},{"$f":"IF('Sjekkliste for utfylling'!K106<>\"\",1,0)","v":0},0,{"$f":"IF($E71=0,'Sjekkliste for utfylling'!A106,\"\")","v":70},{"$f":"IF($E71=0,'Sjekkliste for utfylling'!B106,\"\")","v":"Omfatter ytet konsernbidrag i post 252 både beløp som er ført som investering og som disponering av resultatet? "},null,{"$f":"IF($E71=0,'Sjekkliste for utfylling'!L106,\"\")","v":0}]
[{"$f":"'Sjekkliste for utfylling'!A107","v":71},{"$f":"IF('Sjekkliste for utfylling'!I107<>\"\",1,0)","v":0},{"$f":"IF('Sjekkliste for utfylling'!J107<>\"\",1,0)","v":0},{"$f":"IF('Sjekkliste for utfylling'!K107<>\"\",1,0)","v":0},0,{"$f":"IF($E72=0,'Sjekkliste for utfylling'!A107,\"\")","v":71},{"$f":"IF($E72=0,'Sjekkliste for utfylling'!B107,\"\")","v":"Er RF-1206 fylt ut når det er avgitt eller mottatt konsernbidrag (med eller uten skattefradrag)? "},null,{"$f":"IF($E72=0,'Sjekkliste for utfylling'!L107,\"\")","v":0}]
[{"$f":"'Sjekkliste for utfylling'!A108","v":72},{"$f":"IF('Sjekkliste for utfylling'!I108<>\"\",1,0)","v":0},{"$f":"IF('Sjekkliste for utfylling'!J108<>\"\",1,0)","v":0},{"$f":"IF('Sjekkliste for utfylling'!K108<>\"\",1,0)","v":0},0,{"$f":"IF($E73=0,'Sjekkliste for utfylling'!A108,\"\")","v":72},{"$f":"IF($E73=0,'Sjekkliste for utfylling'!B108,\"\")","v":"Hvis det ikke er klar sammenheng mellom postene, den regnskapsmessige behandlingen og RF-1206, er sammenhengen da forklart/avstemt i arbeidspapir? "},null,{"$f":"IF($E73=0,'Sjekkliste for utfylling'!L108,\"\")","v":0}]
[{"$f":"'Sjekkliste for utfylling'!A110","v":73},{"$f":"IF('Sjekkliste for utfylling'!I110<>\"\",1,0)","v":0},{"$f":"IF('Sjekkliste for utfylling'!J110<>\"\",1,0)","v":0},{"$f":"IF('Sjekkliste for utfylling'!K110<>\"\",1,0)","v":0},0,{"$f":"IF($E74=0,'Sjekkliste for utfylling'!A110,\"\")","v":73},{"$f":"IF($E74=0,'Sjekkliste for utfylling'!B110,\"\")","v":"Er det gjort fradrag i post 232 for eventuelt framførbart underskudd? "},null,{"$f":"IF($E74=0,'Sjekkliste for utfylling'!L110,\"\")","v":0}]
[{"$f":"'Sjekkliste for utfylling'!A111","v":74},{"$f":"IF('Sjekkliste for utfylling'!I111<>\"\",1,0)","v":0},{"$f":"IF('Sjekkliste for utfylling'!J111<>\"\",1,0)","v":0},{"$f":"IF('Sjekkliste for utfylling'!K111<>\"\",1,0)","v":0},0,{"$f":"IF($E75=0,'Sjekkliste for utfylling'!A111,\"\")","v":74},{"$f":"IF($E75=0,'Sjekkliste for utfylling'!B111,\"\")","v":"Hvis det kreves fradrag for underskudd til framføring, er det vurdert om retten til fradrag kan ha falt bort, fordi salg av selskapet, fusjon eller lignende i det alt vesentlige er skattemessig motivert? "},null,{"$f":"IF($E75=0,'Sjekkliste for utfylling'!L111,\"\")","v":0}]
[{"$f":"'Sjekkliste for utfylling'!A112","v":75},{"$f":"IF('Sjekkliste for utfylling'!I112<>\"\",1,0)","v":0},{"$f":"IF('Sjekkliste for utfylling'!J112<>\"\",1,0)","v":0},{"$f":"IF('Sjekkliste for utfylling'!K112<>\"\",1,0)","v":0},0,{"$f":"IF($E76=0,'Sjekkliste for utfylling'!A112,\"\")","v":75},{"$f":"IF($E76=0,'Sjekkliste for utfylling'!B112,\"\")","v":"Er det påsett at det ikke er krevd fradrag for underskudd til framføring for å redusere skattepliktig inntekt som har oppstått som følge av rentefradragsbegrensningsreglene? \n(se rettledning i avsnittet Konsernbidrag ovenfor)"},null,{"$f":"IF($E76=0,'Sjekkliste for utfylling'!L112,\"\")","v":0}]
[{"$f":"'Sjekkliste for utfylling'!A113","v":76},{"$f":"IF('Sjekkliste for utfylling'!I113<>\"\",1,0)","v":0},{"$f":"IF('Sjekkliste for utfylling'!J113<>\"\",1,0)","v":0},{"$f":"IF('Sjekkliste for utfylling'!K113<>\"\",1,0)","v":0},0,{"$f":"IF($E77=0,'Sjekkliste for utfylling'!A113,\"\")","v":76},{"$f":"IF($E77=0,'Sjekkliste for utfylling'!B113,\"\")","v":"Er justering rett overført fra RF-1315 Begrensning av rentefradrag post 560?"},null,{"$f":"IF($E77=0,'Sjekkliste for utfylling'!L113,\"\")","v":0}]
[{"$f":"'Sjekkliste for utfylling'!A114","v":77},{"$f":"IF('Sjekkliste for utfylling'!I114<>\"\",1,0)","v":0},{"$f":"IF('Sjekkliste for utfylling'!J114<>\"\",1,0)","v":0},{"$f":"IF('Sjekkliste for utfylling'!K114<>\"\",1,0)","v":0},0,{"$f":"IF($E78=0,'Sjekkliste for utfylling'!A114,\"\")","v":77},{"$f":"IF($E78=0,'Sjekkliste for utfylling'!B114,\"\")","v":"Er det sendt med redegjørelse i vedlegg hvis det er krevd skattemessig fradrag for en post, avsetning eller lignende, og det er tvil om fradragsretten?"},null,{"$f":"IF($E78=0,'Sjekkliste for utfylling'!L114,\"\")","v":0}]
[{"$f":"'Sjekkliste for utfylling'!A116","v":78},{"$f":"IF('Sjekkliste for utfylling'!I116<>\"\",1,0)","v":0},{"$f":"IF('Sjekkliste for utfylling'!J116<>\"\",1,0)","v":0},{"$f":"IF('Sjekkliste for utfylling'!K116<>\"\",1,0)","v":0},0,{"$f":"IF($E79=0,'Sjekkliste for utfylling'!A116,\"\")","v":78},{"$f":"IF($E79=0,'Sjekkliste for utfylling'!B116,\"\")","v":"Stemmer post 280 i oversikt over framført underskudd med skatteoppgjøret for forrige år?"},null,{"$f":"IF($E79=0,'Sjekkliste for utfylling'!L116,\"\")","v":0}]
[{"$f":"'Sjekkliste for utfylling'!A117","v":79},{"$f":"IF('Sjekkliste for utfylling'!I117<>\"\",1,0)","v":0},{"$f":"IF('Sjekkliste for utfylling'!J117<>\"\",1,0)","v":0},{"$f":"IF('Sjekkliste for utfylling'!K117<>\"\",1,0)","v":0},0,{"$f":"IF($E80=0,'Sjekkliste for utfylling'!A117,\"\")","v":79},{"$f":"IF($E80=0,'Sjekkliste for utfylling'!B117,\"\")","v":"Er post 281-283 og 287 riktig fylt ut ved gjeldsforhandling eller underhåndsakkord i år?"},null,{"$f":"IF($E80=0,'Sjekkliste for utfylling'!L117,\"\")","v":0}]
[{"$f":"'Sjekkliste for utfylling'!A118","v":80},{"$f":"IF('Sjekkliste for utfylling'!I118<>\"\",1,0)","v":0},{"$f":"IF('Sjekkliste for utfylling'!J118<>\"\",1,0)","v":0},{"$f":"IF('Sjekkliste for utfylling'!K118<>\"\",1,0)","v":0},0,{"$f":"IF($E81=0,'Sjekkliste for utfylling'!A118,\"\")","v":80},{"$f":"IF($E81=0,'Sjekkliste for utfylling'!B118,\"\")","v":"Er eventuelt underskudd i år tatt inn i post 286?"},null,{"$f":"IF($E81=0,'Sjekkliste for utfylling'!L118,\"\")","v":0}]
[{"$f":"'Sjekkliste for utfylling'!A122","v":81},{"$f":"IF('Sjekkliste for utfylling'!I122<>\"\",1,0)","v":0},{"$f":"IF('Sjekkliste for utfylling'!J122<>\"\",1,0)","v":0},{"$f":"IF('Sjekkliste for utfylling'!K122<>\"\",1,0)","v":0},0,{"$f":"IF($E82=0,'Sjekkliste for utfylling'!A122,\"\")","v":81},{"$f":"IF($E82=0,'Sjekkliste for utfylling'!B122,\"\")","v":"Er beregnet formuesverdi av næringseiendom fra RF-1098 post 288 høyre felt/290 høyre felt riktig overført til skattemeldingen post 401A (norske eiendommer) og/eller 401E (utenlandske utleide eiendommer)?\n\nMerk at selskaper og innretninger som er formuesskattepliktige skal overføre 100 % av markedsverdien hentet fra post 290 venstre felt."},null,{"$f":"IF($E82=0,'Sjekkliste for utfylling'!L122,\"\")","v":0}]
[{"$f":"'Sjekkliste for utfylling'!A124","v":82},{"$f":"IF('Sjekkliste for utfylling'!I124<>\"\",1,0)","v":0},{"$f":"IF('Sjekkliste for utfylling'!J124<>\"\",1,0)","v":0},{"$f":"IF('Sjekkliste for utfylling'!K124<>\"\",1,0)","v":0},0,{"$f":"IF($E83=0,'Sjekkliste for utfylling'!A124,\"\")","v":82},{"$f":"IF($E83=0,'Sjekkliste for utfylling'!B124,\"\")","v":"Er det påsett at rente- og valutaswapavtaler er medtatt til nettoverdien av de gjenstående kontantstrømmene:\n- Netto positive gjenstående kontantstrømmer: verdien fastsettes til det som swapavtalen kan realiseres/avsluttes for ved årsskiftet\n- Netto negative gjenstående kontantstrømmer: forpliktelsen verdsettes til det vedkommende ved årsskiftet måtte betalt for å avslutte/realisere avtalen."},null,{"$f":"IF($E83=0,'Sjekkliste for utfylling'!L124,\"\")","v":0}]
[{"$f":"'Sjekkliste for utfylling'!A125","v":83},{"$f":"IF('Sjekkliste for utfylling'!I125<>\"\",1,0)","v":0},{"$f":"IF('Sjekkliste for utfylling'!J125<>\"\",1,0)","v":0},{"$f":"IF('Sjekkliste for utfylling'!K125<>\"\",1,0)","v":0},0,{"$f":"IF($E84=0,'Sjekkliste for utfylling'!A125,\"\")","v":83},{"$f":"IF($E84=0,'Sjekkliste for utfylling'!B125,\"\")","v":"Er det spesielt påsett at følgende eiendeler ikke er tatt med som skattemessig formue: \n- Goodwill \n- Tidsbegrensede bruksrettigheter (< 99 år), inkl. aktiverte innredningsarbeider utenfor saldosystemet \n- Patent-, forfatter- og kunstnerrettigheter på opphavsmannens hånd (omfatter programvare, mønsterrett, varemerkerett, firmarett) \n- Balanseførte leie-/leasingavtaler \n- Netto pensjonsmidler \n- Utsatt skattefordel \n- Aksjeutbytte fra DS/TS som er inntektsført i avsetningsåret \n- Forskuddsbetalte renter \n- Krav på konsernbidrag for regnskapsåret\n- Til gode skatt (inkl til gode skatt som følge av SkatteFUNN)."},null,{"$f":"IF($E84=0,'Sjekkliste for utfylling'!L125,\"\")","v":0}]
[{"$f":"'Sjekkliste for utfylling'!A126","v":84},{"$f":"IF('Sjekkliste for utfylling'!I126<>\"\",1,0)","v":0},{"$f":"IF('Sjekkliste for utfylling'!J126<>\"\",1,0)","v":0},{"$f":"IF('Sjekkliste for utfylling'!K126<>\"\",1,0)","v":0},0,{"$f":"IF($E85=0,'Sjekkliste for utfylling'!A126,\"\")","v":84},{"$f":"IF($E85=0,'Sjekkliste for utfylling'!B126,\"\")","v":"Er det brukt riktig formuesverdi for eiendeler? Jfr. blant annet følgende unntaksregler fra hovedregelen om at skattemessig verdi er formuesverdien: \n- eventuell omsetningsverdi av forsknings- og utviklingsprosjekter\n- formuesverdier (ikke skattemessige verdier, og ikke «skattetakster» for eiendomsskatt) for fast eiendom \n- formuessverdier for skip \n- regnskapsmessig verdi for fordringer \n- verdi etter løpende avregning for tilvirkningskontrakter (selv om fullført kontrakt er brukt regnskapsmessig), anses som fordringer\n- kursverdi/antatt salgsverdi for verdipapirer \n- aksjer i norske selskaper tas med til formuesverdi pr 31.12. i regnskapsåret i post 461? (I praksis kan en normalt bruke fjorårets verdi for mindre investeringer, men for datterselskap mv må årets verdi normalt brukes) \n- markedsverdi for utenlandske aksjer, men verdsettelse på samme måte som norske aksjer i norske selskaper når det ikke finnes markedsverdi for aksjene."},null,{"$f":"IF($E85=0,'Sjekkliste for utfylling'!L126,\"\")","v":0}]
[{"$f":"'Sjekkliste for utfylling'!A127","v":85},{"$f":"IF('Sjekkliste for utfylling'!I127<>\"\",1,0)","v":0},{"$f":"IF('Sjekkliste for utfylling'!J127<>\"\",1,0)","v":0},{"$f":"IF('Sjekkliste for utfylling'!K127<>\"\",1,0)","v":0},0,{"$f":"IF($E86=0,'Sjekkliste for utfylling'!A127,\"\")","v":85},{"$f":"IF($E86=0,'Sjekkliste for utfylling'!B127,\"\")","v":"Er følgende regnskapsmessige gjeldsposter ikke tatt med som skattemessig gjeld \n- betingede forpliktelser, selv om de er regnskapsført som gjeld, for eksempel avsetninger til erstatningsansvar, regressansvar, gjenkjøpsansvar, oppryddingskostnader, restruktureringskostnader osv (normalt tilsvarende avsetninger som en ikke har kunne kreve fradrag for ved inntektsfastsettelsen) NB! Det gis likevel fradrag for avsetning til garantiansvar \n- utsatt skatt \n- netto pensjonsforpliktelser \n- påløpte renter \n- beregnet skatt for inntektsåret \n- avsatt utbytte \n- avsatt konsernbidrag for i år \n- leasinggjeld ved balanseførte leieavtaler."},null,{"$f":"IF($E86=0,'Sjekkliste for utfylling'!L127,\"\")","v":0}]
[{"$f":"'Sjekkliste for utfylling'!A129","v":86},{"$f":"IF('Sjekkliste for utfylling'!I129<>\"\",1,0)","v":0},{"$f":"IF('Sjekkliste for utfylling'!J129<>\"\",1,0)","v":0},{"$f":"IF('Sjekkliste for utfylling'!K129<>\"\",1,0)","v":0},0,{"$f":"IF($E87=0,'Sjekkliste for utfylling'!A129,\"\")","v":86},{"$f":"IF($E87=0,'Sjekkliste for utfylling'!B129,\"\")","v":"Er det foretatt en avstemming mellom regnskapsmessig egenkapital og skattemessig nettoformue? "},null,{"$f":"IF($E87=0,'Sjekkliste for utfylling'!L129,\"\")","v":0}]
[{"$f":"'Sjekkliste for utfylling'!A130","v":87},{"$f":"IF('Sjekkliste for utfylling'!I130<>\"\",1,0)","v":0},{"$f":"IF('Sjekkliste for utfylling'!J130<>\"\",1,0)","v":0},{"$f":"IF('Sjekkliste for utfylling'!K130<>\"\",1,0)","v":0},0,{"$f":"IF($E88=0,'Sjekkliste for utfylling'!A130,\"\")","v":87},{"$f":"IF($E88=0,'Sjekkliste for utfylling'!B130,\"\")","v":"Er egne aksjer trukket fra i totalt antall aksjer ved beregning av skattemessig formuesverdi pr aksje, og er antall aksjer i samsvar med aksjonærregisteroppgaven? "},null,{"$f":"IF($E88=0,'Sjekkliste for utfylling'!L130,\"\")","v":0}]
[{"$f":"'Sjekkliste for utfylling'!A132","v":88},{"$f":"IF('Sjekkliste for utfylling'!I132<>\"\",1,0)","v":0},{"$f":"IF('Sjekkliste for utfylling'!J132<>\"\",1,0)","v":0},{"$f":"IF('Sjekkliste for utfylling'!K132<>\"\",1,0)","v":0},0,{"$f":"IF($E89=0,'Sjekkliste for utfylling'!A132,\"\")","v":88},{"$f":"IF($E89=0,'Sjekkliste for utfylling'!B132,\"\")","v":"Er det kontrollert at verdsettingsrabatt på 25% for næringseiendommer vurdert etter hhv utleieverdi og markedsverdi er korrekt lagt inn i post 506 a1 og a2?"},null,{"$f":"IF($E89=0,'Sjekkliste for utfylling'!L132,\"\")","v":0}]
[{"$f":"'Sjekkliste for utfylling'!A133","v":89},{"$f":"IF('Sjekkliste for utfylling'!I133<>\"\",1,0)","v":0},{"$f":"IF('Sjekkliste for utfylling'!J133<>\"\",1,0)","v":0},{"$f":"IF('Sjekkliste for utfylling'!K133<>\"\",1,0)","v":0},0,{"$f":"IF($E90=0,'Sjekkliste for utfylling'!A133,\"\")","v":89},{"$f":"IF($E90=0,'Sjekkliste for utfylling'!B133,\"\")","v":"Er det kontrollert at verdsettingsrabatt på 10% for næringseiendommer vurdert etter markedsverdi er korrekt lagt inn i post 506 a2?"},null,{"$f":"IF($E90=0,'Sjekkliste for utfylling'!L133,\"\")","v":0}]
[{"$f":"'Sjekkliste for utfylling'!A134","v":90},{"$f":"IF('Sjekkliste for utfylling'!I134<>\"\",1,0)","v":0},{"$f":"IF('Sjekkliste for utfylling'!J134<>\"\",1,0)","v":0},{"$f":"IF('Sjekkliste for utfylling'!K134<>\"\",1,0)","v":0},0,{"$f":"IF($E91=0,'Sjekkliste for utfylling'!A134,\"\")","v":90},{"$f":"IF($E91=0,'Sjekkliste for utfylling'!B134,\"\")","v":"Er det lagt inn riktig verdsettelsesrabatt på følgende eiendeler:\n-Boliger og flerboligbygninger - 10%\n- Jord- og skogbrukseiendom - 25%\n-Aksjer og aksjedel av andel i verdipapirfond - 25%\n-Andeler i selskap med deltakerfastsetting - 25%\n-Driftsmidler unntatt faste eiendommer - 25%"},null,{"$f":"IF($E91=0,'Sjekkliste for utfylling'!L134,\"\")","v":0}]
[{"$f":"'Sjekkliste for utfylling'!A135","v":91},{"$f":"IF('Sjekkliste for utfylling'!I135<>\"\",1,0)","v":0},{"$f":"IF('Sjekkliste for utfylling'!J135<>\"\",1,0)","v":0},{"$f":"IF('Sjekkliste for utfylling'!K135<>\"\",1,0)","v":0},0,{"$f":"IF($E92=0,'Sjekkliste for utfylling'!A135,\"\")","v":91},{"$f":"IF($E92=0,'Sjekkliste for utfylling'!B135,\"\")","v":"Dersom foretaket har eiendeler med verdsettingsrabatt i post 506, er det påsett at reduksjon av gjelden på grunn av verdsettingsrabatten er korrekt beregnet:\n- Gjeld før reduksjon er korrekt overført fra post 516 (446)\n- Verdsettingsrabatt er korrekt overført fra post 506f\n- Bruttoformue før verdsettingsrabatt er korrekt overført fra post 505\n-Evt. skattefri formue i utlandet er lagt til i beregningen"},null,{"$f":"IF($E92=0,'Sjekkliste for utfylling'!L135,\"\")","v":0}]
[{"$f":"'Sjekkliste for utfylling'!A146","v":92},{"$f":"IF('Sjekkliste for utfylling'!I146<>\"\",1,0)","v":0},{"$f":"IF('Sjekkliste for utfylling'!J146<>\"\",1,0)","v":0},{"$f":"IF('Sjekkliste for utfylling'!K146<>\"\",1,0)","v":0},0,{"$f":"IF($E93=0,'Sjekkliste for utfylling'!A146,\"\")","v":92},{"$f":"IF($E93=0,'Sjekkliste for utfylling'!B146,\"\")","v":"Er det kontrollert om den beregnede utleieverdien er så høy at det kan være aktuelt å kreve reduksjon pga \"sikkerhetsventilen\" (78 % av antatt markedsverdi)?"},null,{"$f":"IF($E93=0,'Sjekkliste for utfylling'!L146,\"\")","v":0}]
[{"$f":"'Sjekkliste for utfylling'!A148","v":93},{"$f":"IF('Sjekkliste for utfylling'!I148<>\"\",1,0)","v":0},{"$f":"IF('Sjekkliste for utfylling'!J148<>\"\",1,0)","v":0},{"$f":"IF('Sjekkliste for utfylling'!K148<>\"\",1,0)","v":0},0,{"$f":"IF($E94=0,'Sjekkliste for utfylling'!A148,\"\")","v":93},{"$f":"IF($E94=0,'Sjekkliste for utfylling'!B148,\"\")","v":"Er skjemaet fylt ut hvis det er avgitt konsernbidrag med eller uten skattefradrag?"},null,{"$f":"IF($E94=0,'Sjekkliste for utfylling'!L148,\"\")","v":0}]
[{"$f":"'Sjekkliste for utfylling'!A150","v":94},{"$f":"IF('Sjekkliste for utfylling'!I150<>\"\",1,0)","v":0},{"$f":"IF('Sjekkliste for utfylling'!J150<>\"\",1,0)","v":0},{"$f":"IF('Sjekkliste for utfylling'!K150<>\"\",1,0)","v":0},0,{"$f":"IF($E95=0,'Sjekkliste for utfylling'!A150,\"\")","v":94},{"$f":"IF($E95=0,'Sjekkliste for utfylling'!B150,\"\")","v":"Avstemming av egenkapital \nStemmer egenkapital pr 31.12 i fjor (post 100) og i år (post 150) med egenkapital i næringsoppgaven (post 9450)? "},null,{"$f":"IF($E95=0,'Sjekkliste for utfylling'!L150,\"\")","v":0}]
[{"$f":"'Sjekkliste for utfylling'!A151","v":95},{"$f":"IF('Sjekkliste for utfylling'!I151<>\"\",1,0)","v":0},{"$f":"IF('Sjekkliste for utfylling'!J151<>\"\",1,0)","v":0},{"$f":"IF('Sjekkliste for utfylling'!K151<>\"\",1,0)","v":0},0,{"$f":"IF($E96=0,'Sjekkliste for utfylling'!A151,\"\")","v":95},{"$f":"IF($E96=0,'Sjekkliste for utfylling'!B151,\"\")","v":"Er nettovirkningen av prinsippendringer og korreksjoner med fradrag for skatt ført inn i post 100B, og spesifisert på side 2?"},null,{"$f":"IF($E96=0,'Sjekkliste for utfylling'!L151,\"\")","v":0}]
[{"$f":"'Sjekkliste for utfylling'!A152","v":96},{"$f":"IF('Sjekkliste for utfylling'!I152<>\"\",1,0)","v":0},{"$f":"IF('Sjekkliste for utfylling'!J152<>\"\",1,0)","v":0},{"$f":"IF('Sjekkliste for utfylling'!K152<>\"\",1,0)","v":0},{"$f":"SUM(B97:D97)","v":0},{"$f":"IF($E97=0,'Sjekkliste for utfylling'!A152,\"\")","v":96},{"$f":"IF($E97=0,'Sjekkliste for utfylling'!B152,\"\")","v":"Er bare mottatt og avgitt konsernbidrag (etter skatt) som er ført mot egenkapitalen tatt med i post 103 og 104? "},null,{"$f":"IF($E97=0,'Sjekkliste for utfylling'!L152,\"\")","v":0}]
[{"$f":"'Sjekkliste for utfylling'!A154","v":97},{"$f":"IF('Sjekkliste for utfylling'!I154<>\"\",1,0)","v":0},{"$f":"IF('Sjekkliste for utfylling'!J154<>\"\",1,0)","v":0},{"$f":"IF('Sjekkliste for utfylling'!K154<>\"\",1,0)","v":0},{"$f":"SUM(B98:D98)","v":0},{"$f":"IF($E98=0,'Sjekkliste for utfylling'!A154,\"\")","v":97},{"$f":"IF($E98=0,'Sjekkliste for utfylling'!B154,\"\")","v":"Ved anskaffelser/påkostinger i saldogruppe d, er det kontrollert om anskaffelsen kan tas med i grunnlaget for 10% startavskrivning for 2020?"},null,{"$f":"IF($E98=0,'Sjekkliste for utfylling'!L154,\"\")","v":0}]
[{"$f":"'Sjekkliste for utfylling'!A155","v":98},{"$f":"IF('Sjekkliste for utfylling'!I155<>\"\",1,0)","v":0},{"$f":"IF('Sjekkliste for utfylling'!J155<>\"\",1,0)","v":0},{"$f":"IF('Sjekkliste for utfylling'!K155<>\"\",1,0)","v":0},0,{"$f":"IF($E99=0,'Sjekkliste for utfylling'!A155,\"\")","v":98},{"$f":"IF($E99=0,'Sjekkliste for utfylling'!B155,\"\")","v":"Er det bare ført inn ett driftsmiddel pr saldo i saldogruppe e-i? "},null,{"$f":"IF($E99=0,'Sjekkliste for utfylling'!L155,\"\")","v":0}]
[{"$f":"'Sjekkliste for utfylling'!A156","v":99},{"$f":"IF('Sjekkliste for utfylling'!I156<>\"\",1,0)","v":0},{"$f":"IF('Sjekkliste for utfylling'!J156<>\"\",1,0)","v":0},{"$f":"IF('Sjekkliste for utfylling'!K156<>\"\",1,0)","v":0},0,{"$f":"IF($E100=0,'Sjekkliste for utfylling'!A156,\"\")","v":99},{"$f":"IF($E100=0,'Sjekkliste for utfylling'!B156,\"\")","v":"Er driftsmidler i saldogruppe j – faste tekniske installasjoner - fordelt med et saldoskjema pr bygning? "},null,{"$f":"IF($E100=0,'Sjekkliste for utfylling'!L156,\"\")","v":0}]
[{"$f":"'Sjekkliste for utfylling'!A157","v":100},{"$f":"IF('Sjekkliste for utfylling'!I157<>\"\",1,0)","v":0},{"$f":"IF('Sjekkliste for utfylling'!J157<>\"\",1,0)","v":0},{"$f":"IF('Sjekkliste for utfylling'!K157<>\"\",1,0)","v":0},0,{"$f":"IF($E101=0,'Sjekkliste for utfylling'!A157,\"\")","v":100},{"$f":"IF($E101=0,'Sjekkliste for utfylling'!B157,\"\")","v":"Er avskrivninger stoppet ved «nedre grense for avskrivninger» for forretningsbygg anskaffet før 01.01.1984? "},null,{"$f":"IF($E101=0,'Sjekkliste for utfylling'!L157,\"\")","v":0}]
[{"$f":"'Sjekkliste for utfylling'!A159","v":101},{"$f":"IF('Sjekkliste for utfylling'!I159<>\"\",1,0)","v":0},{"$f":"IF('Sjekkliste for utfylling'!J159<>\"\",1,0)","v":0},{"$f":"IF('Sjekkliste for utfylling'!K159<>\"\",1,0)","v":0},0,{"$f":"IF($E102=0,'Sjekkliste for utfylling'!A159,\"\")","v":101},{"$f":"IF($E102=0,'Sjekkliste for utfylling'!B159,\"\")","v":"Er årets tilgang og avgang korrekt overført fra saldoskjemaer og gevinst-/tapsberegninger for driftsmidler (inkludert immaterielle eiendeler) som ikke inngår i saldosystemet? "},null,{"$f":"IF($E102=0,'Sjekkliste for utfylling'!L159,\"\")","v":0}]
[{"$f":"'Sjekkliste for utfylling'!A161","v":102},{"$f":"IF('Sjekkliste for utfylling'!I161<>\"\",1,0)","v":0},{"$f":"IF('Sjekkliste for utfylling'!J161<>\"\",1,0)","v":0},{"$f":"IF('Sjekkliste for utfylling'!K161<>\"\",1,0)","v":0},0,{"$f":"IF($E103=0,'Sjekkliste for utfylling'!A161,\"\")","v":102},{"$f":"IF($E103=0,'Sjekkliste for utfylling'!B161,\"\")","v":"Dersom selskapet har skattepliktige gevister eller fradragsberettigede tap på aksjer eller andre finansielle produkter, har mottatt skattepliktig utbytte eller renter fra obligasjoner og renteinntektsandel fra verdipapirfondsandeler - er skjemaet korrekt fylt ut og vedlagt skattemeldingen?"},null,{"$f":"IF($E103=0,'Sjekkliste for utfylling'!L161,\"\")","v":0}]
[{"$f":"'Sjekkliste for utfylling'!A163","v":103},{"$f":"IF('Sjekkliste for utfylling'!I163<>\"\",1,0)","v":0},{"$f":"IF('Sjekkliste for utfylling'!J163<>\"\",1,0)","v":0},{"$f":"IF('Sjekkliste for utfylling'!K163<>\"\",1,0)","v":0},0,{"$f":"IF($E104=0,'Sjekkliste for utfylling'!A163,\"\")","v":103},{"$f":"IF($E104=0,'Sjekkliste for utfylling'!B163,\"\")","v":"Er skjemaet riktig fylt ut? "},null,{"$f":"IF($E104=0,'Sjekkliste for utfylling'!L163,\"\")","v":0}]
[{"$f":"'Sjekkliste for utfylling'!A165","v":104},{"$f":"IF('Sjekkliste for utfylling'!I165<>\"\",1,0)","v":0},{"$f":"IF('Sjekkliste for utfylling'!J165<>\"\",1,0)","v":0},{"$f":"IF('Sjekkliste for utfylling'!K165<>\"\",1,0)","v":0},0,{"$f":"IF($E105=0,'Sjekkliste for utfylling'!A165,\"\")","v":104},{"$f":"IF($E105=0,'Sjekkliste for utfylling'!B165,\"\")","v":"Ligger nødvendig dokumentasjon med som vedlegg? "},null,{"$f":"IF($E105=0,'Sjekkliste for utfylling'!L165,\"\")","v":0}]
[{"$f":"'Sjekkliste for utfylling'!A167","v":105},{"$f":"IF('Sjekkliste for utfylling'!I167<>\"\",1,0)","v":0},{"$f":"IF('Sjekkliste for utfylling'!J167<>\"\",1,0)","v":0},{"$f":"IF('Sjekkliste for utfylling'!K167<>\"\",1,0)","v":0},0,{"$f":"IF($E106=0,'Sjekkliste for utfylling'!A167,\"\")","v":105},{"$f":"IF($E106=0,'Sjekkliste for utfylling'!B167,\"\")","v":"Stemmer post 10.1 ubenyttet framført kreditfradrag med med fjorårets post 10.5? "},null,{"$f":"IF($E106=0,'Sjekkliste for utfylling'!L167,\"\")","v":0}]
[{"$f":"'Sjekkliste for utfylling'!A168","v":106},{"$f":"IF('Sjekkliste for utfylling'!I168<>\"\",1,0)","v":0},{"$f":"IF('Sjekkliste for utfylling'!J168<>\"\",1,0)","v":0},{"$f":"IF('Sjekkliste for utfylling'!K168<>\"\",1,0)","v":0},0,{"$f":"IF($E107=0,'Sjekkliste for utfylling'!A168,\"\")","v":106},{"$f":"IF($E107=0,'Sjekkliste for utfylling'!B168,\"\")","v":"Er det gjort fradrag for andel av underliggende selskapsskatt for i år i post 10.2?"},null,{"$f":"IF($E107=0,'Sjekkliste for utfylling'!L168,\"\")","v":0}]
[{"$f":"'Sjekkliste for utfylling'!A169","v":107},{"$f":"IF('Sjekkliste for utfylling'!I169<>\"\",1,0)","v":0},{"$f":"IF('Sjekkliste for utfylling'!J169<>\"\",1,0)","v":0},{"$f":"IF('Sjekkliste for utfylling'!K169<>\"\",1,0)","v":0},0,{"$f":"IF($E108=0,'Sjekkliste for utfylling'!A169,\"\")","v":107},{"$f":"IF($E108=0,'Sjekkliste for utfylling'!B169,\"\")","v":"Er det passet på å kreve anvendelse av skattefradrag i år, og er beløpet i så fall ført inn i post 10.4?"},null,{"$f":"IF($E108=0,'Sjekkliste for utfylling'!L169,\"\")","v":0}]
[{"$f":"'Sjekkliste for utfylling'!A171","v":108},{"$f":"IF('Sjekkliste for utfylling'!I171<>\"\",1,0)","v":0},{"$f":"IF('Sjekkliste for utfylling'!J171<>\"\",1,0)","v":0},{"$f":"IF('Sjekkliste for utfylling'!K171<>\"\",1,0)","v":0},0,{"$f":"IF($E109=0,'Sjekkliste for utfylling'!A171,\"\")","v":108},{"$f":"IF($E109=0,'Sjekkliste for utfylling'!B171,\"\")","v":"Er skjemaet fylt ut dersom selskapet kommer inn under en av følgende kriterier:\n- Selskap i konsern\n- Selskap utenfor konsern som enten\n  - har netto rentekostnader som overstiger kr 5.000.000\n  - fremfører rentekostnader som er avskåret fra tidligere år"},null,{"$f":"IF($E109=0,'Sjekkliste for utfylling'!L171,\"\")","v":0}]
[{"$f":"'Sjekkliste for utfylling'!A174","v":109},{"$f":"IF('Sjekkliste for utfylling'!I174<>\"\",1,0)","v":0},{"$f":"IF('Sjekkliste for utfylling'!J174<>\"\",1,0)","v":0},{"$f":"IF('Sjekkliste for utfylling'!K174<>\"\",1,0)","v":0},0,{"$f":"IF($E110=0,'Sjekkliste for utfylling'!A174,\"\")","v":109},{"$f":"IF($E110=0,'Sjekkliste for utfylling'!B174,\"\")","v":"Dersom selskapet benytter seg av en av unntaksreglene, er det påsett at selskapet også har fylt ut RF-1509 Unntak for rentebegrensning for selskap mv. i konsern?"},null,{"$f":"IF($E110=0,'Sjekkliste for utfylling'!L174,\"\")","v":0}]
[{"$f":"'Sjekkliste for utfylling'!A176","v":110},{"$f":"IF('Sjekkliste for utfylling'!I176<>\"\",1,0)","v":0},{"$f":"IF('Sjekkliste for utfylling'!J176<>\"\",1,0)","v":0},{"$f":"IF('Sjekkliste for utfylling'!K176<>\"\",1,0)","v":0},0,{"$f":"IF($E111=0,'Sjekkliste for utfylling'!A176,\"\")","v":110},{"$f":"IF($E111=0,'Sjekkliste for utfylling'!B176,\"\")","v":"Er rentekostnader til andre enn nærstående tatt med dersom nærstående har stilt sikkerhet for gjelden, eller nærstående har fordring på långiveren/kreditoren og fordringen har sammenheng med gjelden (\"back-to-back\")?"},null,{"$f":"IF($E111=0,'Sjekkliste for utfylling'!L176,\"\")","v":0}]
[{"$f":"'Sjekkliste for utfylling'!A177","v":111},{"$f":"IF('Sjekkliste for utfylling'!I177<>\"\",1,0)","v":0},{"$f":"IF('Sjekkliste for utfylling'!J177<>\"\",1,0)","v":0},{"$f":"IF('Sjekkliste for utfylling'!K177<>\"\",1,0)","v":0},0,{"$f":"IF($E112=0,'Sjekkliste for utfylling'!A177,\"\")","v":111},{"$f":"IF($E112=0,'Sjekkliste for utfylling'!B177,\"\")","v":"Dersom selskapet har kostnader til garantiprovisjon, er det kontrollert om denne provisjonen skal tas med i beregningen av rentekostnad til nærstående?"},null,{"$f":"IF($E112=0,'Sjekkliste for utfylling'!L177,\"\")","v":0}]
[{"$f":"'Sjekkliste for utfylling'!A179","v":112},{"$f":"IF('Sjekkliste for utfylling'!I179<>\"\",1,0)","v":0},{"$f":"IF('Sjekkliste for utfylling'!J179<>\"\",1,0)","v":0},{"$f":"IF('Sjekkliste for utfylling'!K179<>\"\",1,0)","v":0},0,{"$f":"IF($E113=0,'Sjekkliste for utfylling'!A179,\"\")","v":112},{"$f":"IF($E113=0,'Sjekkliste for utfylling'!B179,\"\")","v":"Er det påsett at begrenset rentefradrag til framføring er rett overført til RF-1217 Forskjellsskjema post 157?"},null,{"$f":"IF($E113=0,'Sjekkliste for utfylling'!L179,\"\")","v":0}]
[{"$f":"'Sjekkliste for utfylling'!A181","v":113},{"$f":"IF('Sjekkliste for utfylling'!I181<>\"\",1,0)","v":0},{"$f":"IF('Sjekkliste for utfylling'!J181<>\"\",1,0)","v":0},{"$f":"IF('Sjekkliste for utfylling'!K181<>\"\",1,0)","v":0},0,{"$f":"IF($E114=0,'Sjekkliste for utfylling'!A181,\"\")","v":113},{"$f":"IF($E114=0,'Sjekkliste for utfylling'!B181,\"\")","v":"Er skjemaet inkludert i likningspapirene dersom dette er relevant? \nNB! Skjemaet skal ikke leveres inn for arbeidsgivers bil som brukes av arbeidstaker når standard fordel er innberettet på lønns- og trekkoppgave. "},null,{"$f":"IF($E114=0,'Sjekkliste for utfylling'!L181,\"\")","v":0}]
[{"$f":"'Sjekkliste for utfylling'!A183","v":114},{"$f":"IF('Sjekkliste for utfylling'!I183<>\"\",1,0)","v":0},{"$f":"IF('Sjekkliste for utfylling'!J183<>\"\",1,0)","v":0},{"$f":"IF('Sjekkliste for utfylling'!K183<>\"\",1,0)","v":0},0,{"$f":"IF($E115=0,'Sjekkliste for utfylling'!A183,\"\")","v":114},{"$f":"IF($E115=0,'Sjekkliste for utfylling'!B183,\"\")","v":"Er post 120 i RF-1022 avstemt mot faktisk innberettet oppgavepliktige og arbeidsgiveravgiftspliktige ytelser (hentes fra A07 Avstemmingsinformasjon fra Altinn)?"},null,{"$f":"IF($E115=0,'Sjekkliste for utfylling'!L183,\"\")","v":0}]
[{"$f":"'Sjekkliste for utfylling'!A185","v":115},{"$f":"IF('Sjekkliste for utfylling'!I185<>\"\",1,0)","v":0},{"$f":"IF('Sjekkliste for utfylling'!J185<>\"\",1,0)","v":0},{"$f":"IF('Sjekkliste for utfylling'!K185<>\"\",1,0)","v":0},0,{"$f":"IF($E116=0,'Sjekkliste for utfylling'!A185,\"\")","v":115},{"$f":"IF($E116=0,'Sjekkliste for utfylling'!B185,\"\")","v":"Dersom selskapet er deltaker i selskap med deltakerfastsetting, er opplysningene fra selskapets deltakermelding RF-1233 rett overført til deltakerens melding RF-1221?"},null,{"$f":"IF($E116=0,'Sjekkliste for utfylling'!L185,\"\")","v":0}]
[{"$f":"'Sjekkliste for utfylling'!A186","v":116},{"$f":"IF('Sjekkliste for utfylling'!I186<>\"\",1,0)","v":0},{"$f":"IF('Sjekkliste for utfylling'!J186<>\"\",1,0)","v":0},{"$f":"IF('Sjekkliste for utfylling'!K186<>\"\",1,0)","v":0},0,{"$f":"IF($E117=0,'Sjekkliste for utfylling'!A186,\"\")","v":116},{"$f":"IF($E117=0,'Sjekkliste for utfylling'!B186,\"\")","v":"Har deltakeren gått igjennom opplysningene i RF-1233 og sagt seg enig i disse opplysningene?"},null,{"$f":"IF($E117=0,'Sjekkliste for utfylling'!L186,\"\")","v":0}]
[{"$f":"'Sjekkliste for utfylling'!A188","v":117},{"$f":"IF('Sjekkliste for utfylling'!I188<>\"\",1,0)","v":0},{"$f":"IF('Sjekkliste for utfylling'!J188<>\"\",1,0)","v":0},{"$f":"IF('Sjekkliste for utfylling'!K188<>\"\",1,0)","v":0},0,{"$f":"IF($E118=0,'Sjekkliste for utfylling'!A188,\"\")","v":117},{"$f":"IF($E118=0,'Sjekkliste for utfylling'!B188,\"\")","v":"For foretak som driver overnattings- eller serveringssted som serverer øl, vin eller brennevin, er RF-1122 fylt ut for hvert sted?"},null,{"$f":"IF($E118=0,'Sjekkliste for utfylling'!L188,\"\")","v":0}]
[{"$f":"'Sjekkliste for utfylling'!A190","v":118},{"$f":"IF('Sjekkliste for utfylling'!I190<>\"\",1,0)","v":0},{"$f":"IF('Sjekkliste for utfylling'!J190<>\"\",1,0)","v":0},{"$f":"IF('Sjekkliste for utfylling'!K190<>\"\",1,0)","v":0},0,{"$f":"IF($E119=0,'Sjekkliste for utfylling'!A190,\"\")","v":118},{"$f":"IF($E119=0,'Sjekkliste for utfylling'!B190,\"\")","v":"Er eventuelle andre meldinger som kreves av skattemyndighetene (for eksempel i spesielle bransjer) utarbeidet og riktig fylt ut? "},null,{"$f":"IF($E119=0,'Sjekkliste for utfylling'!L190,\"\")","v":0}]
[{"$f":"'Sjekkliste for utfylling'!A191","v":119},{"$f":"IF('Sjekkliste for utfylling'!I191<>\"\",1,0)","v":0},{"$f":"IF('Sjekkliste for utfylling'!J191<>\"\",1,0)","v":0},{"$f":"IF('Sjekkliste for utfylling'!K191<>\"\",1,0)","v":0},0,{"$f":"IF($E120=0,'Sjekkliste for utfylling'!A191,\"\")","v":119},{"$f":"IF($E120=0,'Sjekkliste for utfylling'!B191,\"\")","v":"Er alle skjemaer som ble sendt inn i fjor også sendt inn i år? Hvis ikke, angi hvilket skjema som ikke er sendt inn i år og årsaken. "},null,{"$f":"IF($E120=0,'Sjekkliste for utfylling'!L191,\"\")","v":0}]
[{"$f":"'Sjekkliste for utfylling'!A194","v":120},{"$f":"IF('Sjekkliste for utfylling'!I194<>\"\",1,0)","v":0},{"$f":"IF('Sjekkliste for utfylling'!J194<>\"\",1,0)","v":0},{"$f":"IF('Sjekkliste for utfylling'!K194<>\"\",1,0)","v":0},0,{"$f":"IF($E121=0,'Sjekkliste for utfylling'!A194,\"\")","v":120},{"$f":"IF($E121=0,'Sjekkliste for utfylling'!B194,\"\")","v":"Side 1\nEr overskudd/underskudd i post 1105 riktig overført fra næringsoppgaven?"},null,{"$f":"IF($E121=0,'Sjekkliste for utfylling'!L194,\"\")","v":0}]
[{"$f":"'Sjekkliste for utfylling'!A195","v":121},{"$f":"IF('Sjekkliste for utfylling'!I195<>\"\",1,0)","v":0},{"$f":"IF('Sjekkliste for utfylling'!J195<>\"\",1,0)","v":0},{"$f":"IF('Sjekkliste for utfylling'!K195<>\"\",1,0)","v":0},0,{"$f":"IF($E122=0,'Sjekkliste for utfylling'!A195,\"\")","v":121},{"$f":"IF($E122=0,'Sjekkliste for utfylling'!B195,\"\")","v":"Er justering rett overført fra RF-1315 Begrensning av rentefradrag mellom nærstående post 640?"},null,{"$f":"IF($E122=0,'Sjekkliste for utfylling'!L195,\"\")","v":0}]
[{"$f":"'Sjekkliste for utfylling'!A196","v":122},{"$f":"IF('Sjekkliste for utfylling'!I196<>\"\",1,0)","v":0},{"$f":"IF('Sjekkliste for utfylling'!J196<>\"\",1,0)","v":0},{"$f":"IF('Sjekkliste for utfylling'!K196<>\"\",1,0)","v":0},0,{"$f":"IF($E123=0,'Sjekkliste for utfylling'!A196,\"\")","v":122},{"$f":"IF($E123=0,'Sjekkliste for utfylling'!B196,\"\")","v":"Side 2\nSkattemessig verdi \nStemmer skattemessig egenkapital med egenkapital ifølge næringsoppgaven korrigert for midlertidige forskjeller pr 31.12? Hvis ikke, forklar årsaken. "},null,{"$f":"IF($E123=0,'Sjekkliste for utfylling'!L196,\"\")","v":0}]
[{"$f":"'Sjekkliste for utfylling'!A197","v":123},{"$f":"IF('Sjekkliste for utfylling'!I197<>\"\",1,0)","v":0},{"$f":"IF('Sjekkliste for utfylling'!J197<>\"\",1,0)","v":0},{"$f":"IF('Sjekkliste for utfylling'!K197<>\"\",1,0)","v":0},0,{"$f":"IF($E124=0,'Sjekkliste for utfylling'!A197,\"\")","v":123},{"$f":"IF($E124=0,'Sjekkliste for utfylling'!B197,\"\")","v":"Formuesverdi \nEr det brukt formuesverdier i stedet for skattemessige verdier i kolonne II der det er aktuelt (for eksempel for aksjer, bygninger, bygg under oppføring og skip)? Jf spørsmålene til side 4 og 5 på skattemeldingen til AS ovenfor."},null,{"$f":"IF($E124=0,'Sjekkliste for utfylling'!L197,\"\")","v":0}]
[{"$f":"'Sjekkliste for utfylling'!A198","v":124},{"$f":"IF('Sjekkliste for utfylling'!I198<>\"\",1,0)","v":0},{"$f":"IF('Sjekkliste for utfylling'!J198<>\"\",1,0)","v":0},{"$f":"IF('Sjekkliste for utfylling'!K198<>\"\",1,0)","v":0},0,{"$f":"IF($E125=0,'Sjekkliste for utfylling'!A198,\"\")","v":124},{"$f":"IF($E125=0,'Sjekkliste for utfylling'!B198,\"\")","v":"Er det påsett at formuesverdi på næringseiendom er rett overført fra RF-1098 post 288/290?"},null,{"$f":"IF($E125=0,'Sjekkliste for utfylling'!L198,\"\")","v":0}]
[{"$f":"'Sjekkliste for utfylling'!A199","v":125},{"$f":"IF('Sjekkliste for utfylling'!I199<>\"\",1,0)","v":0},{"$f":"IF('Sjekkliste for utfylling'!J199<>\"\",1,0)","v":0},{"$f":"IF('Sjekkliste for utfylling'!K199<>\"\",1,0)","v":0},0,{"$f":"IF($E126=0,'Sjekkliste for utfylling'!A199,\"\")","v":125},{"$f":"IF($E126=0,'Sjekkliste for utfylling'!B199,\"\")","v":"Er poster som ikke er skattemessig formue/gjeld holdt utenfor beregningen av formuesverdi? Jf spørsmålene til side 4 på skattemeldingen for AS ovenfor."},null,{"$f":"IF($E126=0,'Sjekkliste for utfylling'!L199,\"\")","v":0}]
[{"$f":"'Sjekkliste for utfylling'!A200","v":126},{"$f":"IF('Sjekkliste for utfylling'!I200<>\"\",1,0)","v":0},{"$f":"IF('Sjekkliste for utfylling'!J200<>\"\",1,0)","v":0},{"$f":"IF('Sjekkliste for utfylling'!K200<>\"\",1,0)","v":0},0,{"$f":"IF($E127=0,'Sjekkliste for utfylling'!A200,\"\")","v":126},{"$f":"IF($E127=0,'Sjekkliste for utfylling'!B200,\"\")","v":"Side 3\nEr summene i samsvar med side 2 og næringsoppgaven?"},null,{"$f":"IF($E127=0,'Sjekkliste for utfylling'!L200,\"\")","v":0}]
[{"$f":"'Sjekkliste for utfylling'!A202","v":127},{"$f":"IF('Sjekkliste for utfylling'!I202<>\"\",1,0)","v":0},{"$f":"IF('Sjekkliste for utfylling'!J202<>\"\",1,0)","v":0},{"$f":"IF('Sjekkliste for utfylling'!K202<>\"\",1,0)","v":0},0,{"$f":"IF($E128=0,'Sjekkliste for utfylling'!A202,\"\")","v":127},{"$f":"IF($E128=0,'Sjekkliste for utfylling'!B202,\"\")","v":"Er det utarbeidet ett skjema pr deltaker, også for deltakere som har solgt sin andel i året, slik at sum formue og inntekt ifølge deltakermeldingene stemmer med selskapsmeldingen? "},null,{"$f":"IF($E128=0,'Sjekkliste for utfylling'!L202,\"\")","v":0}]
[{"$f":"'Sjekkliste for utfylling'!A203","v":128},{"$f":"IF('Sjekkliste for utfylling'!I203<>\"\",1,0)","v":0},{"$f":"IF('Sjekkliste for utfylling'!J203<>\"\",1,0)","v":0},{"$f":"IF('Sjekkliste for utfylling'!K203<>\"\",1,0)","v":0},{"$f":"SUM(B129:D129)","v":0},{"$f":"IF($E129=0,'Sjekkliste for utfylling'!A203,\"\")","v":128},{"$f":"IF($E129=0,'Sjekkliste for utfylling'!B203,\"\")","v":"Er skjemaet for øvrig riktig fylt ut, og i samsvar med opplysningene på selskapsmeldingen side 3? "},null,{"$f":"IF($E129=0,'Sjekkliste for utfylling'!L203,\"\")","v":0}]
[{"$f":"'Sjekkliste for utfylling'!A205","v":129},{"$f":"IF('Sjekkliste for utfylling'!I205<>\"\",1,0)","v":0},{"$f":"IF('Sjekkliste for utfylling'!J205<>\"\",1,0)","v":0},{"$f":"IF('Sjekkliste for utfylling'!K205<>\"\",1,0)","v":0},0,{"$f":"IF($E130=0,'Sjekkliste for utfylling'!A205,\"\")","v":129},{"$f":"IF($E130=0,'Sjekkliste for utfylling'!B205,\"\")","v":"Stemmer egenkapital pr 31.12 i fjor (post 300) og i år (post 350) med egenkapital i næringsoppgaven (post 9450)? "},null,{"$f":"IF($E130=0,'Sjekkliste for utfylling'!L205,\"\")","v":0}]
[{"$f":"'Sjekkliste for utfylling'!A206","v":130},{"$f":"IF('Sjekkliste for utfylling'!I206<>\"\",1,0)","v":0},{"$f":"IF('Sjekkliste for utfylling'!J206<>\"\",1,0)","v":0},{"$f":"IF('Sjekkliste for utfylling'!K206<>\"\",1,0)","v":0},0,{"$f":"IF($E131=0,'Sjekkliste for utfylling'!A206,\"\")","v":130},{"$f":"IF($E131=0,'Sjekkliste for utfylling'!B206,\"\")","v":"Er for øvrig alle aktuelle poster riktig fylt ut? "},null,{"$f":"IF($E131=0,'Sjekkliste for utfylling'!L206,\"\")","v":0}]
[{"$f":"'Sjekkliste for utfylling'!A207","v":131},{"$f":"IF('Sjekkliste for utfylling'!I207<>\"\",1,0)","v":0},{"$f":"IF('Sjekkliste for utfylling'!J207<>\"\",1,0)","v":0},{"$f":"IF('Sjekkliste for utfylling'!K207<>\"\",1,0)","v":0},0,{"$f":"IF($E132=0,'Sjekkliste for utfylling'!A207,\"\")","v":131},{"$f":"IF($E132=0,'Sjekkliste for utfylling'!B207,\"\")","v":"Spesifikasjon av privatkonto \nEr alle aktuelle poster riktig fylt ut? "},null,{"$f":"IF($E132=0,'Sjekkliste for utfylling'!L207,\"\")","v":0}]

{"sheet":"Ja-svar","index":3,"n_rows":132,"n_cols":7,"rows_kept":132,"cut":false,"hidden":false,"merged":[]}
[null,null,{"$f":"COUNTIF(C2:C186,\"=1\")","v":0},"Svart Ja",{"$f":"'Sjekkliste for utfylling'!B2","v":0},{"$f":"'Sjekkliste for utfylling'!B3","v":2020},"Kommentarer"]
[{"$f":"'Sjekkliste for utfylling'!A13","v":1},{"$f":"IF('Sjekkliste for utfylling'!I13<>\"\",1,0)","v":0},{"$f":"SUM(B2:B2)","v":0},{"$f":"IF($B2=1,'Sjekkliste for utfylling'!A13,\"\")","v":""},{"$f":"IF($B2=1,'Sjekkliste for utfylling'!B13,\"\")","v":""},null,{"$f":"IF($B2=0,\"\",'Sjekkliste for utfylling'!L13)","v":""}]
[{"$f":"'Sjekkliste for utfylling'!A16","v":2},{"$f":"IF('Sjekkliste for utfylling'!I16<>\"\",1,0)","v":0},0,{"$f":"IF($B3=1,'Sjekkliste for utfylling'!A16,\"\")","v":""},{"$f":"IF($B3=1,'Sjekkliste for utfylling'!B16,\"\")","v":""},null,{"$f":"IF($B3=0,\"\",'Sjekkliste for utfylling'!L16)","v":""}]
[{"$f":"'Sjekkliste for utfylling'!A17","v":3},{"$f":"IF('Sjekkliste for utfylling'!I17<>\"\",1,0)","v":0},0,{"$f":"IF($B4=1,'Sjekkliste for utfylling'!A17,\"\")","v":""},{"$f":"IF($B4=1,'Sjekkliste for utfylling'!B17,\"\")","v":""},null,{"$f":"IF($B4=0,\"\",'Sjekkliste for utfylling'!L17)","v":""}]
[{"$f":"'Sjekkliste for utfylling'!A18","v":4},{"$f":"IF('Sjekkliste for utfylling'!I18<>\"\",1,0)","v":0},0,{"$f":"IF($B5=1,'Sjekkliste for utfylling'!A18,\"\")","v":""},{"$f":"IF($B5=1,'Sjekkliste for utfylling'!B18,\"\")","v":""},null,{"$f":"IF($B5=0,\"\",'Sjekkliste for utfylling'!L18)","v":""}]
[{"$f":"'Sjekkliste for utfylling'!A20","v":5},{"$f":"IF('Sjekkliste for utfylling'!I20<>\"\",1,0)","v":0},0,{"$f":"IF($B6=1,'Sjekkliste for utfylling'!A20,\"\")","v":""},{"$f":"IF($B6=1,'Sjekkliste for utfylling'!B20,\"\")","v":""},null,{"$f":"IF($B6=0,\"\",'Sjekkliste for utfylling'!L20)","v":""}]
[{"$f":"'Sjekkliste for utfylling'!A21","v":6},{"$f":"IF('Sjekkliste for utfylling'!I21<>\"\",1,0)","v":0},0,{"$f":"IF($B7=1,'Sjekkliste for utfylling'!A21,\"\")","v":""},{"$f":"IF($B7=1,'Sjekkliste for utfylling'!B21,\"\")","v":""},null,{"$f":"IF($B7=0,\"\",'Sjekkliste for utfylling'!L21)","v":""}]
[{"$f":"'Sjekkliste for utfylling'!A24","v":7},{"$f":"IF('Sjekkliste for utfylling'!I24<>\"\",1,0)","v":0},0,{"$f":"IF($B8=1,'Sjekkliste for utfylling'!A24,\"\")","v":""},{"$f":"IF($B8=1,'Sjekkliste for utfylling'!B24,\"\")","v":""},null,{"$f":"IF($B8=0,\"\",'Sjekkliste for utfylling'!L24)","v":""}]
[{"$f":"'Sjekkliste for utfylling'!A25","v":8},{"$f":"IF('Sjekkliste for utfylling'!I25<>\"\",1,0)","v":0},0,{"$f":"IF($B9=1,'Sjekkliste for utfylling'!A25,\"\")","v":""},{"$f":"IF($B9=1,'Sjekkliste for utfylling'!B25,\"\")","v":""},null,{"$f":"IF($B9=0,\"\",'Sjekkliste for utfylling'!L25)","v":""}]
[{"$f":"'Sjekkliste for utfylling'!A27","v":9},{"$f":"IF('Sjekkliste for utfylling'!I27<>\"\",1,0)","v":0},0,{"$f":"IF($B10=1,'Sjekkliste for utfylling'!A27,\"\")","v":""},{"$f":"IF($B10=1,'Sjekkliste for utfylling'!B27,\"\")","v":""},null,{"$f":"IF($B10=0,\"\",'Sjekkliste for utfylling'!L27)","v":""}]
[{"$f":"'Sjekkliste for utfylling'!A28","v":10},{"$f":"IF('Sjekkliste for utfylling'!I28<>\"\",1,0)","v":0},0,{"$f":"IF($B11=1,'Sjekkliste for utfylling'!A28,\"\")","v":""},{"$f":"IF($B11=1,'Sjekkliste for utfylling'!B28,\"\")","v":""},null,{"$f":"IF($B11=0,\"\",'Sjekkliste for utfylling'!L28)","v":""}]
[{"$f":"'Sjekkliste for utfylling'!A29","v":11},{"$f":"IF('Sjekkliste for utfylling'!I29<>\"\",1,0)","v":0},0,{"$f":"IF($B12=1,'Sjekkliste for utfylling'!A29,\"\")","v":""},{"$f":"IF($B12=1,'Sjekkliste for utfylling'!B29,\"\")","v":""},null,{"$f":"IF($B12=0,\"\",'Sjekkliste for utfylling'!L29)","v":""}]
[{"$f":"'Sjekkliste for utfylling'!A31","v":12},{"$f":"IF('Sjekkliste for utfylling'!I31<>\"\",1,0)","v":0},0,{"$f":"IF($B13=1,'Sjekkliste for utfylling'!A31,\"\")","v":""},{"$f":"IF($B13=1,'Sjekkliste for utfylling'!B31,\"\")","v":""},null,{"$f":"IF($B13=0,\"\",'Sjekkliste for utfylling'!L31)","v":""}]
[{"$f":"'Sjekkliste for utfylling'!A32","v":13},{"$f":"IF('Sjekkliste for utfylling'!I32<>\"\",1,0)","v":0},0,{"$f":"IF($B14=1,'Sjekkliste for utfylling'!A32,\"\")","v":""},{"$f":"IF($B14=1,'Sjekkliste for utfylling'!B32,\"\")","v":""},null,{"$f":"IF($B14=0,\"\",'Sjekkliste for utfylling'!L32)","v":""}]
[{"$f":"'Sjekkliste for utfylling'!A33","v":14},{"$f":"IF('Sjekkliste for utfylling'!I33<>\"\",1,0)","v":0},0,{"$f":"IF($B15=1,'Sjekkliste for utfylling'!A33,\"\")","v":""},{"$f":"IF($B15=1,'Sjekkliste for utfylling'!B33,\"\")","v":""},null,{"$f":"IF($B15=0,\"\",'Sjekkliste for utfylling'!L33)","v":""}]
[{"$f":"'Sjekkliste for utfylling'!A34","v":15},{"$f":"IF('Sjekkliste for utfylling'!I34<>\"\",1,0)","v":0},0,{"$f":"IF($B16=1,'Sjekkliste for utfylling'!A34,\"\")","v":""},{"$f":"IF($B16=1,'Sjekkliste for utfylling'!B34,\"\")","v":""},null,{"$f":"IF($B16=0,\"\",'Sjekkliste for utfylling'!L34)","v":""}]
[{"$f":"'Sjekkliste for utfylling'!A35","v":16},{"$f":"IF('Sjekkliste for utfylling'!I35<>\"\",1,0)","v":0},0,{"$f":"IF($B17=1,'Sjekkliste for utfylling'!A35,\"\")","v":""},{"$f":"IF($B17=1,'Sjekkliste for utfylling'!B35,\"\")","v":""},null,{"$f":"IF($B17=0,\"\",'Sjekkliste for utfylling'!L35)","v":""}]
[{"$f":"'Sjekkliste for utfylling'!A36","v":17},{"$f":"IF('Sjekkliste for utfylling'!I36<>\"\",1,0)","v":0},0,{"$f":"IF($B18=1,'Sjekkliste for utfylling'!A36,\"\")","v":""},{"$f":"IF($B18=1,'Sjekkliste for utfylling'!B36,\"\")","v":""},null,{"$f":"IF($B18=0,\"\",'Sjekkliste for utfylling'!L36)","v":""}]
[{"$f":"'Sjekkliste for utfylling'!A37","v":18},{"$f":"IF('Sjekkliste for utfylling'!I37<>\"\",1,0)","v":0},0,{"$f":"IF($B19=1,'Sjekkliste for utfylling'!A37,\"\")","v":""},{"$f":"IF($B19=1,'Sjekkliste for utfylling'!B37,\"\")","v":""},null,{"$f":"IF($B19=0,\"\",'Sjekkliste for utfylling'!L37)","v":""}]
[{"$f":"'Sjekkliste for utfylling'!A38","v":19},{"$f":"IF('Sjekkliste for utfylling'!I38<>\"\",1,0)","v":0},0,{"$f":"IF($B20=1,'Sjekkliste for utfylling'!A38,\"\")","v":""},{"$f":"IF($B20=1,'Sjekkliste for utfylling'!B38,\"\")","v":""},null,{"$f":"IF($B20=0,\"\",'Sjekkliste for utfylling'!L38)","v":""}]
[{"$f":"'Sjekkliste for utfylling'!A39","v":20},{"$f":"IF('Sjekkliste for utfylling'!I39<>\"\",1,0)","v":0},0,{"$f":"IF($B21=1,'Sjekkliste for utfylling'!A39,\"\")","v":""},{"$f":"IF($B21=1,'Sjekkliste for utfylling'!B39,\"\")","v":""},null,{"$f":"IF($B21=0,\"\",'Sjekkliste for utfylling'!L39)","v":""}]
[{"$f":"'Sjekkliste for utfylling'!A40","v":21},{"$f":"IF('Sjekkliste for utfylling'!I40<>\"\",1,0)","v":0},0,{"$f":"IF($B22=1,'Sjekkliste for utfylling'!A40,\"\")","v":""},{"$f":"IF($B22=1,'Sjekkliste for utfylling'!B40,\"\")","v":""},null,{"$f":"IF($B22=0,\"\",'Sjekkliste for utfylling'!L40)","v":""}]
[{"$f":"'Sjekkliste for utfylling'!A41","v":22},{"$f":"IF('Sjekkliste for utfylling'!I41<>\"\",1,0)","v":0},0,{"$f":"IF($B23=1,'Sjekkliste for utfylling'!A41,\"\")","v":""},{"$f":"IF($B23=1,'Sjekkliste for utfylling'!B41,\"\")","v":""},null,{"$f":"IF($B23=0,\"\",'Sjekkliste for utfylling'!L41)","v":""}]
[{"$f":"'Sjekkliste for utfylling'!A43","v":23},{"$f":"IF('Sjekkliste for utfylling'!I43<>\"\",1,0)","v":0},0,{"$f":"IF($B24=1,'Sjekkliste for utfylling'!A43,\"\")","v":""},{"$f":"IF($B24=1,'Sjekkliste for utfylling'!B43,\"\")","v":""},null,{"$f":"IF($B24=0,\"\",'Sjekkliste for utfylling'!L43)","v":""}]
[{"$f":"'Sjekkliste for utfylling'!A44","v":24},{"$f":"IF('Sjekkliste for utfylling'!I44<>\"\",1,0)","v":0},0,{"$f":"IF($B25=1,'Sjekkliste for utfylling'!A44,\"\")","v":""},{"$f":"IF($B25=1,'Sjekkliste for utfylling'!B44,\"\")","v":""},null,{"$f":"IF($B25=0,\"\",'Sjekkliste for utfylling'!L44)","v":""}]
[{"$f":"'Sjekkliste for utfylling'!A45","v":25},{"$f":"IF('Sjekkliste for utfylling'!I45<>\"\",1,0)","v":0},0,{"$f":"IF($B26=1,'Sjekkliste for utfylling'!A45,\"\")","v":""},{"$f":"IF($B26=1,'Sjekkliste for utfylling'!B45,\"\")","v":""},null,{"$f":"IF($B26=0,\"\",'Sjekkliste for utfylling'!L45)","v":""}]
[{"$f":"'Sjekkliste for utfylling'!A46","v":26},{"$f":"IF('Sjekkliste for utfylling'!I46<>\"\",1,0)","v":0},0,{"$f":"IF($B27=1,'Sjekkliste for utfylling'!A46,\"\")","v":""},{"$f":"IF($B27=1,'Sjekkliste for utfylling'!B46,\"\")","v":""},null,{"$f":"IF($B27=0,\"\",'Sjekkliste for utfylling'!L46)","v":""}]
[{"$f":"'Sjekkliste for utfylling'!A48","v":27},{"$f":"IF('Sjekkliste for utfylling'!I48<>\"\",1,0)","v":0},0,{"$f":"IF($B28=1,'Sjekkliste for utfylling'!A48,\"\")","v":""},{"$f":"IF($B28=1,'Sjekkliste for utfylling'!B48,\"\")","v":""},null,{"$f":"IF($B28=0,\"\",'Sjekkliste for utfylling'!L48)","v":""}]
[{"$f":"'Sjekkliste for utfylling'!A49","v":28},{"$f":"IF('Sjekkliste for utfylling'!I49<>\"\",1,0)","v":0},0,{"$f":"IF($B29=1,'Sjekkliste for utfylling'!A49,\"\")","v":""},{"$f":"IF($B29=1,'Sjekkliste for utfylling'!B49,\"\")","v":""},null,{"$f":"IF($B29=0,\"\",'Sjekkliste for utfylling'!L49)","v":""}]
[{"$f":"'Sjekkliste for utfylling'!A50","v":29},{"$f":"IF('Sjekkliste for utfylling'!I50<>\"\",1,0)","v":0},{"$f":"SUM(B30:B30)","v":0},{"$f":"IF($B30=1,'Sjekkliste for utfylling'!A50,\"\")","v":""},{"$f":"IF($B30=1,'Sjekkliste for utfylling'!B50,\"\")","v":""},null,{"$f":"IF($B30=0,\"\",'Sjekkliste for utfylling'!L50)","v":""}]
[{"$f":"'Sjekkliste for utfylling'!A51","v":30},{"$f":"IF('Sjekkliste for utfylling'!I51<>\"\",1,0)","v":0},0,{"$f":"IF($B31=1,'Sjekkliste for utfylling'!A51,\"\")","v":""},{"$f":"IF($B31=1,'Sjekkliste for utfylling'!B51,\"\")","v":""},null,{"$f":"IF($B31=0,\"\",'Sjekkliste for utfylling'!L51)","v":""}]
[{"$f":"'Sjekkliste for utfylling'!A54","v":31},{"$f":"IF('Sjekkliste for utfylling'!I54<>\"\",1,0)","v":0},0,{"$f":"IF($B32=1,'Sjekkliste for utfylling'!A54,\"\")","v":""},{"$f":"IF($B32=1,'Sjekkliste for utfylling'!B54,\"\")","v":""},null,{"$f":"IF($B32=0,\"\",'Sjekkliste for utfylling'!L54)","v":""}]
[{"$f":"'Sjekkliste for utfylling'!A56","v":32},{"$f":"IF('Sjekkliste for utfylling'!I56<>\"\",1,0)","v":0},0,{"$f":"IF($B33=1,'Sjekkliste for utfylling'!A56,\"\")","v":""},{"$f":"IF($B33=1,'Sjekkliste for utfylling'!B56,\"\")","v":""},null,{"$f":"IF($B33=0,\"\",'Sjekkliste for utfylling'!L56)","v":""}]
[{"$f":"'Sjekkliste for utfylling'!A57","v":33},{"$f":"IF('Sjekkliste for utfylling'!I57<>\"\",1,0)","v":0},0,{"$f":"IF($B34=1,'Sjekkliste for utfylling'!A57,\"\")","v":""},{"$f":"IF($B34=1,'Sjekkliste for utfylling'!B57,\"\")","v":""},null,{"$f":"IF($B34=0,\"\",'Sjekkliste for utfylling'!L57)","v":""}]
[{"$f":"'Sjekkliste for utfylling'!A58","v":34},{"$f":"IF('Sjekkliste for utfylling'!I58<>\"\",1,0)","v":0},0,{"$f":"IF($B35=1,'Sjekkliste for utfylling'!A58,\"\")","v":""},{"$f":"IF($B35=1,'Sjekkliste for utfylling'!B58,\"\")","v":""},null,{"$f":"IF($B35=0,\"\",'Sjekkliste for utfylling'!L58)","v":""}]
[{"$f":"'Sjekkliste for utfylling'!A59","v":35},{"$f":"IF('Sjekkliste for utfylling'!I59<>\"\",1,0)","v":0},0,{"$f":"IF($B36=1,'Sjekkliste for utfylling'!A59,\"\")","v":""},{"$f":"IF($B36=1,'Sjekkliste for utfylling'!B59,\"\")","v":""},null,{"$f":"IF($B36=0,\"\",'Sjekkliste for utfylling'!L59)","v":""}]
[{"$f":"'Sjekkliste for utfylling'!A61","v":36},{"$f":"IF('Sjekkliste for utfylling'!I61<>\"\",1,0)","v":0},0,{"$f":"IF($B37=1,'Sjekkliste for utfylling'!A61,\"\")","v":""},{"$f":"IF($B37=1,'Sjekkliste for utfylling'!B61,\"\")","v":""},null,{"$f":"IF($B37=0,\"\",'Sjekkliste for utfylling'!L61)","v":""}]
[{"$f":"'Sjekkliste for utfylling'!A62","v":37},{"$f":"IF('Sjekkliste for utfylling'!I62<>\"\",1,0)","v":0},0,{"$f":"IF($B38=1,'Sjekkliste for utfylling'!A62,\"\")","v":""},{"$f":"IF($B38=1,'Sjekkliste for utfylling'!B62,\"\")","v":""},null,{"$f":"IF($B38=0,\"\",'Sjekkliste for utfylling'!L62)","v":""}]
[{"$f":"'Sjekkliste for utfylling'!A64","v":38},{"$f":"IF('Sjekkliste for utfylling'!I64<>\"\",1,0)","v":0},0,{"$f":"IF($B39=1,'Sjekkliste for utfylling'!A64,\"\")","v":""},{"$f":"IF($B39=1,'Sjekkliste for utfylling'!B64,\"\")","v":""},null,{"$f":"IF($B39=0,\"\",'Sjekkliste for utfylling'!L64)","v":""}]
[{"$f":"'Sjekkliste for utfylling'!A65","v":39},{"$f":"IF('Sjekkliste for utfylling'!I65<>\"\",1,0)","v":0},0,{"$f":"IF($B40=1,'Sjekkliste for utfylling'!A65,\"\")","v":""},{"$f":"IF($B40=1,'Sjekkliste for utfylling'!B65,\"\")","v":""},null,{"$f":"IF($B40=0,\"\",'Sjekkliste for utfylling'!L65)","v":""}]
[{"$f":"'Sjekkliste for utfylling'!A67","v":40},{"$f":"IF('Sjekkliste for utfylling'!I67<>\"\",1,0)","v":0},0,{"$f":"IF($B41=1,'Sjekkliste for utfylling'!A67,\"\")","v":""},{"$f":"IF($B41=1,'Sjekkliste for utfylling'!B67,\"\")","v":""},null,{"$f":"IF($B41=0,\"\",'Sjekkliste for utfylling'!L67)","v":""}]
[{"$f":"'Sjekkliste for utfylling'!A68","v":41},{"$f":"IF('Sjekkliste for utfylling'!I68<>\"\",1,0)","v":0},0,{"$f":"IF($B42=1,'Sjekkliste for utfylling'!A68,\"\")","v":""},{"$f":"IF($B42=1,'Sjekkliste for utfylling'!B68,\"\")","v":""},null,{"$f":"IF($B42=0,\"\",'Sjekkliste for utfylling'!L68)","v":""}]
[{"$f":"'Sjekkliste for utfylling'!A69","v":42},{"$f":"IF('Sjekkliste for utfylling'!I69<>\"\",1,0)","v":0},0,{"$f":"IF($B43=1,'Sjekkliste for utfylling'!A69,\"\")","v":""},{"$f":"IF($B43=1,'Sjekkliste for utfylling'!B69,\"\")","v":""},null,{"$f":"IF($B43=0,\"\",'Sjekkliste for utfylling'!L69)","v":""}]
[{"$f":"'Sjekkliste for utfylling'!A71","v":43},{"$f":"IF('Sjekkliste for utfylling'!I71<>\"\",1,0)","v":0},{"$f":"SUM(B44:B44)","v":0},{"$f":"IF($B44=1,'Sjekkliste for utfylling'!A71,\"\")","v":""},{"$f":"IF($B44=1,'Sjekkliste for utfylling'!B71,\"\")","v":""},null,{"$f":"IF($B44=0,\"\",'Sjekkliste for utfylling'!L71)","v":""}]
[{"$f":"'Sjekkliste for utfylling'!A74","v":44},{"$f":"IF('Sjekkliste for utfylling'!I74<>\"\",1,0)","v":0},0,{"$f":"IF($B45=1,'Sjekkliste for utfylling'!A74,\"\")","v":""},{"$f":"IF($B45=1,'Sjekkliste for utfylling'!B74,\"\")","v":""},null,{"$f":"IF($B45=0,\"\",'Sjekkliste for utfylling'!L74)","v":""}]
[{"$f":"'Sjekkliste for utfylling'!A75","v":45},{"$f":"IF('Sjekkliste for utfylling'!I75<>\"\",1,0)","v":0},0,{"$f":"IF($B46=1,'Sjekkliste for utfylling'!A75,\"\")","v":""},{"$f":"IF($B46=1,'Sjekkliste for utfylling'!B75,\"\")","v":""},null,{"$f":"IF($B46=0,\"\",'Sjekkliste for utfylling'!L75)","v":""}]
[{"$f":"'Sjekkliste for utfylling'!A76","v":46},{"$f":"IF('Sjekkliste for utfylling'!I76<>\"\",1,0)","v":0},{"$f":"SUM(B47:B47)","v":0},{"$f":"IF($B47=1,'Sjekkliste for utfylling'!A76,\"\")","v":""},{"$f":"IF($B47=1,'Sjekkliste for utfylling'!B76,\"\")","v":""},null,{"$f":"IF($B47=0,\"\",'Sjekkliste for utfylling'!L76)","v":""}]
[{"$f":"'Sjekkliste for utfylling'!A77","v":47},{"$f":"IF('Sjekkliste for utfylling'!I77<>\"\",1,0)","v":0},{"$f":"SUM(B48:B48)","v":0},{"$f":"IF($B48=1,'Sjekkliste for utfylling'!A77,\"\")","v":""},{"$f":"IF($B48=1,'Sjekkliste for utfylling'!B77,\"\")","v":""},null,{"$f":"IF($B48=0,\"\",'Sjekkliste for utfylling'!L77)","v":""}]
[{"$f":"'Sjekkliste for utfylling'!A79","v":48},{"$f":"IF('Sjekkliste for utfylling'!I79<>\"\",1,0)","v":0},0,{"$f":"IF($B49=1,'Sjekkliste for utfylling'!A79,\"\")","v":""},{"$f":"IF($B49=1,'Sjekkliste for utfylling'!B79,\"\")","v":""},null,{"$f":"IF($B49=0,\"\",'Sjekkliste for utfylling'!L79)","v":""}]
[{"$f":"'Sjekkliste for utfylling'!A80","v":49},{"$f":"IF('Sjekkliste for utfylling'!I80<>\"\",1,0)","v":0},0,{"$f":"IF($B50=1,'Sjekkliste for utfylling'!A80,\"\")","v":""},{"$f":"IF($B50=1,'Sjekkliste for utfylling'!B80,\"\")","v":""},null,{"$f":"IF($B50=0,\"\",'Sjekkliste for utfylling'!L80)","v":""}]
[{"$f":"'Sjekkliste for utfylling'!A81","v":50},{"$f":"IF('Sjekkliste for utfylling'!I81<>\"\",1,0)","v":0},0,{"$f":"IF($B51=1,'Sjekkliste for utfylling'!A81,\"\")","v":""},{"$f":"IF($B51=1,'Sjekkliste for utfylling'!B81,\"\")","v":""},null,{"$f":"IF($B51=0,\"\",'Sjekkliste for utfylling'!L81)","v":""}]
[{"$f":"'Sjekkliste for utfylling'!A82","v":51},{"$f":"IF('Sjekkliste for utfylling'!I82<>\"\",1,0)","v":0},0,{"$f":"IF($B52=1,'Sjekkliste for utfylling'!A82,\"\")","v":""},{"$f":"IF($B52=1,'Sjekkliste for utfylling'!B82,\"\")","v":""},null,{"$f":"IF($B52=0,\"\",'Sjekkliste for utfylling'!L82)","v":""}]
[{"$f":"'Sjekkliste for utfylling'!A83","v":52},{"$f":"IF('Sjekkliste for utfylling'!I83<>\"\",1,0)","v":0},0,{"$f":"IF($B53=1,'Sjekkliste for utfylling'!A83,\"\")","v":""},{"$f":"IF($B53=1,'Sjekkliste for utfylling'!B83,\"\")","v":""},null,{"$f":"IF($B53=0,\"\",'Sjekkliste for utfylling'!L83)","v":""}]
[{"$f":"'Sjekkliste for utfylling'!A84","v":53},{"$f":"IF('Sjekkliste for utfylling'!I84<>\"\",1,0)","v":0},0,{"$f":"IF($B54=1,'Sjekkliste for utfylling'!A84,\"\")","v":""},{"$f":"IF($B54=1,'Sjekkliste for utfylling'!B84,\"\")","v":""},null,{"$f":"IF($B54=0,\"\",'Sjekkliste for utfylling'!L84)","v":""}]
[{"$f":"'Sjekkliste for utfylling'!A86","v":54},{"$f":"IF('Sjekkliste for utfylling'!I86<>\"\",1,0)","v":0},0,{"$f":"IF($B55=1,'Sjekkliste for utfylling'!A86,\"\")","v":""},{"$f":"IF($B55=1,'Sjekkliste for utfylling'!B86,\"\")","v":""},null,{"$f":"IF($B55=0,\"\",'Sjekkliste for utfylling'!L86)","v":""}]
[{"$f":"'Sjekkliste for utfylling'!A87","v":55},{"$f":"IF('Sjekkliste for utfylling'!I87<>\"\",1,0)","v":0},0,{"$f":"IF($B56=1,'Sjekkliste for utfylling'!A87,\"\")","v":""},{"$f":"IF($B56=1,'Sjekkliste for utfylling'!B87,\"\")","v":""},null,{"$f":"IF($B56=0,\"\",'Sjekkliste for utfylling'!L87)","v":""}]
[{"$f":"'Sjekkliste for utfylling'!A88","v":56},{"$f":"IF('Sjekkliste for utfylling'!I88<>\"\",1,0)","v":0},0,{"$f":"IF($B57=1,'Sjekkliste for utfylling'!A88,\"\")","v":""},{"$f":"IF($B57=1,'Sjekkliste for utfylling'!B88,\"\")","v":""},null,{"$f":"IF($B57=0,\"\",'Sjekkliste for utfylling'!L88)","v":""}]
[{"$f":"'Sjekkliste for utfylling'!A89","v":57},{"$f":"IF('Sjekkliste for utfylling'!I89<>\"\",1,0)","v":0},0,{"$f":"IF($B58=1,'Sjekkliste for utfylling'!A89,\"\")","v":""},{"$f":"IF($B58=1,'Sjekkliste for utfylling'!B89,\"\")","v":""},null,{"$f":"IF($B58=0,\"\",'Sjekkliste for utfylling'!L89)","v":""}]
[{"$f":"'Sjekkliste for utfylling'!A90","v":58},{"$f":"IF('Sjekkliste for utfylling'!I90<>\"\",1,0)","v":0},0,{"$f":"IF($B59=1,'Sjekkliste for utfylling'!A90,\"\")","v":""},{"$f":"IF($B59=1,'Sjekkliste for utfylling'!B90,\"\")","v":""},null,{"$f":"IF($B59=0,\"\",'Sjekkliste for utfylling'!L90)","v":""}]
[{"$f":"'Sjekkliste for utfylling'!A91","v":59},{"$f":"IF('Sjekkliste for utfylling'!I91<>\"\",1,0)","v":0},0,{"$f":"IF($B60=1,'Sjekkliste for utfylling'!A91,\"\")","v":""},{"$f":"IF($B60=1,'Sjekkliste for utfylling'!B91,\"\")","v":""},null,{"$f":"IF($B60=0,\"\",'Sjekkliste for utfylling'!L91)","v":""}]
[{"$f":"'Sjekkliste for utfylling'!A92","v":60},{"$f":"IF('Sjekkliste for utfylling'!I92<>\"\",1,0)","v":0},{"$f":"SUM(B61:B61)","v":0},{"$f":"IF($B61=1,'Sjekkliste for utfylling'!A92,\"\")","v":""},{"$f":"IF($B61=1,'Sjekkliste for utfylling'!B92,\"\")","v":""},null,{"$f":"IF($B61=0,\"\",'Sjekkliste for utfylling'!L92)","v":""}]
[{"$f":"'Sjekkliste for utfylling'!A93","v":61},{"$f":"IF('Sjekkliste for utfylling'!I93<>\"\",1,0)","v":0},0,{"$f":"IF($B62=1,'Sjekkliste for utfylling'!A93,\"\")","v":""},{"$f":"IF($B62=1,'Sjekkliste for utfylling'!B93,\"\")","v":""},null,{"$f":"IF($B62=0,\"\",'Sjekkliste for utfylling'!L93)","v":""}]
[{"$f":"'Sjekkliste for utfylling'!A94","v":62},{"$f":"IF('Sjekkliste for utfylling'!I94<>\"\",1,0)","v":0},0,{"$f":"IF($B63=1,'Sjekkliste for utfylling'!A94,\"\")","v":""},{"$f":"IF($B63=1,'Sjekkliste for utfylling'!B94,\"\")","v":""},null,{"$f":"IF($B63=0,\"\",'Sjekkliste for utfylling'!L94)","v":""}]
[{"$f":"'Sjekkliste for utfylling'!A96","v":63},{"$f":"IF('Sjekkliste for utfylling'!I96<>\"\",1,0)","v":0},0,{"$f":"IF($B64=1,'Sjekkliste for utfylling'!A96,\"\")","v":""},{"$f":"IF($B64=1,'Sjekkliste for utfylling'!B96,\"\")","v":""},null,{"$f":"IF($B64=0,\"\",'Sjekkliste for utfylling'!L96)","v":""}]
[{"$f":"'Sjekkliste for utfylling'!A97","v":64},{"$f":"IF('Sjekkliste for utfylling'!I97<>\"\",1,0)","v":0},0,{"$f":"IF($B65=1,'Sjekkliste for utfylling'!A97,\"\")","v":""},{"$f":"IF($B65=1,'Sjekkliste for utfylling'!B97,\"\")","v":""},null,{"$f":"IF($B65=0,\"\",'Sjekkliste for utfylling'!L97)","v":""}]
[{"$f":"'Sjekkliste for utfylling'!A99","v":65},{"$f":"IF('Sjekkliste for utfylling'!I99<>\"\",1,0)","v":0},0,{"$f":"IF($B66=1,'Sjekkliste for utfylling'!A99,\"\")","v":""},{"$f":"IF($B66=1,'Sjekkliste for utfylling'!B99,\"\")","v":""},null,{"$f":"IF($B66=0,\"\",'Sjekkliste for utfylling'!L99)","v":""}]
[{"$f":"'Sjekkliste for utfylling'!A100","v":66},{"$f":"IF('Sjekkliste for utfylling'!I100<>\"\",1,0)","v":0},0,{"$f":"IF($B67=1,'Sjekkliste for utfylling'!A100,\"\")","v":""},{"$f":"IF($B67=1,'Sjekkliste for utfylling'!B100,\"\")","v":""},null,{"$f":"IF($B67=0,\"\",'Sjekkliste for utfylling'!L100)","v":""}]
[{"$f":"'Sjekkliste for utfylling'!A102","v":67},{"$f":"IF('Sjekkliste for utfylling'!I102<>\"\",1,0)","v":0},0,{"$f":"IF($B68=1,'Sjekkliste for utfylling'!A102,\"\")","v":""},{"$f":"IF($B68=1,'Sjekkliste for utfylling'!B102,\"\")","v":""},null,{"$f":"IF($B68=0,\"\",'Sjekkliste for utfylling'!L102)","v":""}]
[{"$f":"'Sjekkliste for utfylling'!A103","v":68},{"$f":"IF('Sjekkliste for utfylling'!I103<>\"\",1,0)","v":0},0,{"$f":"IF($B69=1,'Sjekkliste for utfylling'!A103,\"\")","v":""},{"$f":"IF($B69=1,'Sjekkliste for utfylling'!B103,\"\")","v":""},null,{"$f":"IF($B69=0,\"\",'Sjekkliste for utfylling'!L103)","v":""}]
[{"$f":"'Sjekkliste for utfylling'!A105","v":69},{"$f":"IF('Sjekkliste for utfylling'!I105<>\"\",1,0)","v":0},0,{"$f":"IF($B70=1,'Sjekkliste for utfylling'!A105,\"\")","v":""},{"$f":"IF($B70=1,'Sjekkliste for utfylling'!B105,\"\")","v":""},null,{"$f":"IF($B70=0,\"\",'Sjekkliste for utfylling'!L105)","v":""}]
[{"$f":"'Sjekkliste for utfylling'!A106","v":70},{"$f":"IF('Sjekkliste for utfylling'!I106<>\"\",1,0)","v":0},0,{"$f":"IF($B71=1,'Sjekkliste for utfylling'!A106,\"\")","v":""},{"$f":"IF($B71=1,'Sjekkliste for utfylling'!B106,\"\")","v":""},null,{"$f":"IF($B71=0,\"\",'Sjekkliste for utfylling'!L106)","v":""}]
[{"$f":"'Sjekkliste for utfylling'!A107","v":71},{"$f":"IF('Sjekkliste for utfylling'!I107<>\"\",1,0)","v":0},0,{"$f":"IF($B72=1,'Sjekkliste for utfylling'!A107,\"\")","v":""},{"$f":"IF($B72=1,'Sjekkliste for utfylling'!B107,\"\")","v":""},null,{"$f":"IF($B72=0,\"\",'Sjekkliste for utfylling'!L107)","v":""}]
[{"$f":"'Sjekkliste for utfylling'!A108","v":72},{"$f":"IF('Sjekkliste for utfylling'!I108<>\"\",1,0)","v":0},0,{"$f":"IF($B73=1,'Sjekkliste for utfylling'!A108,\"\")","v":""},{"$f":"IF($B73=1,'Sjekkliste for utfylling'!B108,\"\")","v":""},null,{"$f":"IF($B73=0,\"\",'Sjekkliste for utfylling'!L108)","v":""}]
[{"$f":"'Sjekkliste for utfylling'!A110","v":73},{"$f":"IF('Sjekkliste for utfylling'!I110<>\"\",1,0)","v":0},0,{"$f":"IF($B74=1,'Sjekkliste for utfylling'!A110,\"\")","v":""},{"$f":"IF($B74=1,'Sjekkliste for utfylling'!B110,\"\")","v":""},null,{"$f":"IF($B74=0,\"\",'Sjekkliste for utfylling'!L110)","v":""}]
[{"$f":"'Sjekkliste for utfylling'!A111","v":74},{"$f":"IF('Sjekkliste for utfylling'!I111<>\"\",1,0)","v":0},0,{"$f":"IF($B75=1,'Sjekkliste for utfylling'!A111,\"\")","v":""},{"$f":"IF($B75=1,'Sjekkliste for utfylling'!B111,\"\")","v":""},null,{"$f":"IF($B75=0,\"\",'Sjekkliste for utfylling'!L111)","v":""}]
[{"$f":"'Sjekkliste for utfylling'!A112","v":75},{"$f":"IF('Sjekkliste for utfylling'!I112<>\"\",1,0)","v":0},0,{"$f":"IF($B76=1,'Sjekkliste for utfylling'!A112,\"\")","v":""},{"$f":"IF($B76=1,'Sjekkliste for utfylling'!B112,\"\")","v":""},null,{"$f":"IF($B76=0,\"\",'Sjekkliste for utfylling'!L112)","v":""}]
[{"$f":"'Sjekkliste for utfylling'!A113","v":76},{"$f":"IF('Sjekkliste for utfylling'!I113<>\"\",1,0)","v":0},0,{"$f":"IF($B77=1,'Sjekkliste for utfylling'!A113,\"\")","v":""},{"$f":"IF($B77=1,'Sjekkliste for utfylling'!B113,\"\")","v":""},null,{"$f":"IF($B77=0,\"\",'Sjekkliste for utfylling'!L113)","v":""}]
[{"$f":"'Sjekkliste for utfylling'!A114","v":77},{"$f":"IF('Sjekkliste for utfylling'!I114<>\"\",1,0)","v":0},0,{"$f":"IF($B78=1,'Sjekkliste for utfylling'!A114,\"\")","v":""},{"$f":"IF($B78=1,'Sjekkliste for utfylling'!B114,\"\")","v":""},null,{"$f":"IF($B78=0,\"\",'Sjekkliste for utfylling'!L114)","v":""}]
[{"$f":"'Sjekkliste for utfylling'!A116","v":78},{"$f":"IF('Sjekkliste for utfylling'!I116<>\"\",1,0)","v":0},0,{"$f":"IF($B79=1,'Sjekkliste for utfylling'!A116,\"\")","v":""},{"$f":"IF($B79=1,'Sjekkliste for utfylling'!B116,\"\")","v":""},null,{"$f":"IF($B79=0,\"\",'Sjekkliste for utfylling'!L116)","v":""}]
[{"$f":"'Sjekkliste for utfylling'!A117","v":79},{"$f":"IF('Sjekkliste for utfylling'!I117<>\"\",1,0)","v":0},0,{"$f":"IF($B80=1,'Sjekkliste for utfylling'!A117,\"\")","v":""},{"$f":"IF($B80=1,'Sjekkliste for utfylling'!B117,\"\")","v":""},null,{"$f":"IF($B80=0,\"\",'Sjekkliste for utfylling'!L117)","v":""}]
[{"$f":"'Sjekkliste for utfylling'!A118","v":80},{"$f":"IF('Sjekkliste for utfylling'!I118<>\"\",1,0)","v":0},0,{"$f":"IF($B81=1,'Sjekkliste for utfylling'!A118,\"\")","v":""},{"$f":"IF($B81=1,'Sjekkliste for utfylling'!B118,\"\")","v":""},null,{"$f":"IF($B81=0,\"\",'Sjekkliste for utfylling'!L118)","v":""}]
[{"$f":"'Sjekkliste for utfylling'!A122","v":81},{"$f":"IF('Sjekkliste for utfylling'!I122<>\"\",1,0)","v":0},0,{"$f":"IF($B82=1,'Sjekkliste for utfylling'!A122,\"\")","v":""},{"$f":"IF($B82=1,'Sjekkliste for utfylling'!B122,\"\")","v":""},null,{"$f":"IF($B82=0,\"\",'Sjekkliste for utfylling'!L122)","v":""}]
[{"$f":"'Sjekkliste for utfylling'!A124","v":82},{"$f":"IF('Sjekkliste for utfylling'!I124<>\"\",1,0)","v":0},0,{"$f":"IF($B83=1,'Sjekkliste for utfylling'!A124,\"\")","v":""},{"$f":"IF($B83=1,'Sjekkliste for utfylling'!B124,\"\")","v":""},null,{"$f":"IF($B83=0,\"\",'Sjekkliste for utfylling'!L124)","v":""}]
[{"$f":"'Sjekkliste for utfylling'!A125","v":83},{"$f":"IF('Sjekkliste for utfylling'!I125<>\"\",1,0)","v":0},0,{"$f":"IF($B84=1,'Sjekkliste for utfylling'!A125,\"\")","v":""},{"$f":"IF($B84=1,'Sjekkliste for utfylling'!B125,\"\")","v":""},null,{"$f":"IF($B84=0,\"\",'Sjekkliste for utfylling'!L125)","v":""}]
[{"$f":"'Sjekkliste for utfylling'!A126","v":84},{"$f":"IF('Sjekkliste for utfylling'!I126<>\"\",1,0)","v":0},0,{"$f":"IF($B85=1,'Sjekkliste for utfylling'!A126,\"\")","v":""},{"$f":"IF($B85=1,'Sjekkliste for utfylling'!B126,\"\")","v":""},null,{"$f":"IF($B85=0,\"\",'Sjekkliste for utfylling'!L126)","v":""}]
[{"$f":"'Sjekkliste for utfylling'!A127","v":85},{"$f":"IF('Sjekkliste for utfylling'!I127<>\"\",1,0)","v":0},0,{"$f":"IF($B86=1,'Sjekkliste for utfylling'!A127,\"\")","v":""},{"$f":"IF($B86=1,'Sjekkliste for utfylling'!B127,\"\")","v":""},null,{"$f":"IF($B86=0,\"\",'Sjekkliste for utfylling'!L127)","v":""}]
[{"$f":"'Sjekkliste for utfylling'!A129","v":86},{"$f":"IF('Sjekkliste for utfylling'!I129<>\"\",1,0)","v":0},{"$f":"SUM(B87:B87)","v":0},{"$f":"IF($B87=1,'Sjekkliste for utfylling'!A129,\"\")","v":""},{"$f":"IF($B87=1,'Sjekkliste for utfylling'!B129,\"\")","v":""},null,{"$f":"IF($B87=0,\"\",'Sjekkliste for utfylling'!L129)","v":""}]
[{"$f":"'Sjekkliste for utfylling'!A130","v":87},{"$f":"IF('Sjekkliste for utfylling'!I130<>\"\",1,0)","v":0},0,{"$f":"IF($B88=1,'Sjekkliste for utfylling'!A130,\"\")","v":""},{"$f":"IF($B88=1,'Sjekkliste for utfylling'!B130,\"\")","v":""},null,{"$f":"IF($B88=0,\"\",'Sjekkliste for utfylling'!L130)","v":""}]
[{"$f":"'Sjekkliste for utfylling'!A132","v":88},{"$f":"IF('Sjekkliste for utfylling'!I132<>\"\",1,0)","v":0},0,{"$f":"IF($B89=1,'Sjekkliste for utfylling'!A132,\"\")","v":""},{"$f":"IF($B89=1,'Sjekkliste for utfylling'!B132,\"\")","v":""},null,{"$f":"IF($B89=0,\"\",'Sjekkliste for utfylling'!L132)","v":""}]
[{"$f":"'Sjekkliste for utfylling'!A133","v":89},{"$f":"IF('Sjekkliste for utfylling'!I133<>\"\",1,0)","v":0},0,{"$f":"IF($B90=1,'Sjekkliste for utfylling'!A133,\"\")","v":""},{"$f":"IF($B90=1,'Sjekkliste for utfylling'!B133,\"\")","v":""},null,{"$f":"IF($B90=0,\"\",'Sjekkliste for utfylling'!L133)","v":""}]
[{"$f":"'Sjekkliste for utfylling'!A134","v":90},{"$f":"IF('Sjekkliste for utfylling'!I134<>\"\",1,0)","v":0},0,{"$f":"IF($B91=1,'Sjekkliste for utfylling'!A134,\"\")","v":""},{"$f":"IF($B91=1,'Sjekkliste for utfylling'!B134,\"\")","v":""},null,{"$f":"IF($B91=0,\"\",'Sjekkliste for utfylling'!L134)","v":""}]
[{"$f":"'Sjekkliste for utfylling'!A135","v":91},{"$f":"IF('Sjekkliste for utfylling'!I135<>\"\",1,0)","v":0},0,{"$f":"IF($B92=1,'Sjekkliste for utfylling'!A135,\"\")","v":""},{"$f":"IF($B92=1,'Sjekkliste for utfylling'!B135,\"\")","v":""},null,{"$f":"IF($B92=0,\"\",'Sjekkliste for utfylling'!L135)","v":""}]
[{"$f":"'Sjekkliste for utfylling'!A146","v":92},{"$f":"IF('Sjekkliste for utfylling'!I146<>\"\",1,0)","v":0},0,{"$f":"IF($B93=1,'Sjekkliste for utfylling'!A146,\"\")","v":""},{"$f":"IF($B93=1,'Sjekkliste for utfylling'!B146,\"\")","v":""},null,{"$f":"IF($B93=0,\"\",'Sjekkliste for utfylling'!L146)","v":""}]
[{"$f":"'Sjekkliste for utfylling'!A148","v":93},{"$f":"IF('Sjekkliste for utfylling'!I148<>\"\",1,0)","v":0},0,{"$f":"IF($B94=1,'Sjekkliste for utfylling'!A148,\"\")","v":""},{"$f":"IF($B94=1,'Sjekkliste for utfylling'!B148,\"\")","v":""},null,{"$f":"IF($B94=0,\"\",'Sjekkliste for utfylling'!L148)","v":""}]
[{"$f":"'Sjekkliste for utfylling'!A150","v":94},{"$f":"IF('Sjekkliste for utfylling'!I150<>\"\",1,0)","v":0},0,{"$f":"IF($B95=1,'Sjekkliste for utfylling'!A150,\"\")","v":""},{"$f":"IF($B95=1,'Sjekkliste for utfylling'!B150,\"\")","v":""},null,{"$f":"IF($B95=0,\"\",'Sjekkliste for utfylling'!L150)","v":""}]
[{"$f":"'Sjekkliste for utfylling'!A151","v":95},{"$f":"IF('Sjekkliste for utfylling'!I151<>\"\",1,0)","v":0},0,{"$f":"IF($B96=1,'Sjekkliste for utfylling'!A151,\"\")","v":""},{"$f":"IF($B96=1,'Sjekkliste for utfylling'!B151,\"\")","v":""},null,{"$f":"IF($B96=0,\"\",'Sjekkliste for utfylling'!L151)","v":""}]
[{"$f":"'Sjekkliste for utfylling'!A152","v":96},{"$f":"IF('Sjekkliste for utfylling'!I152<>\"\",1,0)","v":0},0,{"$f":"IF($B97=1,'Sjekkliste for utfylling'!A152,\"\")","v":""},{"$f":"IF($B97=1,'Sjekkliste for utfylling'!B152,\"\")","v":""},null,{"$f":"IF($B97=0,\"\",'Sjekkliste for utfylling'!L152)","v":""}]
[{"$f":"'Sjekkliste for utfylling'!A154","v":97},{"$f":"IF('Sjekkliste for utfylling'!I154<>\"\",1,0)","v":0},{"$f":"SUM(B98:B98)","v":0},{"$f":"IF($B98=1,'Sjekkliste for utfylling'!A154,\"\")","v":""},{"$f":"IF($B98=1,'Sjekkliste for utfylling'!B154,\"\")","v":""},null,{"$f":"IF($B98=0,\"\",'Sjekkliste for utfylling'!L154)","v":""}]
[{"$f":"'Sjekkliste for utfylling'!A155","v":98},{"$f":"IF('Sjekkliste for utfylling'!I155<>\"\",1,0)","v":0},0,{"$f":"IF($B99=1,'Sjekkliste for utfylling'!A155,\"\")","v":""},{"$f":"IF($B99=1,'Sjekkliste for utfylling'!B155,\"\")","v":""},null,{"$f":"IF($B99=0,\"\",'Sjekkliste for utfylling'!L155)","v":""}]
[{"$f":"'Sjekkliste for utfylling'!A156","v":99},{"$f":"IF('Sjekkliste for utfylling'!I156<>\"\",1,0)","v":0},0,{"$f":"IF($B100=1,'Sjekkliste for utfylling'!A156,\"\")","v":""},{"$f":"IF($B100=1,'Sjekkliste for utfylling'!B156,\"\")","v":""},null,{"$f":"IF($B100=0,\"\",'Sjekkliste for utfylling'!L156)","v":""}]
[{"$f":"'Sjekkliste for utfylling'!A157","v":100},{"$f":"IF('Sjekkliste for utfylling'!I157<>\"\",1,0)","v":0},0,{"$f":"IF($B101=1,'Sjekkliste for utfylling'!A157,\"\")","v":""},{"$f":"IF($B101=1,'Sjekkliste for utfylling'!B157,\"\")","v":""},null,{"$f":"IF($B101=0,\"\",'Sjekkliste for utfylling'!L157)","v":""}]
[{"$f":"'Sjekkliste for utfylling'!A159","v":101},{"$f":"IF('Sjekkliste for utfylling'!I159<>\"\",1,0)","v":0},0,{"$f":"IF($B102=1,'Sjekkliste for utfylling'!A159,\"\")","v":""},{"$f":"IF($B102=1,'Sjekkliste for utfylling'!B159,\"\")","v":""},null,{"$f":"IF($B102=0,\"\",'Sjekkliste for utfylling'!L159)","v":""}]
[{"$f":"'Sjekkliste for utfylling'!A161","v":102},{"$f":"IF('Sjekkliste for utfylling'!I161<>\"\",1,0)","v":0},0,{"$f":"IF($B103=1,'Sjekkliste for utfylling'!A161,\"\")","v":""},{"$f":"IF($B103=1,'Sjekkliste for utfylling'!B161,\"\")","v":""},null,{"$f":"IF($B103=0,\"\",'Sjekkliste for utfylling'!L161)","v":""}]
[{"$f":"'Sjekkliste for utfylling'!A163","v":103},{"$f":"IF('Sjekkliste for utfylling'!I163<>\"\",1,0)","v":0},0,{"$f":"IF($B104=1,'Sjekkliste for utfylling'!A163,\"\")","v":""},{"$f":"IF($B104=1,'Sjekkliste for utfylling'!B163,\"\")","v":""},null,{"$f":"IF($B104=0,\"\",'Sjekkliste for utfylling'!L163)","v":""}]
[{"$f":"'Sjekkliste for utfylling'!A165","v":104},{"$f":"IF('Sjekkliste for utfylling'!I165<>\"\",1,0)","v":0},0,{"$f":"IF($B105=1,'Sjekkliste for utfylling'!A165,\"\")","v":""},{"$f":"IF($B105=1,'Sjekkliste for utfylling'!B165,\"\")","v":""},null,{"$f":"IF($B105=0,\"\",'Sjekkliste for utfylling'!L165)","v":""}]
[{"$f":"'Sjekkliste for utfylling'!A167","v":105},{"$f":"IF('Sjekkliste for utfylling'!I167<>\"\",1,0)","v":0},{"$f":"SUM(B106:B106)","v":0},{"$f":"IF($B106=1,'Sjekkliste for utfylling'!A167,\"\")","v":""},{"$f":"IF($B106=1,'Sjekkliste for utfylling'!B167,\"\")","v":""},null,{"$f":"IF($B106=0,\"\",'Sjekkliste for utfylling'!L167)","v":""}]
[{"$f":"'Sjekkliste for utfylling'!A168","v":106},{"$f":"IF('Sjekkliste for utfylling'!I168<>\"\",1,0)","v":0},0,{"$f":"IF($B107=1,'Sjekkliste for utfylling'!A168,\"\")","v":""},{"$f":"IF($B107=1,'Sjekkliste for utfylling'!B168,\"\")","v":""},null,{"$f":"IF($B107=0,\"\",'Sjekkliste for utfylling'!L168)","v":""}]
[{"$f":"'Sjekkliste for utfylling'!A169","v":107},{"$f":"IF('Sjekkliste for utfylling'!I169<>\"\",1,0)","v":0},0,{"$f":"IF($B108=1,'Sjekkliste for utfylling'!A169,\"\")","v":""},{"$f":"IF($B108=1,'Sjekkliste for utfylling'!B169,\"\")","v":""},null,{"$f":"IF($B108=0,\"\",'Sjekkliste for utfylling'!L169)","v":""}]
[{"$f":"'Sjekkliste for utfylling'!A171","v":108},{"$f":"IF('Sjekkliste for utfylling'!I171<>\"\",1,0)","v":0},0,{"$f":"IF($B109=1,'Sjekkliste for utfylling'!A171,\"\")","v":""},{"$f":"IF($B109=1,'Sjekkliste for utfylling'!B171,\"\")","v":""},null,{"$f":"IF($B109=0,\"\",'Sjekkliste for utfylling'!L171)","v":""}]
[{"$f":"'Sjekkliste for utfylling'!A174","v":109},{"$f":"IF('Sjekkliste for utfylling'!I174<>\"\",1,0)","v":0},{"$f":"SUM(B110:B110)","v":0},{"$f":"IF($B110=1,'Sjekkliste for utfylling'!A174,\"\")","v":""},{"$f":"IF($B110=1,'Sjekkliste for utfylling'!B174,\"\")","v":""},null,{"$f":"IF($B110=0,\"\",'Sjekkliste for utfylling'!L174)","v":""}]
[{"$f":"'Sjekkliste for utfylling'!A176","v":110},{"$f":"IF('Sjekkliste for utfylling'!I176<>\"\",1,0)","v":0},0,{"$f":"IF($B111=1,'Sjekkliste for utfylling'!A176,\"\")","v":""},{"$f":"IF($B111=1,'Sjekkliste for utfylling'!B176,\"\")","v":""},null,{"$f":"IF($B111=0,\"\",'Sjekkliste for utfylling'!L176)","v":""}]
[{"$f":"'Sjekkliste for utfylling'!A177","v":111},{"$f":"IF('Sjekkliste for utfylling'!I177<>\"\",1,0)","v":0},0,{"$f":"IF($B112=1,'Sjekkliste for utfylling'!A177,\"\")","v":""},{"$f":"IF($B112=1,'Sjekkliste for utfylling'!B177,\"\")","v":""},null,{"$f":"IF($B112=0,\"\",'Sjekkliste for utfylling'!L177)","v":""}]
[{"$f":"'Sjekkliste for utfylling'!A179","v":112},{"$f":"IF('Sjekkliste for utfylling'!I179<>\"\",1,0)","v":0},0,{"$f":"IF($B113=1,'Sjekkliste for utfylling'!A179,\"\")","v":""},{"$f":"IF($B113=1,'Sjekkliste for utfylling'!B179,\"\")","v":""},null,{"$f":"IF($B113=0,\"\",'Sjekkliste for utfylling'!L179)","v":""}]
[{"$f":"'Sjekkliste for utfylling'!A181","v":113},{"$f":"IF('Sjekkliste for utfylling'!I181<>\"\",1,0)","v":0},0,{"$f":"IF($B114=1,'Sjekkliste for utfylling'!A181,\"\")","v":""},{"$f":"IF($B114=1,'Sjekkliste for utfylling'!B181,\"\")","v":""},null,{"$f":"IF($B114=0,\"\",'Sjekkliste for utfylling'!L181)","v":""}]
[{"$f":"'Sjekkliste for utfylling'!A183","v":114},{"$f":"IF('Sjekkliste for utfylling'!I183<>\"\",1,0)","v":0},{"$f":"SUM(B115:B115)","v":0},{"$f":"IF($B115=1,'Sjekkliste for utfylling'!A183,\"\")","v":""},{"$f":"IF($B115=1,'Sjekkliste for utfylling'!B183,\"\")","v":""},null,{"$f":"IF($B115=0,\"\",'Sjekkliste for utfylling'!L183)","v":""}]
[{"$f":"'Sjekkliste for utfylling'!A185","v":115},{"$f":"IF('Sjekkliste for utfylling'!I185<>\"\",1,0)","v":0},0,{"$f":"IF($B116=1,'Sjekkliste for utfylling'!A185,\"\")","v":""},{"$f":"IF($B116=1,'Sjekkliste for utfylling'!B185,\"\")","v":""},null,{"$f":"IF($B116=0,\"\",'Sjekkliste for utfylling'!L185)","v":""}]
[{"$f":"'Sjekkliste for utfylling'!A186","v":116},{"$f":"IF('Sjekkliste for utfylling'!I186<>\"\",1,0)","v":0},0,{"$f":"IF($B117=1,'Sjekkliste for utfylling'!A186,\"\")","v":""},{"$f":"IF($B117=1,'Sjekkliste for utfylling'!B186,\"\")","v":""},null,{"$f":"IF($B117=0,\"\",'Sjekkliste for utfylling'!L186)","v":""}]
[{"$f":"'Sjekkliste for utfylling'!A188","v":117},{"$f":"IF('Sjekkliste for utfylling'!I188<>\"\",1,0)","v":0},{"$f":"SUM(B118:B118)","v":0},{"$f":"IF($B118=1,'Sjekkliste for utfylling'!A188,\"\")","v":""},{"$f":"IF($B118=1,'Sjekkliste for utfylling'!B188,\"\")","v":""},null,{"$f":"IF($B118=0,\"\",'Sjekkliste for utfylling'!L188)","v":""}]
[{"$f":"'Sjekkliste for utfylling'!A190","v":118},{"$f":"IF('Sjekkliste for utfylling'!I190<>\"\",1,0)","v":0},0,{"$f":"IF($B119=1,'Sjekkliste for utfylling'!A190,\"\")","v":""},{"$f":"IF($B119=1,'Sjekkliste for utfylling'!B190,\"\")","v":""},null,{"$f":"IF($B119=0,\"\",'Sjekkliste for utfylling'!L190)","v":""}]
[{"$f":"'Sjekkliste for utfylling'!A191","v":119},{"$f":"IF('Sjekkliste for utfylling'!I191<>\"\",1,0)","v":0},0,{"$f":"IF($B120=1,'Sjekkliste for utfylling'!A191,\"\")","v":""},{"$f":"IF($B120=1,'Sjekkliste for utfylling'!B191,\"\")","v":""},null,{"$f":"IF($B120=0,\"\",'Sjekkliste for utfylling'!L191)","v":""}]
[{"$f":"'Sjekkliste for utfylling'!A194","v":120},{"$f":"IF('Sjekkliste for utfylling'!I194<>\"\",1,0)","v":0},0,{"$f":"IF($B121=1,'Sjekkliste for utfylling'!A194,\"\")","v":""},{"$f":"IF($B121=1,'Sjekkliste for utfylling'!B194,\"\")","v":""},null,{"$f":"IF($B121=0,\"\",'Sjekkliste for utfylling'!L194)","v":""}]
[{"$f":"'Sjekkliste for utfylling'!A195","v":121},{"$f":"IF('Sjekkliste for utfylling'!I195<>\"\",1,0)","v":0},0,{"$f":"IF($B122=1,'Sjekkliste for utfylling'!A195,\"\")","v":""},{"$f":"IF($B122=1,'Sjekkliste for utfylling'!B195,\"\")","v":""},null,{"$f":"IF($B122=0,\"\",'Sjekkliste for utfylling'!L195)","v":""}]
[{"$f":"'Sjekkliste for utfylling'!A196","v":122},{"$f":"IF('Sjekkliste for utfylling'!I196<>\"\",1,0)","v":0},0,{"$f":"IF($B123=1,'Sjekkliste for utfylling'!A196,\"\")","v":""},{"$f":"IF($B123=1,'Sjekkliste for utfylling'!B196,\"\")","v":""},null,{"$f":"IF($B123=0,\"\",'Sjekkliste for utfylling'!L196)","v":""}]
[{"$f":"'Sjekkliste for utfylling'!A197","v":123},{"$f":"IF('Sjekkliste for utfylling'!I197<>\"\",1,0)","v":0},0,{"$f":"IF($B124=1,'Sjekkliste for utfylling'!A197,\"\")","v":""},{"$f":"IF($B124=1,'Sjekkliste for utfylling'!B197,\"\")","v":""},null,{"$f":"IF($B124=0,\"\",'Sjekkliste for utfylling'!L197)","v":""}]
[{"$f":"'Sjekkliste for utfylling'!A198","v":124},{"$f":"IF('Sjekkliste for utfylling'!I198<>\"\",1,0)","v":0},0,{"$f":"IF($B125=1,'Sjekkliste for utfylling'!A198,\"\")","v":""},{"$f":"IF($B125=1,'Sjekkliste for utfylling'!B198,\"\")","v":""},null,{"$f":"IF($B125=0,\"\",'Sjekkliste for utfylling'!L198)","v":""}]
[{"$f":"'Sjekkliste for utfylling'!A199","v":125},{"$f":"IF('Sjekkliste for utfylling'!I199<>\"\",1,0)","v":0},0,{"$f":"IF($B126=1,'Sjekkliste for utfylling'!A199,\"\")","v":""},{"$f":"IF($B126=1,'Sjekkliste for utfylling'!B199,\"\")","v":""},null,{"$f":"IF($B126=0,\"\",'Sjekkliste for utfylling'!L199)","v":""}]
[{"$f":"'Sjekkliste for utfylling'!A200","v":126},{"$f":"IF('Sjekkliste for utfylling'!I200<>\"\",1,0)","v":0},0,{"$f":"IF($B127=1,'Sjekkliste for utfylling'!A200,\"\")","v":""},{"$f":"IF($B127=1,'Sjekkliste for utfylling'!B200,\"\")","v":""},null,{"$f":"IF($B127=0,\"\",'Sjekkliste for utfylling'!L200)","v":""}]
[{"$f":"'Sjekkliste for utfylling'!A202","v":127},{"$f":"IF('Sjekkliste for utfylling'!I202<>\"\",1,0)","v":0},0,{"$f":"IF($B128=1,'Sjekkliste for utfylling'!A202,\"\")","v":""},{"$f":"IF($B128=1,'Sjekkliste for utfylling'!B202,\"\")","v":""},null,{"$f":"IF($B128=0,\"\",'Sjekkliste for utfylling'!L202)","v":""}]
[{"$f":"'Sjekkliste for utfylling'!A203","v":128},{"$f":"IF('Sjekkliste for utfylling'!I203<>\"\",1,0)","v":0},0,{"$f":"IF($B129=1,'Sjekkliste for utfylling'!A203,\"\")","v":""},{"$f":"IF($B129=1,'Sjekkliste for utfylling'!B203,\"\")","v":""},null,{"$f":"IF($B129=0,\"\",'Sjekkliste for utfylling'!L203)","v":""}]
[{"$f":"'Sjekkliste for utfylling'!A205","v":129},{"$f":"IF('Sjekkliste for utfylling'!I205<>\"\",1,0)","v":0},0,{"$f":"IF($B130=1,'Sjekkliste for utfylling'!A205,\"\")","v":""},{"$f":"IF($B130=1,'Sjekkliste for utfylling'!B205,\"\")","v":""},null,{"$f":"IF($B130=0,\"\",'Sjekkliste for utfylling'!L205)","v":""}]
[{"$f":"'Sjekkliste for utfylling'!A206","v":130},{"$f":"IF('Sjekkliste for utfylling'!I206<>\"\",1,0)","v":0},0,{"$f":"IF($B131=1,'Sjekkliste for utfylling'!A206,\"\")","v":""},{"$f":"IF($B131=1,'Sjekkliste for utfylling'!B206,\"\")","v":""},null,{"$f":"IF($B131=0,\"\",'Sjekkliste for utfylling'!L206)","v":""}]
[{"$f":"'Sjekkliste for utfylling'!A207","v":131},{"$f":"IF('Sjekkliste for utfylling'!I207<>\"\",1,0)","v":0},0,{"$f":"IF($B132=1,'Sjekkliste for utfylling'!A207,\"\")","v":""},{"$f":"IF($B132=1,'Sjekkliste for utfylling'!B207,\"\")","v":""},null,{"$f":"IF($B132=0,\"\",'Sjekkliste for utfylling'!L207)","v":""}]

{"sheet":"Nei-svar","index":4,"n_rows":132,"n_cols":7,"rows_kept":132,"cut":false,"hidden":false,"merged":[]}
[null,null,{"$f":"COUNTIF(C2:C186,\"=1\")","v":0},"Svart Nei",{"$f":"'Sjekkliste for utfylling'!B2","v":0},{"$f":"'Sjekkliste for utfylling'!B3","v":2020},"Kommentarer"]
[{"$f":"'Sjekkliste for utfylling'!A13","v":1},{"$f":"IF('Sjekkliste for utfylling'!J13<>\"\",1,0)","v":0},{"$f":"SUM(B2:B2)","v":0},{"$f":"IF($B2=1,'Sjekkliste for utfylling'!A13,\"\")","v":""},{"$f":"IF($B2=1,'Sjekkliste for utfylling'!B13,\"\")","v":""},null,{"$f":"IF($B2=0,\"\",'Sjekkliste for utfylling'!L13)","v":""}]
[{"$f":"'Sjekkliste for utfylling'!A16","v":2},{"$f":"IF('Sjekkliste for utfylling'!J16<>\"\",1,0)","v":0},0,{"$f":"IF($B3=1,'Sjekkliste for utfylling'!A16,\"\")","v":""},{"$f":"IF($B3=1,'Sjekkliste for utfylling'!B16,\"\")","v":""},null,{"$f":"IF($B3=0,\"\",'Sjekkliste for utfylling'!L16)","v":""}]
[{"$f":"'Sjekkliste for utfylling'!A17","v":3},{"$f":"IF('Sjekkliste for utfylling'!J17<>\"\",1,0)","v":0},0,{"$f":"IF($B4=1,'Sjekkliste for utfylling'!A17,\"\")","v":""},{"$f":"IF($B4=1,'Sjekkliste for utfylling'!B17,\"\")","v":""},null,{"$f":"IF($B4=0,\"\",'Sjekkliste for utfylling'!L17)","v":""}]
[{"$f":"'Sjekkliste for utfylling'!A18","v":4},{"$f":"IF('Sjekkliste for utfylling'!J18<>\"\",1,0)","v":0},0,{"$f":"IF($B5=1,'Sjekkliste for utfylling'!A18,\"\")","v":""},{"$f":"IF($B5=1,'Sjekkliste for utfylling'!B18,\"\")","v":""},null,{"$f":"IF($B5=0,\"\",'Sjekkliste for utfylling'!L18)","v":""}]
[{"$f":"'Sjekkliste for utfylling'!A20","v":5},{"$f":"IF('Sjekkliste for utfylling'!J20<>\"\",1,0)","v":0},0,{"$f":"IF($B6=1,'Sjekkliste for utfylling'!A20,\"\")","v":""},{"$f":"IF($B6=1,'Sjekkliste for utfylling'!B20,\"\")","v":""},null,{"$f":"IF($B6=0,\"\",'Sjekkliste for utfylling'!L20)","v":""}]
[{"$f":"'Sjekkliste for utfylling'!A21","v":6},{"$f":"IF('Sjekkliste for utfylling'!J21<>\"\",1,0)","v":0},0,{"$f":"IF($B7=1,'Sjekkliste for utfylling'!A21,\"\")","v":""},{"$f":"IF($B7=1,'Sjekkliste for utfylling'!B21,\"\")","v":""},null,{"$f":"IF($B7=0,\"\",'Sjekkliste for utfylling'!L21)","v":""}]
[{"$f":"'Sjekkliste for utfylling'!A24","v":7},{"$f":"IF('Sjekkliste for utfylling'!J24<>\"\",1,0)","v":0},0,{"$f":"IF($B8=1,'Sjekkliste for utfylling'!A24,\"\")","v":""},{"$f":"IF($B8=1,'Sjekkliste for utfylling'!B24,\"\")","v":""},null,{"$f":"IF($B8=0,\"\",'Sjekkliste for utfylling'!L24)","v":""}]
[{"$f":"'Sjekkliste for utfylling'!A25","v":8},{"$f":"IF('Sjekkliste for utfylling'!J25<>\"\",1,0)","v":0},0,{"$f":"IF($B9=1,'Sjekkliste for utfylling'!A25,\"\")","v":""},{"$f":"IF($B9=1,'Sjekkliste for utfylling'!B25,\"\")","v":""},null,{"$f":"IF($B9=0,\"\",'Sjekkliste for utfylling'!L25)","v":""}]
[{"$f":"'Sjekkliste for utfylling'!A27","v":9},{"$f":"IF('Sjekkliste for utfylling'!J27<>\"\",1,0)","v":0},0,{"$f":"IF($B10=1,'Sjekkliste for utfylling'!A27,\"\")","v":""},{"$f":"IF($B10=1,'Sjekkliste for utfylling'!B27,\"\")","v":""},null,{"$f":"IF($B10=0,\"\",'Sjekkliste for utfylling'!L27)","v":""}]
[{"$f":"'Sjekkliste for utfylling'!A28","v":10},{"$f":"IF('Sjekkliste for utfylling'!J28<>\"\",1,0)","v":0},0,{"$f":"IF($B11=1,'Sjekkliste for utfylling'!A28,\"\")","v":""},{"$f":"IF($B11=1,'Sjekkliste for utfylling'!B28,\"\")","v":""},null,{"$f":"IF($B11=0,\"\",'Sjekkliste for utfylling'!L28)","v":""}]
[{"$f":"'Sjekkliste for utfylling'!A29","v":11},{"$f":"IF('Sjekkliste for utfylling'!J29<>\"\",1,0)","v":0},0,{"$f":"IF($B12=1,'Sjekkliste for utfylling'!A29,\"\")","v":""},{"$f":"IF($B12=1,'Sjekkliste for utfylling'!B29,\"\")","v":""},null,{"$f":"IF($B12=0,\"\",'Sjekkliste for utfylling'!L29)","v":""}]
[{"$f":"'Sjekkliste for utfylling'!A31","v":12},{"$f":"IF('Sjekkliste for utfylling'!J31<>\"\",1,0)","v":0},0,{"$f":"IF($B13=1,'Sjekkliste for utfylling'!A31,\"\")","v":""},{"$f":"IF($B13=1,'Sjekkliste for utfylling'!B31,\"\")","v":""},null,{"$f":"IF($B13=0,\"\",'Sjekkliste for utfylling'!L31)","v":""}]
[{"$f":"'Sjekkliste for utfylling'!A32","v":13},{"$f":"IF('Sjekkliste for utfylling'!J32<>\"\",1,0)","v":0},0,{"$f":"IF($B14=1,'Sjekkliste for utfylling'!A32,\"\")","v":""},{"$f":"IF($B14=1,'Sjekkliste for utfylling'!B32,\"\")","v":""},null,{"$f":"IF($B14=0,\"\",'Sjekkliste for utfylling'!L32)","v":""}]
[{"$f":"'Sjekkliste for utfylling'!A33","v":14},{"$f":"IF('Sjekkliste for utfylling'!J33<>\"\",1,0)","v":0},0,{"$f":"IF($B15=1,'Sjekkliste for utfylling'!A33,\"\")","v":""},{"$f":"IF($B15=1,'Sjekkliste for utfylling'!B33,\"\")","v":""},null,{"$f":"IF($B15=0,\"\",'Sjekkliste for utfylling'!L33)","v":""}]
[{"$f":"'Sjekkliste for utfylling'!A34","v":15},{"$f":"IF('Sjekkliste for utfylling'!J34<>\"\",1,0)","v":0},0,{"$f":"IF($B16=1,'Sjekkliste for utfylling'!A34,\"\")","v":""},{"$f":"IF($B16=1,'Sjekkliste for utfylling'!B34,\"\")","v":""},null,{"$f":"IF($B16=0,\"\",'Sjekkliste for utfylling'!L34)","v":""}]
[{"$f":"'Sjekkliste for utfylling'!A35","v":16},{"$f":"IF('Sjekkliste for utfylling'!J35<>\"\",1,0)","v":0},0,{"$f":"IF($B17=1,'Sjekkliste for utfylling'!A35,\"\")","v":""},{"$f":"IF($B17=1,'Sjekkliste for utfylling'!B35,\"\")","v":""},null,{"$f":"IF($B17=0,\"\",'Sjekkliste for utfylling'!L35)","v":""}]
[{"$f":"'Sjekkliste for utfylling'!A36","v":17},{"$f":"IF('Sjekkliste for utfylling'!J36<>\"\",1,0)","v":0},0,{"$f":"IF($B18=1,'Sjekkliste for utfylling'!A36,\"\")","v":""},{"$f":"IF($B18=1,'Sjekkliste for utfylling'!B36,\"\")","v":""},null,{"$f":"IF($B18=0,\"\",'Sjekkliste for utfylling'!L36)","v":""}]
[{"$f":"'Sjekkliste for utfylling'!A37","v":18},{"$f":"IF('Sjekkliste for utfylling'!J37<>\"\",1,0)","v":0},0,{"$f":"IF($B19=1,'Sjekkliste for utfylling'!A37,\"\")","v":""},{"$f":"IF($B19=1,'Sjekkliste for utfylling'!B37,\"\")","v":""},null,{"$f":"IF($B19=0,\"\",'Sjekkliste for utfylling'!L37)","v":""}]
[{"$f":"'Sjekkliste for utfylling'!A38","v":19},{"$f":"IF('Sjekkliste for utfylling'!J38<>\"\",1,0)","v":0},0,{"$f":"IF($B20=1,'Sjekkliste for utfylling'!A38,\"\")","v":""},{"$f":"IF($B20=1,'Sjekkliste for utfylling'!B38,\"\")","v":""},null,{"$f":"IF($B20=0,\"\",'Sjekkliste for utfylling'!L38)","v":""}]
[{"$f":"'Sjekkliste for utfylling'!A39","v":20},{"$f":"IF('Sjekkliste for utfylling'!J39<>\"\",1,0)","v":0},0,{"$f":"IF($B21=1,'Sjekkliste for utfylling'!A39,\"\")","v":""},{"$f":"IF($B21=1,'Sjekkliste for utfylling'!B39,\"\")","v":""},null,{"$f":"IF($B21=0,\"\",'Sjekkliste for utfylling'!L39)","v":""}]
[{"$f":"'Sjekkliste for utfylling'!A40","v":21},{"$f":"IF('Sjekkliste for utfylling'!J40<>\"\",1,0)","v":0},0,{"$f":"IF($B22=1,'Sjekkliste for utfylling'!A40,\"\")","v":""},{"$f":"IF($B22=1,'Sjekkliste for utfylling'!B40,\"\")","v":""},null,{"$f":"IF($B22=0,\"\",'Sjekkliste for utfylling'!L40)","v":""}]
[{"$f":"'Sjekkliste for utfylling'!A41","v":22},{"$f":"IF('Sjekkliste for utfylling'!J41<>\"\",1,0)","v":0},0,{"$f":"IF($B23=1,'Sjekkliste for utfylling'!A41,\"\")","v":""},{"$f":"IF($B23=1,'Sjekkliste for utfylling'!B41,\"\")","v":""},null,{"$f":"IF($B23=0,\"\",'Sjekkliste for utfylling'!L41)","v":""}]
[{"$f":"'Sjekkliste for utfylling'!A43","v":23},{"$f":"IF('Sjekkliste for utfylling'!J43<>\"\",1,0)","v":0},0,{"$f":"IF($B24=1,'Sjekkliste for utfylling'!A43,\"\")","v":""},{"$f":"IF($B24=1,'Sjekkliste for utfylling'!B43,\"\")","v":""},null,{"$f":"IF($B24=0,\"\",'Sjekkliste for utfylling'!L43)","v":""}]
[{"$f":"'Sjekkliste for utfylling'!A44","v":24},{"$f":"IF('Sjekkliste for utfylling'!J44<>\"\",1,0)","v":0},0,{"$f":"IF($B25=1,'Sjekkliste for utfylling'!A44,\"\")","v":""},{"$f":"IF($B25=1,'Sjekkliste for utfylling'!B44,\"\")","v":""},null,{"$f":"IF($B25=0,\"\",'Sjekkliste for utfylling'!L44)","v":""}]
[{"$f":"'Sjekkliste for utfylling'!A45","v":25},{"$f":"IF('Sjekkliste for utfylling'!J45<>\"\",1,0)","v":0},0,{"$f":"IF($B26=1,'Sjekkliste for utfylling'!A45,\"\")","v":""},{"$f":"IF($B26=1,'Sjekkliste for utfylling'!B45,\"\")","v":""},null,{"$f":"IF($B26=0,\"\",'Sjekkliste for utfylling'!L45)","v":""}]
[{"$f":"'Sjekkliste for utfylling'!A46","v":26},{"$f":"IF('Sjekkliste for utfylling'!J46<>\"\",1,0)","v":0},0,{"$f":"IF($B27=1,'Sjekkliste for utfylling'!A46,\"\")","v":""},{"$f":"IF($B27=1,'Sjekkliste for utfylling'!B46,\"\")","v":""},null,{"$f":"IF($B27=0,\"\",'Sjekkliste for utfylling'!L46)","v":""}]
[{"$f":"'Sjekkliste for utfylling'!A48","v":27},{"$f":"IF('Sjekkliste for utfylling'!J48<>\"\",1,0)","v":0},0,{"$f":"IF($B28=1,'Sjekkliste for utfylling'!A48,\"\")","v":""},{"$f":"IF($B28=1,'Sjekkliste for utfylling'!B48,\"\")","v":""},null,{"$f":"IF($B28=0,\"\",'Sjekkliste for utfylling'!L48)","v":""}]
[{"$f":"'Sjekkliste for utfylling'!A49","v":28},{"$f":"IF('Sjekkliste for utfylling'!J49<>\"\",1,0)","v":0},0,{"$f":"IF($B29=1,'Sjekkliste for utfylling'!A49,\"\")","v":""},{"$f":"IF($B29=1,'Sjekkliste for utfylling'!B49,\"\")","v":""},null,{"$f":"IF($B29=0,\"\",'Sjekkliste for utfylling'!L49)","v":""}]
[{"$f":"'Sjekkliste for utfylling'!A50","v":29},{"$f":"IF('Sjekkliste for utfylling'!J50<>\"\",1,0)","v":0},{"$f":"SUM(B30:B30)","v":0},{"$f":"IF($B30=1,'Sjekkliste for utfylling'!A50,\"\")","v":""},{"$f":"IF($B30=1,'Sjekkliste for utfylling'!B50,\"\")","v":""},null,{"$f":"IF($B30=0,\"\",'Sjekkliste for utfylling'!L50)","v":""}]
[{"$f":"'Sjekkliste for utfylling'!A51","v":30},{"$f":"IF('Sjekkliste for utfylling'!J51<>\"\",1,0)","v":0},0,{"$f":"IF($B31=1,'Sjekkliste for utfylling'!A51,\"\")","v":""},{"$f":"IF($B31=1,'Sjekkliste for utfylling'!B51,\"\")","v":""},null,{"$f":"IF($B31=0,\"\",'Sjekkliste for utfylling'!L51)","v":""}]
[{"$f":"'Sjekkliste for utfylling'!A54","v":31},{"$f":"IF('Sjekkliste for utfylling'!J54<>\"\",1,0)","v":0},0,{"$f":"IF($B32=1,'Sjekkliste for utfylling'!A54,\"\")","v":""},{"$f":"IF($B32=1,'Sjekkliste for utfylling'!B54,\"\")","v":""},null,{"$f":"IF($B32=0,\"\",'Sjekkliste for utfylling'!L54)","v":""}]
[{"$f":"'Sjekkliste for utfylling'!A56","v":32},{"$f":"IF('Sjekkliste for utfylling'!J56<>\"\",1,0)","v":0},0,{"$f":"IF($B33=1,'Sjekkliste for utfylling'!A56,\"\")","v":""},{"$f":"IF($B33=1,'Sjekkliste for utfylling'!B56,\"\")","v":""},null,{"$f":"IF($B33=0,\"\",'Sjekkliste for utfylling'!L56)","v":""}]
[{"$f":"'Sjekkliste for utfylling'!A57","v":33},{"$f":"IF('Sjekkliste for utfylling'!J57<>\"\",1,0)","v":0},0,{"$f":"IF($B34=1,'Sjekkliste for utfylling'!A57,\"\")","v":""},{"$f":"IF($B34=1,'Sjekkliste for utfylling'!B57,\"\")","v":""},null,{"$f":"IF($B34=0,\"\",'Sjekkliste for utfylling'!L57)","v":""}]
[{"$f":"'Sjekkliste for utfylling'!A58","v":34},{"$f":"IF('Sjekkliste for utfylling'!J58<>\"\",1,0)","v":0},0,{"$f":"IF($B35=1,'Sjekkliste for utfylling'!A58,\"\")","v":""},{"$f":"IF($B35=1,'Sjekkliste for utfylling'!B58,\"\")","v":""},null,{"$f":"IF($B35=0,\"\",'Sjekkliste for utfylling'!L58)","v":""}]
[{"$f":"'Sjekkliste for utfylling'!A59","v":35},{"$f":"IF('Sjekkliste for utfylling'!J59<>\"\",1,0)","v":0},0,{"$f":"IF($B36=1,'Sjekkliste for utfylling'!A59,\"\")","v":""},{"$f":"IF($B36=1,'Sjekkliste for utfylling'!B59,\"\")","v":""},null,{"$f":"IF($B36=0,\"\",'Sjekkliste for utfylling'!L59)","v":""}]
[{"$f":"'Sjekkliste for utfylling'!A61","v":36},{"$f":"IF('Sjekkliste for utfylling'!J61<>\"\",1,0)","v":0},0,{"$f":"IF($B37=1,'Sjekkliste for utfylling'!A61,\"\")","v":""},{"$f":"IF($B37=1,'Sjekkliste for utfylling'!B61,\"\")","v":""},null,{"$f":"IF($B37=0,\"\",'Sjekkliste for utfylling'!L61)","v":""}]
[{"$f":"'Sjekkliste for utfylling'!A62","v":37},{"$f":"IF('Sjekkliste for utfylling'!J62<>\"\",1,0)","v":0},0,{"$f":"IF($B38=1,'Sjekkliste for utfylling'!A62,\"\")","v":""},{"$f":"IF($B38=1,'Sjekkliste for utfylling'!B62,\"\")","v":""},null,{"$f":"IF($B38=0,\"\",'Sjekkliste for utfylling'!L62)","v":""}]
[{"$f":"'Sjekkliste for utfylling'!A64","v":38},{"$f":"IF('Sjekkliste for utfylling'!J64<>\"\",1,0)","v":0},0,{"$f":"IF($B39=1,'Sjekkliste for utfylling'!A64,\"\")","v":""},{"$f":"IF($B39=1,'Sjekkliste for utfylling'!B64,\"\")","v":""},null,{"$f":"IF($B39=0,\"\",'Sjekkliste for utfylling'!L64)","v":""}]
[{"$f":"'Sjekkliste for utfylling'!A65","v":39},{"$f":"IF('Sjekkliste for utfylling'!J65<>\"\",1,0)","v":0},0,{"$f":"IF($B40=1,'Sjekkliste for utfylling'!A65,\"\")","v":""},{"$f":"IF($B40=1,'Sjekkliste for utfylling'!B65,\"\")","v":""},null,{"$f":"IF($B40=0,\"\",'Sjekkliste for utfylling'!L65)","v":""}]
[{"$f":"'Sjekkliste for utfylling'!A67","v":40},{"$f":"IF('Sjekkliste for utfylling'!J67<>\"\",1,0)","v":0},0,{"$f":"IF($B41=1,'Sjekkliste for utfylling'!A67,\"\")","v":""},{"$f":"IF($B41=1,'Sjekkliste for utfylling'!B67,\"\")","v":""},null,{"$f":"IF($B41=0,\"\",'Sjekkliste for utfylling'!L67)","v":""}]
[{"$f":"'Sjekkliste for utfylling'!A68","v":41},{"$f":"IF('Sjekkliste for utfylling'!J68<>\"\",1,0)","v":0},0,{"$f":"IF($B42=1,'Sjekkliste for utfylling'!A68,\"\")","v":""},{"$f":"IF($B42=1,'Sjekkliste for utfylling'!B68,\"\")","v":""},null,{"$f":"IF($B42=0,\"\",'Sjekkliste for utfylling'!L68)","v":""}]
[{"$f":"'Sjekkliste for utfylling'!A69","v":42},{"$f":"IF('Sjekkliste for utfylling'!J69<>\"\",1,0)","v":0},0,{"$f":"IF($B43=1,'Sjekkliste for utfylling'!A69,\"\")","v":""},{"$f":"IF($B43=1,'Sjekkliste for utfylling'!B69,\"\")","v":""},null,{"$f":"IF($B43=0,\"\",'Sjekkliste for utfylling'!L69)","v":""}]
[{"$f":"'Sjekkliste for utfylling'!A71","v":43},{"$f":"IF('Sjekkliste for utfylling'!J71<>\"\",1,0)","v":0},{"$f":"SUM(B44:B44)","v":0},{"$f":"IF($B44=1,'Sjekkliste for utfylling'!A71,\"\")","v":""},{"$f":"IF($B44=1,'Sjekkliste for utfylling'!B71,\"\")","v":""},null,{"$f":"IF($B44=0,\"\",'Sjekkliste for utfylling'!L71)","v":""}]
[{"$f":"'Sjekkliste for utfylling'!A74","v":44},{"$f":"IF('Sjekkliste for utfylling'!J74<>\"\",1,0)","v":0},0,{"$f":"IF($B45=1,'Sjekkliste for utfylling'!A74,\"\")","v":""},{"$f":"IF($B45=1,'Sjekkliste for utfylling'!B74,\"\")","v":""},null,{"$f":"IF($B45=0,\"\",'Sjekkliste for utfylling'!L74)","v":""}]
[{"$f":"'Sjekkliste for utfylling'!A75","v":45},{"$f":"IF('Sjekkliste for utfylling'!J75<>\"\",1,0)","v":0},0,{"$f":"IF($B46=1,'Sjekkliste for utfylling'!A75,\"\")","v":""},{"$f":"IF($B46=1,'Sjekkliste for utfylling'!B75,\"\")","v":""},null,{"$f":"IF($B46=0,\"\",'Sjekkliste for utfylling'!L75)","v":""}]
[{"$f":"'Sjekkliste for utfylling'!A76","v":46},{"$f":"IF('Sjekkliste for utfylling'!J76<>\"\",1,0)","v":0},{"$f":"SUM(B47:B47)","v":0},{"$f":"IF($B47=1,'Sjekkliste for utfylling'!A76,\"\")","v":""},{"$f":"IF($B47=1,'Sjekkliste for utfylling'!B76,\"\")","v":""},null,{"$f":"IF($B47=0,\"\",'Sjekkliste for utfylling'!L76)","v":""}]
[{"$f":"'Sjekkliste for utfylling'!A77","v":47},{"$f":"IF('Sjekkliste for utfylling'!J77<>\"\",1,0)","v":0},{"$f":"SUM(B48:B48)","v":0},{"$f":"IF($B48=1,'Sjekkliste for utfylling'!A77,\"\")","v":""},{"$f":"IF($B48=1,'Sjekkliste for utfylling'!B77,\"\")","v":""},null,{"$f":"IF($B48=0,\"\",'Sjekkliste for utfylling'!L77)","v":""}]
[{"$f":"'Sjekkliste for utfylling'!A79","v":48},{"$f":"IF('Sjekkliste for utfylling'!J79<>\"\",1,0)","v":0},0,{"$f":"IF($B49=1,'Sjekkliste for utfylling'!A79,\"\")","v":""},{"$f":"IF($B49=1,'Sjekkliste for utfylling'!B79,\"\")","v":""},null,{"$f":"IF($B49=0,\"\",'Sjekkliste for utfylling'!L79)","v":""}]
[{"$f":"'Sjekkliste for utfylling'!A80","v":49},{"$f":"IF('Sjekkliste for utfylling'!J80<>\"\",1,0)","v":0},0,{"$f":"IF($B50=1,'Sjekkliste for utfylling'!A80,\"\")","v":""},{"$f":"IF($B50=1,'Sjekkliste for utfylling'!B80,\"\")","v":""},null,{"$f":"IF($B50=0,\"\",'Sjekkliste for utfylling'!L80)","v":""}]
[{"$f":"'Sjekkliste for utfylling'!A81","v":50},{"$f":"IF('Sjekkliste for utfylling'!J81<>\"\",1,0)","v":0},0,{"$f":"IF($B51=1,'Sjekkliste for utfylling'!A81,\"\")","v":""},{"$f":"IF($B51=1,'Sjekkliste for utfylling'!B81,\"\")","v":""},null,{"$f":"IF($B51=0,\"\",'Sjekkliste for utfylling'!L81)","v":""}]
[{"$f":"'Sjekkliste for utfylling'!A82","v":51},{"$f":"IF('Sjekkliste for utfylling'!J82<>\"\",1,0)","v":0},0,{"$f":"IF($B52=1,'Sjekkliste for utfylling'!A82,\"\")","v":""},{"$f":"IF($B52=1,'Sjekkliste for utfylling'!B82,\"\")","v":""},null,{"$f":"IF($B52=0,\"\",'Sjekkliste for utfylling'!L82)","v":""}]
[{"$f":"'Sjekkliste for utfylling'!A83","v":52},{"$f":"IF('Sjekkliste for utfylling'!J83<>\"\",1,0)","v":0},0,{"$f":"IF($B53=1,'Sjekkliste for utfylling'!A83,\"\")","v":""},{"$f":"IF($B53=1,'Sjekkliste for utfylling'!B83,\"\")","v":""},null,{"$f":"IF($B53=0,\"\",'Sjekkliste for utfylling'!L83)","v":""}]
[{"$f":"'Sjekkliste for utfylling'!A84","v":53},{"$f":"IF('Sjekkliste for utfylling'!J84<>\"\",1,0)","v":0},0,{"$f":"IF($B54=1,'Sjekkliste for utfylling'!A84,\"\")","v":""},{"$f":"IF($B54=1,'Sjekkliste for utfylling'!B84,\"\")","v":""},null,{"$f":"IF($B54=0,\"\",'Sjekkliste for utfylling'!L84)","v":""}]
[{"$f":"'Sjekkliste for utfylling'!A86","v":54},{"$f":"IF('Sjekkliste for utfylling'!J86<>\"\",1,0)","v":0},0,{"$f":"IF($B55=1,'Sjekkliste for utfylling'!A86,\"\")","v":""},{"$f":"IF($B55=1,'Sjekkliste for utfylling'!B86,\"\")","v":""},null,{"$f":"IF($B55=0,\"\",'Sjekkliste for utfylling'!L86)","v":""}]
[{"$f":"'Sjekkliste for utfylling'!A87","v":55},{"$f":"IF('Sjekkliste for utfylling'!J87<>\"\",1,0)","v":0},0,{"$f":"IF($B56=1,'Sjekkliste for utfylling'!A87,\"\")","v":""},{"$f":"IF($B56=1,'Sjekkliste for utfylling'!B87,\"\")","v":""},null,{"$f":"IF($B56=0,\"\",'Sjekkliste for utfylling'!L87)","v":""}]
[{"$f":"'Sjekkliste for utfylling'!A88","v":56},{"$f":"IF('Sjekkliste for utfylling'!J88<>\"\",1,0)","v":0},0,{"$f":"IF($B57=1,'Sjekkliste for utfylling'!A88,\"\")","v":""},{"$f":"IF($B57=1,'Sjekkliste for utfylling'!B88,\"\")","v":""},null,{"$f":"IF($B57=0,\"\",'Sjekkliste for utfylling'!L88)","v":""}]
[{"$f":"'Sjekkliste for utfylling'!A89","v":57},{"$f":"IF('Sjekkliste for utfylling'!J89<>\"\",1,0)","v":0},0,{"$f":"IF($B58=1,'Sjekkliste for utfylling'!A89,\"\")","v":""},{"$f":"IF($B58=1,'Sjekkliste for utfylling'!B89,\"\")","v":""},null,{"$f":"IF($B58=0,\"\",'Sjekkliste for utfylling'!L89)","v":""}]
[{"$f":"'Sjekkliste for utfylling'!A90","v":58},{"$f":"IF('Sjekkliste for utfylling'!J90<>\"\",1,0)","v":0},0,{"$f":"IF($B59=1,'Sjekkliste for utfylling'!A90,\"\")","v":""},{"$f":"IF($B59=1,'Sjekkliste for utfylling'!B90,\"\")","v":""},null,{"$f":"IF($B59=0,\"\",'Sjekkliste for utfylling'!L90)","v":""}]
[{"$f":"'Sjekkliste for utfylling'!A91","v":59},{"$f":"IF('Sjekkliste for utfylling'!J91<>\"\",1,0)","v":0},0,{"$f":"IF($B60=1,'Sjekkliste for utfylling'!A91,\"\")","v":""},{"$f":"IF($B60=1,'Sjekkliste for utfylling'!B91,\"\")","v":""},null,{"$f":"IF($B60=0,\"\",'Sjekkliste for utfylling'!L91)","v":""}]
[{"$f":"'Sjekkliste for utfylling'!A92","v":60},{"$f":"IF('Sjekkliste for utfylling'!J92<>\"\",1,0)","v":0},{"$f":"SUM(B61:B61)","v":0},{"$f":"IF($B61=1,'Sjekkliste for utfylling'!A92,\"\")","v":""},{"$f":"IF($B61=1,'Sjekkliste for utfylling'!B92,\"\")","v":""},null,{"$f":"IF($B61=0,\"\",'Sjekkliste for utfylling'!L92)","v":""}]
[{"$f":"'Sjekkliste for utfylling'!A93","v":61},{"$f":"IF('Sjekkliste for utfylling'!J93<>\"\",1,0)","v":0},0,{"$f":"IF($B62=1,'Sjekkliste for utfylling'!A93,\"\")","v":""},{"$f":"IF($B62=1,'Sjekkliste for utfylling'!B93,\"\")","v":""},null,{"$f":"IF($B62=0,\"\",'Sjekkliste for utfylling'!L93)","v":""}]
[{"$f":"'Sjekkliste for utfylling'!A94","v":62},{"$f":"IF('Sjekkliste for utfylling'!J94<>\"\",1,0)","v":0},0,{"$f":"IF($B63=1,'Sjekkliste for utfylling'!A94,\"\")","v":""},{"$f":"IF($B63=1,'Sjekkliste for utfylling'!B94,\"\")","v":""},null,{"$f":"IF($B63=0,\"\",'Sjekkliste for utfylling'!L94)","v":""}]
[{"$f":"'Sjekkliste for utfylling'!A96","v":63},{"$f":"IF('Sjekkliste for utfylling'!J96<>\"\",1,0)","v":0},0,{"$f":"IF($B64=1,'Sjekkliste for utfylling'!A96,\"\")","v":""},{"$f":"IF($B64=1,'Sjekkliste for utfylling'!B96,\"\")","v":""},null,{"$f":"IF($B64=0,\"\",'Sjekkliste for utfylling'!L96)","v":""}]
[{"$f":"'Sjekkliste for utfylling'!A97","v":64},{"$f":"IF('Sjekkliste for utfylling'!J97<>\"\",1,0)","v":0},0,{"$f":"IF($B65=1,'Sjekkliste for utfylling'!A97,\"\")","v":""},{"$f":"IF($B65=1,'Sjekkliste for utfylling'!B97,\"\")","v":""},null,{"$f":"IF($B65=0,\"\",'Sjekkliste for utfylling'!L97)","v":""}]
[{"$f":"'Sjekkliste for utfylling'!A99","v":65},{"$f":"IF('Sjekkliste for utfylling'!J99<>\"\",1,0)","v":0},0,{"$f":"IF($B66=1,'Sjekkliste for utfylling'!A99,\"\")","v":""},{"$f":"IF($B66=1,'Sjekkliste for utfylling'!B99,\"\")","v":""},null,{"$f":"IF($B66=0,\"\",'Sjekkliste for utfylling'!L99)","v":""}]
[{"$f":"'Sjekkliste for utfylling'!A100","v":66},{"$f":"IF('Sjekkliste for utfylling'!J100<>\"\",1,0)","v":0},0,{"$f":"IF($B67=1,'Sjekkliste for utfylling'!A100,\"\")","v":""},{"$f":"IF($B67=1,'Sjekkliste for utfylling'!B100,\"\")","v":""},null,{"$f":"IF($B67=0,\"\",'Sjekkliste for utfylling'!L100)","v":""}]
[{"$f":"'Sjekkliste for utfylling'!A102","v":67},{"$f":"IF('Sjekkliste for utfylling'!J102<>\"\",1,0)","v":0},0,{"$f":"IF($B68=1,'Sjekkliste for utfylling'!A102,\"\")","v":""},{"$f":"IF($B68=1,'Sjekkliste for utfylling'!B102,\"\")","v":""},null,{"$f":"IF($B68=0,\"\",'Sjekkliste for utfylling'!L102)","v":""}]
[{"$f":"'Sjekkliste for utfylling'!A103","v":68},{"$f":"IF('Sjekkliste for utfylling'!J103<>\"\",1,0)","v":0},0,{"$f":"IF($B69=1,'Sjekkliste for utfylling'!A103,\"\")","v":""},{"$f":"IF($B69=1,'Sjekkliste for utfylling'!B103,\"\")","v":""},null,{"$f":"IF($B69=0,\"\",'Sjekkliste for utfylling'!L103)","v":""}]
[{"$f":"'Sjekkliste for utfylling'!A105","v":69},{"$f":"IF('Sjekkliste for utfylling'!J105<>\"\",1,0)","v":0},0,{"$f":"IF($B70=1,'Sjekkliste for utfylling'!A105,\"\")","v":""},{"$f":"IF($B70=1,'Sjekkliste for utfylling'!B105,\"\")","v":""},null,{"$f":"IF($B70=0,\"\",'Sjekkliste for utfylling'!L105)","v":""}]
[{"$f":"'Sjekkliste for utfylling'!A106","v":70},{"$f":"IF('Sjekkliste for utfylling'!J106<>\"\",1,0)","v":0},0,{"$f":"IF($B71=1,'Sjekkliste for utfylling'!A106,\"\")","v":""},{"$f":"IF($B71=1,'Sjekkliste for utfylling'!B106,\"\")","v":""},null,{"$f":"IF($B71=0,\"\",'Sjekkliste for utfylling'!L106)","v":""}]
[{"$f":"'Sjekkliste for utfylling'!A107","v":71},{"$f":"IF('Sjekkliste for utfylling'!J107<>\"\",1,0)","v":0},0,{"$f":"IF($B72=1,'Sjekkliste for utfylling'!A107,\"\")","v":""},{"$f":"IF($B72=1,'Sjekkliste for utfylling'!B107,\"\")","v":""},null,{"$f":"IF($B72=0,\"\",'Sjekkliste for utfylling'!L107)","v":""}]
[{"$f":"'Sjekkliste for utfylling'!A108","v":72},{"$f":"IF('Sjekkliste for utfylling'!J108<>\"\",1,0)","v":0},0,{"$f":"IF($B73=1,'Sjekkliste for utfylling'!A108,\"\")","v":""},{"$f":"IF($B73=1,'Sjekkliste for utfylling'!B108,\"\")","v":""},null,{"$f":"IF($B73=0,\"\",'Sjekkliste for utfylling'!L108)","v":""}]
[{"$f":"'Sjekkliste for utfylling'!A110","v":73},{"$f":"IF('Sjekkliste for utfylling'!J110<>\"\",1,0)","v":0},0,{"$f":"IF($B74=1,'Sjekkliste for utfylling'!A110,\"\")","v":""},{"$f":"IF($B74=1,'Sjekkliste for utfylling'!B110,\"\")","v":""},null,{"$f":"IF($B74=0,\"\",'Sjekkliste for utfylling'!L110)","v":""}]
[{"$f":"'Sjekkliste for utfylling'!A111","v":74},{"$f":"IF('Sjekkliste for utfylling'!J111<>\"\",1,0)","v":0},0,{"$f":"IF($B75=1,'Sjekkliste for utfylling'!A111,\"\")","v":""},{"$f":"IF($B75=1,'Sjekkliste for utfylling'!B111,\"\")","v":""},null,{"$f":"IF($B75=0,\"\",'Sjekkliste for utfylling'!L111)","v":""}]
[{"$f":"'Sjekkliste for utfylling'!A112","v":75},{"$f":"IF('Sjekkliste for utfylling'!J112<>\"\",1,0)","v":0},0,{"$f":"IF($B76=1,'Sjekkliste for utfylling'!A112,\"\")","v":""},{"$f":"IF($B76=1,'Sjekkliste for utfylling'!B112,\"\")","v":""},null,{"$f":"IF($B76=0,\"\",'Sjekkliste for utfylling'!L112)","v":""}]
[{"$f":"'Sjekkliste for utfylling'!A113","v":76},{"$f":"IF('Sjekkliste for utfylling'!J113<>\"\",1,0)","v":0},0,{"$f":"IF($B77=1,'Sjekkliste for utfylling'!A113,\"\")","v":""},{"$f":"IF($B77=1,'Sjekkliste for utfylling'!B113,\"\")","v":""},null,{"$f":"IF($B77=0,\"\",'Sjekkliste for utfylling'!L113)","v":""}]
[{"$f":"'Sjekkliste for utfylling'!A114","v":77},{"$f":"IF('Sjekkliste for utfylling'!J114<>\"\",1,0)","v":0},0,{"$f":"IF($B78=1,'Sjekkliste for utfylling'!A114,\"\")","v":""},{"$f":"IF($B78=1,'Sjekkliste for utfylling'!B114,\"\")","v":""},null,{"$f":"IF($B78=0,\"\",'Sjekkliste for utfylling'!L114)","v":""}]
[{"$f":"'Sjekkliste for utfylling'!A116","v":78},{"$f":"IF('Sjekkliste for utfylling'!J116<>\"\",1,0)","v":0},0,{"$f":"IF($B79=1,'Sjekkliste for utfylling'!A116,\"\")","v":""},{"$f":"IF($B79=1,'Sjekkliste for utfylling'!B116,\"\")","v":""},null,{"$f":"IF($B79=0,\"\",'Sjekkliste for utfylling'!L116)","v":""}]
[{"$f":"'Sjekkliste for utfylling'!A117","v":79},{"$f":"IF('Sjekkliste for utfylling'!J117<>\"\",1,0)","v":0},0,{"$f":"IF($B80=1,'Sjekkliste for utfylling'!A117,\"\")","v":""},{"$f":"IF($B80=1,'Sjekkliste for utfylling'!B117,\"\")","v":""},null,{"$f":"IF($B80=0,\"\",'Sjekkliste for utfylling'!L117)","v":""}]
[{"$f":"'Sjekkliste for utfylling'!A118","v":80},{"$f":"IF('Sjekkliste for utfylling'!J118<>\"\",1,0)","v":0},0,{"$f":"IF($B81=1,'Sjekkliste for utfylling'!A118,\"\")","v":""},{"$f":"IF($B81=1,'Sjekkliste for utfylling'!B118,\"\")","v":""},null,{"$f":"IF($B81=0,\"\",'Sjekkliste for utfylling'!L118)","v":""}]
[{"$f":"'Sjekkliste for utfylling'!A122","v":81},{"$f":"IF('Sjekkliste for utfylling'!J122<>\"\",1,0)","v":0},0,{"$f":"IF($B82=1,'Sjekkliste for utfylling'!A122,\"\")","v":""},{"$f":"IF($B82=1,'Sjekkliste for utfylling'!B122,\"\")","v":""},null,{"$f":"IF($B82=0,\"\",'Sjekkliste for utfylling'!L122)","v":""}]
[{"$f":"'Sjekkliste for utfylling'!A124","v":82},{"$f":"IF('Sjekkliste for utfylling'!J124<>\"\",1,0)","v":0},0,{"$f":"IF($B83=1,'Sjekkliste for utfylling'!A124,\"\")","v":""},{"$f":"IF($B83=1,'Sjekkliste for utfylling'!B124,\"\")","v":""},null,{"$f":"IF($B83=0,\"\",'Sjekkliste for utfylling'!L124)","v":""}]
[{"$f":"'Sjekkliste for utfylling'!A125","v":83},{"$f":"IF('Sjekkliste for utfylling'!J125<>\"\",1,0)","v":0},0,{"$f":"IF($B84=1,'Sjekkliste for utfylling'!A125,\"\")","v":""},{"$f":"IF($B84=1,'Sjekkliste for utfylling'!B125,\"\")","v":""},null,{"$f":"IF($B84=0,\"\",'Sjekkliste for utfylling'!L125)","v":""}]
[{"$f":"'Sjekkliste for utfylling'!A126","v":84},{"$f":"IF('Sjekkliste for utfylling'!J126<>\"\",1,0)","v":0},0,{"$f":"IF($B85=1,'Sjekkliste for utfylling'!A126,\"\")","v":""},{"$f":"IF($B85=1,'Sjekkliste for utfylling'!B126,\"\")","v":""},null,{"$f":"IF($B85=0,\"\",'Sjekkliste for utfylling'!L126)","v":""}]
[{"$f":"'Sjekkliste for utfylling'!A127","v":85},{"$f":"IF('Sjekkliste for utfylling'!J127<>\"\",1,0)","v":0},0,{"$f":"IF($B86=1,'Sjekkliste for utfylling'!A127,\"\")","v":""},{"$f":"IF($B86=1,'Sjekkliste for utfylling'!B127,\"\")","v":""},null,{"$f":"IF($B86=0,\"\",'Sjekkliste for utfylling'!L127)","v":""}]
[{"$f":"'Sjekkliste for utfylling'!A129","v":86},{"$f":"IF('Sjekkliste for utfylling'!J129<>\"\",1,0)","v":0},{"$f":"SUM(B87:B87)","v":0},{"$f":"IF($B87=1,'Sjekkliste for utfylling'!A129,\"\")","v":""},{"$f":"IF($B87=1,'Sjekkliste for utfylling'!B129,\"\")","v":""},null,{"$f":"IF($B87=0,\"\",'Sjekkliste for utfylling'!L129)","v":""}]
[{"$f":"'Sjekkliste for utfylling'!A130","v":87},{"$f":"IF('Sjekkliste for utfylling'!J130<>\"\",1,0)","v":0},0,{"$f":"IF($B88=1,'Sjekkliste for utfylling'!A130,\"\")","v":""},{"$f":"IF($B88=1,'Sjekkliste for utfylling'!B130,\"\")","v":""},null,{"$f":"IF($B88=0,\"\",'Sjekkliste for utfylling'!L130)","v":""}]
[{"$f":"'Sjekkliste for utfylling'!A132","v":88},{"$f":"IF('Sjekkliste for utfylling'!J132<>\"\",1,0)","v":0},0,{"$f":"IF($B89=1,'Sjekkliste for utfylling'!A132,\"\")","v":""},{"$f":"IF($B89=1,'Sjekkliste for utfylling'!B132,\"\")","v":""},null,{"$f":"IF($B89=0,\"\",'Sjekkliste for utfylling'!L132)","v":""}]
[{"$f":"'Sjekkliste for utfylling'!A133","v":89},{"$f":"IF('Sjekkliste for utfylling'!J133<>\"\",1,0)","v":0},0,{"$f":"IF($B90=1,'Sjekkliste for utfylling'!A133,\"\")","v":""},{"$f":"IF($B90=1,'Sjekkliste for utfylling'!B133,\"\")","v":""},null,{"$f":"IF($B90=0,\"\",'Sjekkliste for utfylling'!L133)","v":""}]
[{"$f":"'Sjekkliste for utfylling'!A134","v":90},{"$f":"IF('Sjekkliste for utfylling'!J134<>\"\",1,0)","v":0},0,{"$f":"IF($B91=1,'Sjekkliste for utfylling'!A134,\"\")","v":""},{"$f":"IF($B91=1,'Sjekkliste for utfylling'!B134,\"\")","v":""},null,{"$f":"IF($B91=0,\"\",'Sjekkliste for utfylling'!L134)","v":""}]
[{"$f":"'Sjekkliste for utfylling'!A135","v":91},{"$f":"IF('Sjekkliste for utfylling'!J135<>\"\",1,0)","v":0},0,{"$f":"IF($B92=1,'Sjekkliste for utfylling'!A135,\"\")","v":""},{"$f":"IF($B92=1,'Sjekkliste for utfylling'!B135,\"\")","v":""},null,{"$f":"IF($B92=0,\"\",'Sjekkliste for utfylling'!L135)","v":""}]
[{"$f":"'Sjekkliste for utfylling'!A146","v":92},{"$f":"IF('Sjekkliste for utfylling'!J146<>\"\",1,0)","v":0},0,{"$f":"IF($B93=1,'Sjekkliste for utfylling'!A146,\"\")","v":""},{"$f":"IF($B93=1,'Sjekkliste for utfylling'!B146,\"\")","v":""},null,{"$f":"IF($B93=0,\"\",'Sjekkliste for utfylling'!L146)","v":""}]
[{"$f":"'Sjekkliste for utfylling'!A148","v":93},{"$f":"IF('Sjekkliste for utfylling'!J148<>\"\",1,0)","v":0},0,{"$f":"IF($B94=1,'Sjekkliste for utfylling'!A148,\"\")","v":""},{"$f":"IF($B94=1,'Sjekkliste for utfylling'!B148,\"\")","v":""},null,{"$f":"IF($B94=0,\"\",'Sjekkliste for utfylling'!L148)","v":""}]
[{"$f":"'Sjekkliste for utfylling'!A150","v":94},{"$f":"IF('Sjekkliste for utfylling'!J150<>\"\",1,0)","v":0},0,{"$f":"IF($B95=1,'Sjekkliste for utfylling'!A150,\"\")","v":""},{"$f":"IF($B95=1,'Sjekkliste for utfylling'!B150,\"\")","v":""},null,{"$f":"IF($B95=0,\"\",'Sjekkliste for utfylling'!L150)","v":""}]
[{"$f":"'Sjekkliste for utfylling'!A151","v":95},{"$f":"IF('Sjekkliste for utfylling'!J151<>\"\",1,0)","v":0},0,{"$f":"IF($B96=1,'Sjekkliste for utfylling'!A151,\"\")","v":""},{"$f":"IF($B96=1,'Sjekkliste for utfylling'!B151,\"\")","v":""},null,{"$f":"IF($B96=0,\"\",'Sjekkliste for utfylling'!L151)","v":""}]
[{"$f":"'Sjekkliste for utfylling'!A152","v":96},{"$f":"IF('Sjekkliste for utfylling'!J152<>\"\",1,0)","v":0},0,{"$f":"IF($B97=1,'Sjekkliste for utfylling'!A152,\"\")","v":""},{"$f":"IF($B97=1,'Sjekkliste for utfylling'!B152,\"\")","v":""},null,{"$f":"IF($B97=0,\"\",'Sjekkliste for utfylling'!L152)","v":""}]
[{"$f":"'Sjekkliste for utfylling'!A154","v":97},{"$f":"IF('Sjekkliste for utfylling'!J154<>\"\",1,0)","v":0},{"$f":"SUM(B98:B98)","v":0},{"$f":"IF($B98=1,'Sjekkliste for utfylling'!A154,\"\")","v":""},{"$f":"IF($B98=1,'Sjekkliste for utfylling'!B154,\"\")","v":""},null,{"$f":"IF($B98=0,\"\",'Sjekkliste for utfylling'!L154)","v":""}]
[{"$f":"'Sjekkliste for utfylling'!A155","v":98},{"$f":"IF('Sjekkliste for utfylling'!J155<>\"\",1,0)","v":0},0,{"$f":"IF($B99=1,'Sjekkliste for utfylling'!A155,\"\")","v":""},{"$f":"IF($B99=1,'Sjekkliste for utfylling'!B155,\"\")","v":""},null,{"$f":"IF($B99=0,\"\",'Sjekkliste for utfylling'!L155)","v":""}]
[{"$f":"'Sjekkliste for utfylling'!A156","v":99},{"$f":"IF('Sjekkliste for utfylling'!J156<>\"\",1,0)","v":0},0,{"$f":"IF($B100=1,'Sjekkliste for utfylling'!A156,\"\")","v":""},{"$f":"IF($B100=1,'Sjekkliste for utfylling'!B156,\"\")","v":""},null,{"$f":"IF($B100=0,\"\",'Sjekkliste for utfylling'!L156)","v":""}]
[{"$f":"'Sjekkliste for utfylling'!A157","v":100},{"$f":"IF('Sjekkliste for utfylling'!J157<>\"\",1,0)","v":0},0,{"$f":"IF($B101=1,'Sjekkliste for utfylling'!A157,\"\")","v":""},{"$f":"IF($B101=1,'Sjekkliste for utfylling'!B157,\"\")","v":""},null,{"$f":"IF($B101=0,\"\",'Sjekkliste for utfylling'!L157)","v":""}]
[{"$f":"'Sjekkliste for utfylling'!A159","v":101},{"$f":"IF('Sjekkliste for utfylling'!J159<>\"\",1,0)","v":0},0,{"$f":"IF($B102=1,'Sjekkliste for utfylling'!A159,\"\")","v":""},{"$f":"IF($B102=1,'Sjekkliste for utfylling'!B159,\"\")","v":""},null,{"$f":"IF($B102=0,\"\",'Sjekkliste for utfylling'!L159)","v":""}]
[{"$f":"'Sjekkliste for utfylling'!A161","v":102},{"$f":"IF('Sjekkliste for utfylling'!J161<>\"\",1,0)","v":0},0,{"$f":"IF($B103=1,'Sjekkliste for utfylling'!A161,\"\")","v":""},{"$f":"IF($B103=1,'Sjekkliste for utfylling'!B161,\"\")","v":""},null,{"$f":"IF($B103=0,\"\",'Sjekkliste for utfylling'!L161)","v":""}]
[{"$f":"'Sjekkliste for utfylling'!A163","v":103},{"$f":"IF('Sjekkliste for utfylling'!J163<>\"\",1,0)","v":0},0,{"$f":"IF($B104=1,'Sjekkliste for utfylling'!A163,\"\")","v":""},{"$f":"IF($B104=1,'Sjekkliste for utfylling'!B163,\"\")","v":""},null,{"$f":"IF($B104=0,\"\",'Sjekkliste for utfylling'!L163)","v":""}]
[{"$f":"'Sjekkliste for utfylling'!A165","v":104},{"$f":"IF('Sjekkliste for utfylling'!J165<>\"\",1,0)","v":0},0,{"$f":"IF($B105=1,'Sjekkliste for utfylling'!A165,\"\")","v":""},{"$f":"IF($B105=1,'Sjekkliste for utfylling'!B165,\"\")","v":""},null,{"$f":"IF($B105=0,\"\",'Sjekkliste for utfylling'!L165)","v":""}]
[{"$f":"'Sjekkliste for utfylling'!A167","v":105},{"$f":"IF('Sjekkliste for utfylling'!J167<>\"\",1,0)","v":0},{"$f":"SUM(B106:B106)","v":0},{"$f":"IF($B106=1,'Sjekkliste for utfylling'!A167,\"\")","v":""},{"$f":"IF($B106=1,'Sjekkliste for utfylling'!B167,\"\")","v":""},null,{"$f":"IF($B106=0,\"\",'Sjekkliste for utfylling'!L167)","v":""}]
[{"$f":"'Sjekkliste for utfylling'!A168","v":106},{"$f":"IF('Sjekkliste for utfylling'!J168<>\"\",1,0)","v":0},0,{"$f":"IF($B107=1,'Sjekkliste for utfylling'!A168,\"\")","v":""},{"$f":"IF($B107=1,'Sjekkliste for utfylling'!B168,\"\")","v":""},null,{"$f":"IF($B107=0,\"\",'Sjekkliste for utfylling'!L168)","v":""}]
[{"$f":"'Sjekkliste for utfylling'!A169","v":107},{"$f":"IF('Sjekkliste for utfylling'!J169<>\"\",1,0)","v":0},0,{"$f":"IF($B108=1,'Sjekkliste for utfylling'!A169,\"\")","v":""},{"$f":"IF($B108=1,'Sjekkliste for utfylling'!B169,\"\")","v":""},null,{"$f":"IF($B108=0,\"\",'Sjekkliste for utfylling'!L169)","v":""}]
[{"$f":"'Sjekkliste for utfylling'!A171","v":108},{"$f":"IF('Sjekkliste for utfylling'!J171<>\"\",1,0)","v":0},0,{"$f":"IF($B109=1,'Sjekkliste for utfylling'!A171,\"\")","v":""},{"$f":"IF($B109=1,'Sjekkliste for utfylling'!B171,\"\")","v":""},null,{"$f":"IF($B109=0,\"\",'Sjekkliste for utfylling'!L171)","v":""}]
[{"$f":"'Sjekkliste for utfylling'!A174","v":109},{"$f":"IF('Sjekkliste for utfylling'!J174<>\"\",1,0)","v":0},{"$f":"SUM(B110:B110)","v":0},{"$f":"IF($B110=1,'Sjekkliste for utfylling'!A174,\"\")","v":""},{"$f":"IF($B110=1,'Sjekkliste for utfylling'!B174,\"\")","v":""},null,{"$f":"IF($B110=0,\"\",'Sjekkliste for utfylling'!L174)","v":""}]
[{"$f":"'Sjekkliste for utfylling'!A176","v":110},{"$f":"IF('Sjekkliste for utfylling'!J176<>\"\",1,0)","v":0},0,{"$f":"IF($B111=1,'Sjekkliste for utfylling'!A176,\"\")","v":""},{"$f":"IF($B111=1,'Sjekkliste for utfylling'!B176,\"\")","v":""},null,{"$f":"IF($B111=0,\"\",'Sjekkliste for utfylling'!L176)","v":""}]
[{"$f":"'Sjekkliste for utfylling'!A177","v":111},{"$f":"IF('Sjekkliste for utfylling'!J177<>\"\",1,0)","v":0},0,{"$f":"IF($B112=1,'Sjekkliste for utfylling'!A177,\"\")","v":""},{"$f":"IF($B112=1,'Sjekkliste for utfylling'!B177,\"\")","v":""},null,{"$f":"IF($B112=0,\"\",'Sjekkliste for utfylling'!L177)","v":""}]
[{"$f":"'Sjekkliste for utfylling'!A179","v":112},{"$f":"IF('Sjekkliste for utfylling'!J179<>\"\",1,0)","v":0},0,{"$f":"IF($B113=1,'Sjekkliste for utfylling'!A179,\"\")","v":""},{"$f":"IF($B113=1,'Sjekkliste for utfylling'!B179,\"\")","v":""},null,{"$f":"IF($B113=0,\"\",'Sjekkliste for utfylling'!L179)","v":""}]
[{"$f":"'Sjekkliste for utfylling'!A181","v":113},{"$f":"IF('Sjekkliste for utfylling'!J181<>\"\",1,0)","v":0},0,{"$f":"IF($B114=1,'Sjekkliste for utfylling'!A181,\"\")","v":""},{"$f":"IF($B114=1,'Sjekkliste for utfylling'!B181,\"\")","v":""},null,{"$f":"IF($B114=0,\"\",'Sjekkliste for utfylling'!L181)","v":""}]
[{"$f":"'Sjekkliste for utfylling'!A183","v":114},{"$f":"IF('Sjekkliste for utfylling'!J183<>\"\",1,0)","v":0},{"$f":"SUM(B115:B115)","v":0},{"$f":"IF($B115=1,'Sjekkliste for utfylling'!A183,\"\")","v":""},{"$f":"IF($B115=1,'Sjekkliste for utfylling'!B183,\"\")","v":""},null,{"$f":"IF($B115=0,\"\",'Sjekkliste for utfylling'!L183)","v":""}]
[{"$f":"'Sjekkliste for utfylling'!A185","v":115},{"$f":"IF('Sjekkliste for utfylling'!J185<>\"\",1,0)","v":0},0,{"$f":"IF($B116=1,'Sjekkliste for utfylling'!A185,\"\")","v":""},{"$f":"IF($B116=1,'Sjekkliste for utfylling'!B185,\"\")","v":""},null,{"$f":"IF($B116=0,\"\",'Sjekkliste for utfylling'!L185)","v":""}]
[{"$f":"'Sjekkliste for utfylling'!A186","v":116},{"$f":"IF('Sjekkliste for utfylling'!J186<>\"\",1,0)","v":0},0,{"$f":"IF($B117=1,'Sjekkliste for utfylling'!A186,\"\")","v":""},{"$f":"IF($B117=1,'Sjekkliste for utfylling'!B186,\"\")","v":""},null,{"$f":"IF($B117=0,\"\",'Sjekkliste for utfylling'!L186)","v":""}]
[{"$f":"'Sjekkliste for utfylling'!A188","v":117},{"$f":"IF('Sjekkliste for utfylling'!J188<>\"\",1,0)","v":0},{"$f":"SUM(B118:B118)","v":0},{"$f":"IF($B118=1,'Sjekkliste for utfylling'!A188,\"\")","v":""},{"$f":"IF($B118=1,'Sjekkliste for utfylling'!B188,\"\")","v":""},null,{"$f":"IF($B118=0,\"\",'Sjekkliste for utfylling'!L188)","v":""}]
[{"$f":"'Sjekkliste for utfylling'!A190","v":118},{"$f":"IF('Sjekkliste for utfylling'!J190<>\"\",1,0)","v":0},0,{"$f":"IF($B119=1,'Sjekkliste for utfylling'!A190,\"\")","v":""},{"$f":"IF($B119=1,'Sjekkliste for utfylling'!B190,\"\")","v":""},null,{"$f":"IF($B119=0,\"\",'Sjekkliste for utfylling'!L190)","v":""}]
[{"$f":"'Sjekkliste for utfylling'!A191","v":119},{"$f":"IF('Sjekkliste for utfylling'!J191<>\"\",1,0)","v":0},0,{"$f":"IF($B120=1,'Sjekkliste for utfylling'!A191,\"\")","v":""},{"$f":"IF($B120=1,'Sjekkliste for utfylling'!B191,\"\")","v":""},null,{"$f":"IF($B120=0,\"\",'Sjekkliste for utfylling'!L191)","v":""}]
[{"$f":"'Sjekkliste for utfylling'!A194","v":120},{"$f":"IF('Sjekkliste for utfylling'!J194<>\"\",1,0)","v":0},0,{"$f":"IF($B121=1,'Sjekkliste for utfylling'!A194,\"\")","v":""},{"$f":"IF($B121=1,'Sjekkliste for utfylling'!B194,\"\")","v":""},null,{"$f":"IF($B121=0,\"\",'Sjekkliste for utfylling'!L194)","v":""}]
[{"$f":"'Sjekkliste for utfylling'!A195","v":121},{"$f":"IF('Sjekkliste for utfylling'!J195<>\"\",1,0)","v":0},0,{"$f":"IF($B122=1,'Sjekkliste for utfylling'!A195,\"\")","v":""},{"$f":"IF($B122=1,'Sjekkliste for utfylling'!B195,\"\")","v":""},null,{"$f":"IF($B122=0,\"\",'Sjekkliste for utfylling'!L195)","v":""}]
[{"$f":"'Sjekkliste for utfylling'!A196","v":122},{"$f":"IF('Sjekkliste for utfylling'!J196<>\"\",1,0)","v":0},0,{"$f":"IF($B123=1,'Sjekkliste for utfylling'!A196,\"\")","v":""},{"$f":"IF($B123=1,'Sjekkliste for utfylling'!B196,\"\")","v":""},null,{"$f":"IF($B123=0,\"\",'Sjekkliste for utfylling'!L196)","v":""}]
[{"$f":"'Sjekkliste for utfylling'!A197","v":123},{"$f":"IF('Sjekkliste for utfylling'!J197<>\"\",1,0)","v":0},0,{"$f":"IF($B124=1,'Sjekkliste for utfylling'!A197,\"\")","v":""},{"$f":"IF($B124=1,'Sjekkliste for utfylling'!B197,\"\")","v":""},null,{"$f":"IF($B124=0,\"\",'Sjekkliste for utfylling'!L197)","v":""}]
[{"$f":"'Sjekkliste for utfylling'!A198","v":124},{"$f":"IF('Sjekkliste for utfylling'!J198<>\"\",1,0)","v":0},0,{"$f":"IF($B125=1,'Sjekkliste for utfylling'!A198,\"\")","v":""},{"$f":"IF($B125=1,'Sjekkliste for utfylling'!B198,\"\")","v":""},null,{"$f":"IF($B125=0,\"\",'Sjekkliste for utfylling'!L198)","v":""}]
[{"$f":"'Sjekkliste for utfylling'!A199","v":125},{"$f":"IF('Sjekkliste for utfylling'!J199<>\"\",1,0)","v":0},0,{"$f":"IF($B126=1,'Sjekkliste for utfylling'!A199,\"\")","v":""},{"$f":"IF($B126=1,'Sjekkliste for utfylling'!B199,\"\")","v":""},null,{"$f":"IF($B126=0,\"\",'Sjekkliste for utfylling'!L199)","v":""}]
[{"$f":"'Sjekkliste for utfylling'!A200","v":126},{"$f":"IF('Sjekkliste for utfylling'!J200<>\"\",1,0)","v":0},0,{"$f":"IF($B127=1,'Sjekkliste for utfylling'!A200,\"\")","v":""},{"$f":"IF($B127=1,'Sjekkliste for utfylling'!B200,\"\")","v":""},null,{"$f":"IF($B127=0,\"\",'Sjekkliste for utfylling'!L200)","v":""}]
[{"$f":"'Sjekkliste for utfylling'!A202","v":127},{"$f":"IF('Sjekkliste for utfylling'!J202<>\"\",1,0)","v":0},0,{"$f":"IF($B128=1,'Sjekkliste for utfylling'!A202,\"\")","v":""},{"$f":"IF($B128=1,'Sjekkliste for utfylling'!B202,\"\")","v":""},null,{"$f":"IF($B128=0,\"\",'Sjekkliste for utfylling'!L202)","v":""}]
[{"$f":"'Sjekkliste for utfylling'!A203","v":128},{"$f":"IF('Sjekkliste for utfylling'!J203<>\"\",1,0)","v":0},0,{"$f":"IF($B129=1,'Sjekkliste for utfylling'!A203,\"\")","v":""},{"$f":"IF($B129=1,'Sjekkliste for utfylling'!B203,\"\")","v":""},null,{"$f":"IF($B129=0,\"\",'Sjekkliste for utfylling'!L203)","v":""}]
[{"$f":"'Sjekkliste for utfylling'!A205","v":129},{"$f":"IF('Sjekkliste for utfylling'!J205<>\"\",1,0)","v":0},0,{"$f":"IF($B130=1,'Sjekkliste for utfylling'!A205,\"\")","v":""},{"$f":"IF($B130=1,'Sjekkliste for utfylling'!B205,\"\")","v":""},null,{"$f":"IF($B130=0,\"\",'Sjekkliste for utfylling'!L205)","v":""}]
[{"$f":"'Sjekkliste for utfylling'!A206","v":130},{"$f":"IF('Sjekkliste for utfylling'!J206<>\"\",1,0)","v":0},0,{"$f":"IF($B131=1,'Sjekkliste for utfylling'!A206,\"\")","v":""},{"$f":"IF($B131=1,'Sjekkliste for utfylling'!B206,\"\")","v":""},null,{"$f":"IF($B131=0,\"\",'Sjekkliste for utfylling'!L206)","v":""}]
[{"$f":"'Sjekkliste for utfylling'!A207","v":131},{"$f":"IF('Sjekkliste for utfylling'!J207<>\"\",1,0)","v":0},0,{"$f":"IF($B132=1,'Sjekkliste for utfylling'!A207,\"\")","v":""},{"$f":"IF($B132=1,'Sjekkliste for utfylling'!B207,\"\")","v":""},null,{"$f":"IF($B132=0,\"\",'Sjekkliste for utfylling'!L207)","v":""}]

{"sheet":"IA-svar","index":5,"n_rows":132,"n_cols":7,"rows_kept":132,"cut":false,"hidden":false,"merged":[]}
[null,null,{"$f":"COUNTIF(C2:C186,\"=1\")","v":0},"Svart IA",{"$f":"'Sjekkliste for utfylling'!B2","v":0},{"$f":"'Sjekkliste for utfylling'!B3","v":2020},"Kommentarer"]
[{"$f":"'Sjekkliste for utfylling'!A13","v":1},{"$f":"IF('Sjekkliste for utfylling'!K13<>\"\",1,0)","v":0},{"$f":"SUM(B2:B2)","v":0},{"$f":"IF($B2=1,'Sjekkliste for utfylling'!A13,\"\")","v":""},{"$f":"IF($B2=1,'Sjekkliste for utfylling'!B13,\"\")","v":""},null,{"$f":"IF($B2=0,\"\",'Sjekkliste for utfylling'!L13)","v":""}]
[{"$f":"'Sjekkliste for utfylling'!A16","v":2},{"$f":"IF('Sjekkliste for utfylling'!K16<>\"\",1,0)","v":0},0,{"$f":"IF($B3=1,'Sjekkliste for utfylling'!A16,\"\")","v":""},{"$f":"IF($B3=1,'Sjekkliste for utfylling'!B16,\"\")","v":""},null,{"$f":"IF($B3=0,\"\",'Sjekkliste for utfylling'!L16)","v":""}]
[{"$f":"'Sjekkliste for utfylling'!A17","v":3},{"$f":"IF('Sjekkliste for utfylling'!K17<>\"\",1,0)","v":0},0,{"$f":"IF($B4=1,'Sjekkliste for utfylling'!A17,\"\")","v":""},{"$f":"IF($B4=1,'Sjekkliste for utfylling'!B17,\"\")","v":""},null,{"$f":"IF($B4=0,\"\",'Sjekkliste for utfylling'!L17)","v":""}]
[{"$f":"'Sjekkliste for utfylling'!A18","v":4},{"$f":"IF('Sjekkliste for utfylling'!K18<>\"\",1,0)","v":0},0,{"$f":"IF($B5=1,'Sjekkliste for utfylling'!A18,\"\")","v":""},{"$f":"IF($B5=1,'Sjekkliste for utfylling'!B18,\"\")","v":""},null,{"$f":"IF($B5=0,\"\",'Sjekkliste for utfylling'!L18)","v":""}]
[{"$f":"'Sjekkliste for utfylling'!A20","v":5},{"$f":"IF('Sjekkliste for utfylling'!K20<>\"\",1,0)","v":0},0,{"$f":"IF($B6=1,'Sjekkliste for utfylling'!A20,\"\")","v":""},{"$f":"IF($B6=1,'Sjekkliste for utfylling'!B20,\"\")","v":""},null,{"$f":"IF($B6=0,\"\",'Sjekkliste for utfylling'!L20)","v":""}]
[{"$f":"'Sjekkliste for utfylling'!A21","v":6},{"$f":"IF('Sjekkliste for utfylling'!K21<>\"\",1,0)","v":0},0,{"$f":"IF($B7=1,'Sjekkliste for utfylling'!A21,\"\")","v":""},{"$f":"IF($B7=1,'Sjekkliste for utfylling'!B21,\"\")","v":""},null,{"$f":"IF($B7=0,\"\",'Sjekkliste for utfylling'!L21)","v":""}]
[{"$f":"'Sjekkliste for utfylling'!A24","v":7},{"$f":"IF('Sjekkliste for utfylling'!K24<>\"\",1,0)","v":0},0,{"$f":"IF($B8=1,'Sjekkliste for utfylling'!A24,\"\")","v":""},{"$f":"IF($B8=1,'Sjekkliste for utfylling'!B24,\"\")","v":""},null,{"$f":"IF($B8=0,\"\",'Sjekkliste for utfylling'!L24)","v":""}]
[{"$f":"'Sjekkliste for utfylling'!A25","v":8},{"$f":"IF('Sjekkliste for utfylling'!K25<>\"\",1,0)","v":0},0,{"$f":"IF($B9=1,'Sjekkliste for utfylling'!A25,\"\")","v":""},{"$f":"IF($B9=1,'Sjekkliste for utfylling'!B25,\"\")","v":""},null,{"$f":"IF($B9=0,\"\",'Sjekkliste for utfylling'!L25)","v":""}]
[{"$f":"'Sjekkliste for utfylling'!A27","v":9},{"$f":"IF('Sjekkliste for utfylling'!K27<>\"\",1,0)","v":0},0,{"$f":"IF($B10=1,'Sjekkliste for utfylling'!A27,\"\")","v":""},{"$f":"IF($B10=1,'Sjekkliste for utfylling'!B27,\"\")","v":""},null,{"$f":"IF($B10=0,\"\",'Sjekkliste for utfylling'!L27)","v":""}]
[{"$f":"'Sjekkliste for utfylling'!A28","v":10},{"$f":"IF('Sjekkliste for utfylling'!K28<>\"\",1,0)","v":0},0,{"$f":"IF($B11=1,'Sjekkliste for utfylling'!A28,\"\")","v":""},{"$f":"IF($B11=1,'Sjekkliste for utfylling'!B28,\"\")","v":""},null,{"$f":"IF($B11=0,\"\",'Sjekkliste for utfylling'!L28)","v":""}]
[{"$f":"'Sjekkliste for utfylling'!A29","v":11},{"$f":"IF('Sjekkliste for utfylling'!K29<>\"\",1,0)","v":0},0,{"$f":"IF($B12=1,'Sjekkliste for utfylling'!A29,\"\")","v":""},{"$f":"IF($B12=1,'Sjekkliste for utfylling'!B29,\"\")","v":""},null,{"$f":"IF($B12=0,\"\",'Sjekkliste for utfylling'!L29)","v":""}]
[{"$f":"'Sjekkliste for utfylling'!A31","v":12},{"$f":"IF('Sjekkliste for utfylling'!K31<>\"\",1,0)","v":0},0,{"$f":"IF($B13=1,'Sjekkliste for utfylling'!A31,\"\")","v":""},{"$f":"IF($B13=1,'Sjekkliste for utfylling'!B31,\"\")","v":""},null,{"$f":"IF($B13=0,\"\",'Sjekkliste for utfylling'!L31)","v":""}]
[{"$f":"'Sjekkliste for utfylling'!A32","v":13},{"$f":"IF('Sjekkliste for utfylling'!K32<>\"\",1,0)","v":0},0,{"$f":"IF($B14=1,'Sjekkliste for utfylling'!A32,\"\")","v":""},{"$f":"IF($B14=1,'Sjekkliste for utfylling'!B32,\"\")","v":""},null,{"$f":"IF($B14=0,\"\",'Sjekkliste for utfylling'!L32)","v":""}]
[{"$f":"'Sjekkliste for utfylling'!A33","v":14},{"$f":"IF('Sjekkliste for utfylling'!K33<>\"\",1,0)","v":0},0,{"$f":"IF($B15=1,'Sjekkliste for utfylling'!A33,\"\")","v":""},{"$f":"IF($B15=1,'Sjekkliste for utfylling'!B33,\"\")","v":""},null,{"$f":"IF($B15=0,\"\",'Sjekkliste for utfylling'!L33)","v":""}]
[{"$f":"'Sjekkliste for utfylling'!A34","v":15},{"$f":"IF('Sjekkliste for utfylling'!K34<>\"\",1,0)","v":0},0,{"$f":"IF($B16=1,'Sjekkliste for utfylling'!A34,\"\")","v":""},{"$f":"IF($B16=1,'Sjekkliste for utfylling'!B34,\"\")","v":""},null,{"$f":"IF($B16=0,\"\",'Sjekkliste for utfylling'!L34)","v":""}]
[{"$f":"'Sjekkliste for utfylling'!A35","v":16},{"$f":"IF('Sjekkliste for utfylling'!K35<>\"\",1,0)","v":0},0,{"$f":"IF($B17=1,'Sjekkliste for utfylling'!A35,\"\")","v":""},{"$f":"IF($B17=1,'Sjekkliste for utfylling'!B35,\"\")","v":""},null,{"$f":"IF($B17=0,\"\",'Sjekkliste for utfylling'!L35)","v":""}]
[{"$f":"'Sjekkliste for utfylling'!A36","v":17},{"$f":"IF('Sjekkliste for utfylling'!K36<>\"\",1,0)","v":0},0,{"$f":"IF($B18=1,'Sjekkliste for utfylling'!A36,\"\")","v":""},{"$f":"IF($B18=1,'Sjekkliste for utfylling'!B36,\"\")","v":""},null,{"$f":"IF($B18=0,\"\",'Sjekkliste for utfylling'!L36)","v":""}]
[{"$f":"'Sjekkliste for utfylling'!A37","v":18},{"$f":"IF('Sjekkliste for utfylling'!K37<>\"\",1,0)","v":0},0,{"$f":"IF($B19=1,'Sjekkliste for utfylling'!A37,\"\")","v":""},{"$f":"IF($B19=1,'Sjekkliste for utfylling'!B37,\"\")","v":""},null,{"$f":"IF($B19=0,\"\",'Sjekkliste for utfylling'!L37)","v":""}]
[{"$f":"'Sjekkliste for utfylling'!A38","v":19},{"$f":"IF('Sjekkliste for utfylling'!K38<>\"\",1,0)","v":0},0,{"$f":"IF($B20=1,'Sjekkliste for utfylling'!A38,\"\")","v":""},{"$f":"IF($B20=1,'Sjekkliste for utfylling'!B38,\"\")","v":""},null,{"$f":"IF($B20=0,\"\",'Sjekkliste for utfylling'!L38)","v":""}]
[{"$f":"'Sjekkliste for utfylling'!A39","v":20},{"$f":"IF('Sjekkliste for utfylling'!K39<>\"\",1,0)","v":0},0,{"$f":"IF($B21=1,'Sjekkliste for utfylling'!A39,\"\")","v":""},{"$f":"IF($B21=1,'Sjekkliste for utfylling'!B39,\"\")","v":""},null,{"$f":"IF($B21=0,\"\",'Sjekkliste for utfylling'!L39)","v":""}]
[{"$f":"'Sjekkliste for utfylling'!A40","v":21},{"$f":"IF('Sjekkliste for utfylling'!K40<>\"\",1,0)","v":0},0,{"$f":"IF($B22=1,'Sjekkliste for utfylling'!A40,\"\")","v":""},{"$f":"IF($B22=1,'Sjekkliste for utfylling'!B40,\"\")","v":""},null,{"$f":"IF($B22=0,\"\",'Sjekkliste for utfylling'!L40)","v":""}]
[{"$f":"'Sjekkliste for utfylling'!A41","v":22},{"$f":"IF('Sjekkliste for utfylling'!K41<>\"\",1,0)","v":0},0,{"$f":"IF($B23=1,'Sjekkliste for utfylling'!A41,\"\")","v":""},{"$f":"IF($B23=1,'Sjekkliste for utfylling'!B41,\"\")","v":""},null,{"$f":"IF($B23=0,\"\",'Sjekkliste for utfylling'!L41)","v":""}]
[{"$f":"'Sjekkliste for utfylling'!A43","v":23},{"$f":"IF('Sjekkliste for utfylling'!K43<>\"\",1,0)","v":0},0,{"$f":"IF($B24=1,'Sjekkliste for utfylling'!A43,\"\")","v":""},{"$f":"IF($B24=1,'Sjekkliste for utfylling'!B43,\"\")","v":""},null,{"$f":"IF($B24=0,\"\",'Sjekkliste for utfylling'!L43)","v":""}]
[{"$f":"'Sjekkliste for utfylling'!A44","v":24},{"$f":"IF('Sjekkliste for utfylling'!K44<>\"\",1,0)","v":0},0,{"$f":"IF($B25=1,'Sjekkliste for utfylling'!A44,\"\")","v":""},{"$f":"IF($B25=1,'Sjekkliste for utfylling'!B44,\"\")","v":""},null,{"$f":"IF($B25=0,\"\",'Sjekkliste for utfylling'!L44)","v":""}]
[{"$f":"'Sjekkliste for utfylling'!A45","v":25},{"$f":"IF('Sjekkliste for utfylling'!K45<>\"\",1,0)","v":0},0,{"$f":"IF($B26=1,'Sjekkliste for utfylling'!A45,\"\")","v":""},{"$f":"IF($B26=1,'Sjekkliste for utfylling'!B45,\"\")","v":""},null,{"$f":"IF($B26=0,\"\",'Sjekkliste for utfylling'!L45)","v":""}]
[{"$f":"'Sjekkliste for utfylling'!A46","v":26},{"$f":"IF('Sjekkliste for utfylling'!K46<>\"\",1,0)","v":0},0,{"$f":"IF($B27=1,'Sjekkliste for utfylling'!A46,\"\")","v":""},{"$f":"IF($B27=1,'Sjekkliste for utfylling'!B46,\"\")","v":""},null,{"$f":"IF($B27=0,\"\",'Sjekkliste for utfylling'!L46)","v":""}]
[{"$f":"'Sjekkliste for utfylling'!A48","v":27},{"$f":"IF('Sjekkliste for utfylling'!K48<>\"\",1,0)","v":0},0,{"$f":"IF($B28=1,'Sjekkliste for utfylling'!A48,\"\")","v":""},{"$f":"IF($B28=1,'Sjekkliste for utfylling'!B48,\"\")","v":""},null,{"$f":"IF($B28=0,\"\",'Sjekkliste for utfylling'!L48)","v":""}]
[{"$f":"'Sjekkliste for utfylling'!A49","v":28},{"$f":"IF('Sjekkliste for utfylling'!K49<>\"\",1,0)","v":0},0,{"$f":"IF($B29=1,'Sjekkliste for utfylling'!A49,\"\")","v":""},{"$f":"IF($B29=1,'Sjekkliste for utfylling'!B49,\"\")","v":""},null,{"$f":"IF($B29=0,\"\",'Sjekkliste for utfylling'!L49)","v":""}]
[{"$f":"'Sjekkliste for utfylling'!A50","v":29},{"$f":"IF('Sjekkliste for utfylling'!K50<>\"\",1,0)","v":0},{"$f":"SUM(B30:B30)","v":0},{"$f":"IF($B30=1,'Sjekkliste for utfylling'!A50,\"\")","v":""},{"$f":"IF($B30=1,'Sjekkliste for utfylling'!B50,\"\")","v":""},null,{"$f":"IF($B30=0,\"\",'Sjekkliste for utfylling'!L50)","v":""}]
[{"$f":"'Sjekkliste for utfylling'!A51","v":30},{"$f":"IF('Sjekkliste for utfylling'!K51<>\"\",1,0)","v":0},0,{"$f":"IF($B31=1,'Sjekkliste for utfylling'!A51,\"\")","v":""},{"$f":"IF($B31=1,'Sjekkliste for utfylling'!B51,\"\")","v":""},null,{"$f":"IF($B31=0,\"\",'Sjekkliste for utfylling'!L51)","v":""}]
[{"$f":"'Sjekkliste for utfylling'!A54","v":31},{"$f":"IF('Sjekkliste for utfylling'!K54<>\"\",1,0)","v":0},0,{"$f":"IF($B32=1,'Sjekkliste for utfylling'!A54,\"\")","v":""},{"$f":"IF($B32=1,'Sjekkliste for utfylling'!B54,\"\")","v":""},null,{"$f":"IF($B32=0,\"\",'Sjekkliste for utfylling'!L54)","v":""}]
[{"$f":"'Sjekkliste for utfylling'!A56","v":32},{"$f":"IF('Sjekkliste for utfylling'!K56<>\"\",1,0)","v":0},0,{"$f":"IF($B33=1,'Sjekkliste for utfylling'!A56,\"\")","v":""},{"$f":"IF($B33=1,'Sjekkliste for utfylling'!B56,\"\")","v":""},null,{"$f":"IF($B33=0,\"\",'Sjekkliste for utfylling'!L56)","v":""}]
[{"$f":"'Sjekkliste for utfylling'!A57","v":33},{"$f":"IF('Sjekkliste for utfylling'!K57<>\"\",1,0)","v":0},0,{"$f":"IF($B34=1,'Sjekkliste for utfylling'!A57,\"\")","v":""},{"$f":"IF($B34=1,'Sjekkliste for utfylling'!B57,\"\")","v":""},null,{"$f":"IF($B34=0,\"\",'Sjekkliste for utfylling'!L57)","v":""}]
[{"$f":"'Sjekkliste for utfylling'!A58","v":34},{"$f":"IF('Sjekkliste for utfylling'!K58<>\"\",1,0)","v":0},0,{"$f":"IF($B35=1,'Sjekkliste for utfylling'!A58,\"\")","v":""},{"$f":"IF($B35=1,'Sjekkliste for utfylling'!B58,\"\")","v":""},null,{"$f":"IF($B35=0,\"\",'Sjekkliste for utfylling'!L58)","v":""}]
[{"$f":"'Sjekkliste for utfylling'!A59","v":35},{"$f":"IF('Sjekkliste for utfylling'!K59<>\"\",1,0)","v":0},0,{"$f":"IF($B36=1,'Sjekkliste for utfylling'!A59,\"\")","v":""},{"$f":"IF($B36=1,'Sjekkliste for utfylling'!B59,\"\")","v":""},null,{"$f":"IF($B36=0,\"\",'Sjekkliste for utfylling'!L59)","v":""}]
[{"$f":"'Sjekkliste for utfylling'!A61","v":36},{"$f":"IF('Sjekkliste for utfylling'!K61<>\"\",1,0)","v":0},0,{"$f":"IF($B37=1,'Sjekkliste for utfylling'!A61,\"\")","v":""},{"$f":"IF($B37=1,'Sjekkliste for utfylling'!B61,\"\")","v":""},null,{"$f":"IF($B37=0,\"\",'Sjekkliste for utfylling'!L61)","v":""}]
[{"$f":"'Sjekkliste for utfylling'!A62","v":37},{"$f":"IF('Sjekkliste for utfylling'!K62<>\"\",1,0)","v":0},0,{"$f":"IF($B38=1,'Sjekkliste for utfylling'!A62,\"\")","v":""},{"$f":"IF($B38=1,'Sjekkliste for utfylling'!B62,\"\")","v":""},null,{"$f":"IF($B38=0,\"\",'Sjekkliste for utfylling'!L62)","v":""}]
[{"$f":"'Sjekkliste for utfylling'!A64","v":38},{"$f":"IF('Sjekkliste for utfylling'!K64<>\"\",1,0)","v":0},0,{"$f":"IF($B39=1,'Sjekkliste for utfylling'!A64,\"\")","v":""},{"$f":"IF($B39=1,'Sjekkliste for utfylling'!B64,\"\")","v":""},null,{"$f":"IF($B39=0,\"\",'Sjekkliste for utfylling'!L64)","v":""}]
[{"$f":"'Sjekkliste for utfylling'!A65","v":39},{"$f":"IF('Sjekkliste for utfylling'!K65<>\"\",1,0)","v":0},0,{"$f":"IF($B40=1,'Sjekkliste for utfylling'!A65,\"\")","v":""},{"$f":"IF($B40=1,'Sjekkliste for utfylling'!B65,\"\")","v":""},null,{"$f":"IF($B40=0,\"\",'Sjekkliste for utfylling'!L65)","v":""}]
[{"$f":"'Sjekkliste for utfylling'!A67","v":40},{"$f":"IF('Sjekkliste for utfylling'!K67<>\"\",1,0)","v":0},0,{"$f":"IF($B41=1,'Sjekkliste for utfylling'!A67,\"\")","v":""},{"$f":"IF($B41=1,'Sjekkliste for utfylling'!B67,\"\")","v":""},null,{"$f":"IF($B41=0,\"\",'Sjekkliste for utfylling'!L67)","v":""}]
[{"$f":"'Sjekkliste for utfylling'!A68","v":41},{"$f":"IF('Sjekkliste for utfylling'!K68<>\"\",1,0)","v":0},0,{"$f":"IF($B42=1,'Sjekkliste for utfylling'!A68,\"\")","v":""},{"$f":"IF($B42=1,'Sjekkliste for utfylling'!B68,\"\")","v":""},null,{"$f":"IF($B42=0,\"\",'Sjekkliste for utfylling'!L68)","v":""}]
[{"$f":"'Sjekkliste for utfylling'!A69","v":42},{"$f":"IF('Sjekkliste for utfylling'!K69<>\"\",1,0)","v":0},0,{"$f":"IF($B43=1,'Sjekkliste for utfylling'!A69,\"\")","v":""},{"$f":"IF($B43=1,'Sjekkliste for utfylling'!B69,\"\")","v":""},null,{"$f":"IF($B43=0,\"\",'Sjekkliste for utfylling'!L69)","v":""}]
[{"$f":"'Sjekkliste for utfylling'!A71","v":43},{"$f":"IF('Sjekkliste for utfylling'!K71<>\"\",1,0)","v":0},{"$f":"SUM(B44:B44)","v":0},{"$f":"IF($B44=1,'Sjekkliste for utfylling'!A71,\"\")","v":""},{"$f":"IF($B44=1,'Sjekkliste for utfylling'!B71,\"\")","v":""},null,{"$f":"IF($B44=0,\"\",'Sjekkliste for utfylling'!L71)","v":""}]
[{"$f":"'Sjekkliste for utfylling'!A74","v":44},{"$f":"IF('Sjekkliste for utfylling'!K74<>\"\",1,0)","v":0},0,{"$f":"IF($B45=1,'Sjekkliste for utfylling'!A74,\"\")","v":""},{"$f":"IF($B45=1,'Sjekkliste for utfylling'!B74,\"\")","v":""},null,{"$f":"IF($B45=0,\"\",'Sjekkliste for utfylling'!L74)","v":""}]
[{"$f":"'Sjekkliste for utfylling'!A75","v":45},{"$f":"IF('Sjekkliste for utfylling'!K75<>\"\",1,0)","v":0},0,{"$f":"IF($B46=1,'Sjekkliste for utfylling'!A75,\"\")","v":""},{"$f":"IF($B46=1,'Sjekkliste for utfylling'!B75,\"\")","v":""},null,{"$f":"IF($B46=0,\"\",'Sjekkliste for utfylling'!L75)","v":""}]
[{"$f":"'Sjekkliste for utfylling'!A76","v":46},{"$f":"IF('Sjekkliste for utfylling'!K76<>\"\",1,0)","v":0},{"$f":"SUM(B47:B47)","v":0},{"$f":"IF($B47=1,'Sjekkliste for utfylling'!A76,\"\")","v":""},{"$f":"IF($B47=1,'Sjekkliste for utfylling'!B76,\"\")","v":""},null,{"$f":"IF($B47=0,\"\",'Sjekkliste for utfylling'!L76)","v":""}]
[{"$f":"'Sjekkliste for utfylling'!A77","v":47},{"$f":"IF('Sjekkliste for utfylling'!K77<>\"\",1,0)","v":0},{"$f":"SUM(B48:B48)","v":0},{"$f":"IF($B48=1,'Sjekkliste for utfylling'!A77,\"\")","v":""},{"$f":"IF($B48=1,'Sjekkliste for utfylling'!B77,\"\")","v":""},null,{"$f":"IF($B48=0,\"\",'Sjekkliste for utfylling'!L77)","v":""}]
[{"$f":"'Sjekkliste for utfylling'!A79","v":48},{"$f":"IF('Sjekkliste for utfylling'!K79<>\"\",1,0)","v":0},0,{"$f":"IF($B49=1,'Sjekkliste for utfylling'!A79,\"\")","v":""},{"$f":"IF($B49=1,'Sjekkliste for utfylling'!B79,\"\")","v":""},null,{"$f":"IF($B49=0,\"\",'Sjekkliste for utfylling'!L79)","v":""}]
[{"$f":"'Sjekkliste for utfylling'!A80","v":49},{"$f":"IF('Sjekkliste for utfylling'!K80<>\"\",1,0)","v":0},0,{"$f":"IF($B50=1,'Sjekkliste for utfylling'!A80,\"\")","v":""},{"$f":"IF($B50=1,'Sjekkliste for utfylling'!B80,\"\")","v":""},null,{"$f":"IF($B50=0,\"\",'Sjekkliste for utfylling'!L80)","v":""}]
[{"$f":"'Sjekkliste for utfylling'!A81","v":50},{"$f":"IF('Sjekkliste for utfylling'!K81<>\"\",1,0)","v":0},0,{"$f":"IF($B51=1,'Sjekkliste for utfylling'!A81,\"\")","v":""},{"$f":"IF($B51=1,'Sjekkliste for utfylling'!B81,\"\")","v":""},null,{"$f":"IF($B51=0,\"\",'Sjekkliste for utfylling'!L81)","v":""}]
[{"$f":"'Sjekkliste for utfylling'!A82","v":51},{"$f":"IF('Sjekkliste for utfylling'!K82<>\"\",1,0)","v":0},0,{"$f":"IF($B52=1,'Sjekkliste for utfylling'!A82,\"\")","v":""},{"$f":"IF($B52=1,'Sjekkliste for utfylling'!B82,\"\")","v":""},null,{"$f":"IF($B52=0,\"\",'Sjekkliste for utfylling'!L82)","v":""}]
[{"$f":"'Sjekkliste for utfylling'!A83","v":52},{"$f":"IF('Sjekkliste for utfylling'!K83<>\"\",1,0)","v":0},0,{"$f":"IF($B53=1,'Sjekkliste for utfylling'!A83,\"\")","v":""},{"$f":"IF($B53=1,'Sjekkliste for utfylling'!B83,\"\")","v":""},null,{"$f":"IF($B53=0,\"\",'Sjekkliste for utfylling'!L83)","v":""}]
[{"$f":"'Sjekkliste for utfylling'!A84","v":53},{"$f":"IF('Sjekkliste for utfylling'!K84<>\"\",1,0)","v":0},0,{"$f":"IF($B54=1,'Sjekkliste for utfylling'!A84,\"\")","v":""},{"$f":"IF($B54=1,'Sjekkliste for utfylling'!B84,\"\")","v":""},null,{"$f":"IF($B54=0,\"\",'Sjekkliste for utfylling'!L84)","v":""}]
[{"$f":"'Sjekkliste for utfylling'!A86","v":54},{"$f":"IF('Sjekkliste for utfylling'!K86<>\"\",1,0)","v":0},0,{"$f":"IF($B55=1,'Sjekkliste for utfylling'!A86,\"\")","v":""},{"$f":"IF($B55=1,'Sjekkliste for utfylling'!B86,\"\")","v":""},null,{"$f":"IF($B55=0,\"\",'Sjekkliste for utfylling'!L86)","v":""}]
[{"$f":"'Sjekkliste for utfylling'!A87","v":55},{"$f":"IF('Sjekkliste for utfylling'!K87<>\"\",1,0)","v":0},0,{"$f":"IF($B56=1,'Sjekkliste for utfylling'!A87,\"\")","v":""},{"$f":"IF($B56=1,'Sjekkliste for utfylling'!B87,\"\")","v":""},null,{"$f":"IF($B56=0,\"\",'Sjekkliste for utfylling'!L87)","v":""}]
[{"$f":"'Sjekkliste for utfylling'!A88","v":56},{"$f":"IF('Sjekkliste for utfylling'!K88<>\"\",1,0)","v":0},0,{"$f":"IF($B57=1,'Sjekkliste for utfylling'!A88,\"\")","v":""},{"$f":"IF($B57=1,'Sjekkliste for utfylling'!B88,\"\")","v":""},null,{"$f":"IF($B57=0,\"\",'Sjekkliste for utfylling'!L88)","v":""}]
[{"$f":"'Sjekkliste for utfylling'!A89","v":57},{"$f":"IF('Sjekkliste for utfylling'!K89<>\"\",1,0)","v":0},0,{"$f":"IF($B58=1,'Sjekkliste for utfylling'!A89,\"\")","v":""},{"$f":"IF($B58=1,'Sjekkliste for utfylling'!B89,\"\")","v":""},null,{"$f":"IF($B58=0,\"\",'Sjekkliste for utfylling'!L89)","v":""}]
[{"$f":"'Sjekkliste for utfylling'!A90","v":58},{"$f":"IF('Sjekkliste for utfylling'!K90<>\"\",1,0)","v":0},0,{"$f":"IF($B59=1,'Sjekkliste for utfylling'!A90,\"\")","v":""},{"$f":"IF($B59=1,'Sjekkliste for utfylling'!B90,\"\")","v":""},null,{"$f":"IF($B59=0,\"\",'Sjekkliste for utfylling'!L90)","v":""}]
[{"$f":"'Sjekkliste for utfylling'!A91","v":59},{"$f":"IF('Sjekkliste for utfylling'!K91<>\"\",1,0)","v":0},0,{"$f":"IF($B60=1,'Sjekkliste for utfylling'!A91,\"\")","v":""},{"$f":"IF($B60=1,'Sjekkliste for utfylling'!B91,\"\")","v":""},null,{"$f":"IF($B60=0,\"\",'Sjekkliste for utfylling'!L91)","v":""}]
[{"$f":"'Sjekkliste for utfylling'!A92","v":60},{"$f":"IF('Sjekkliste for utfylling'!K92<>\"\",1,0)","v":0},{"$f":"SUM(B61:B61)","v":0},{"$f":"IF($B61=1,'Sjekkliste for utfylling'!A92,\"\")","v":""},{"$f":"IF($B61=1,'Sjekkliste for utfylling'!B92,\"\")","v":""},null,{"$f":"IF($B61=0,\"\",'Sjekkliste for utfylling'!L92)","v":""}]
[{"$f":"'Sjekkliste for utfylling'!A93","v":61},{"$f":"IF('Sjekkliste for utfylling'!K93<>\"\",1,0)","v":0},0,{"$f":"IF($B62=1,'Sjekkliste for utfylling'!A93,\"\")","v":""},{"$f":"IF($B62=1,'Sjekkliste for utfylling'!B93,\"\")","v":""},null,{"$f":"IF($B62=0,\"\",'Sjekkliste for utfylling'!L93)","v":""}]
[{"$f":"'Sjekkliste for utfylling'!A94","v":62},{"$f":"IF('Sjekkliste for utfylling'!K94<>\"\",1,0)","v":0},0,{"$f":"IF($B63=1,'Sjekkliste for utfylling'!A94,\"\")","v":""},{"$f":"IF($B63=1,'Sjekkliste for utfylling'!B94,\"\")","v":""},null,{"$f":"IF($B63=0,\"\",'Sjekkliste for utfylling'!L94)","v":""}]
[{"$f":"'Sjekkliste for utfylling'!A96","v":63},{"$f":"IF('Sjekkliste for utfylling'!K96<>\"\",1,0)","v":0},0,{"$f":"IF($B64=1,'Sjekkliste for utfylling'!A96,\"\")","v":""},{"$f":"IF($B64=1,'Sjekkliste for utfylling'!B96,\"\")","v":""},null,{"$f":"IF($B64=0,\"\",'Sjekkliste for utfylling'!L96)","v":""}]
[{"$f":"'Sjekkliste for utfylling'!A97","v":64},{"$f":"IF('Sjekkliste for utfylling'!K97<>\"\",1,0)","v":0},0,{"$f":"IF($B65=1,'Sjekkliste for utfylling'!A97,\"\")","v":""},{"$f":"IF($B65=1,'Sjekkliste for utfylling'!B97,\"\")","v":""},null,{"$f":"IF($B65=0,\"\",'Sjekkliste for utfylling'!L97)","v":""}]
[{"$f":"'Sjekkliste for utfylling'!A99","v":65},{"$f":"IF('Sjekkliste for utfylling'!K99<>\"\",1,0)","v":0},0,{"$f":"IF($B66=1,'Sjekkliste for utfylling'!A99,\"\")","v":""},{"$f":"IF($B66=1,'Sjekkliste for utfylling'!B99,\"\")","v":""},null,{"$f":"IF($B66=0,\"\",'Sjekkliste for utfylling'!L99)","v":""}]
[{"$f":"'Sjekkliste for utfylling'!A100","v":66},{"$f":"IF('Sjekkliste for utfylling'!K100<>\"\",1,0)","v":0},0,{"$f":"IF($B67=1,'Sjekkliste for utfylling'!A100,\"\")","v":""},{"$f":"IF($B67=1,'Sjekkliste for utfylling'!B100,\"\")","v":""},null,{"$f":"IF($B67=0,\"\",'Sjekkliste for utfylling'!L100)","v":""}]
[{"$f":"'Sjekkliste for utfylling'!A102","v":67},{"$f":"IF('Sjekkliste for utfylling'!K102<>\"\",1,0)","v":0},0,{"$f":"IF($B68=1,'Sjekkliste for utfylling'!A102,\"\")","v":""},{"$f":"IF($B68=1,'Sjekkliste for utfylling'!B102,\"\")","v":""},null,{"$f":"IF($B68=0,\"\",'Sjekkliste for utfylling'!L102)","v":""}]
[{"$f":"'Sjekkliste for utfylling'!A103","v":68},{"$f":"IF('Sjekkliste for utfylling'!K103<>\"\",1,0)","v":0},0,{"$f":"IF($B69=1,'Sjekkliste for utfylling'!A103,\"\")","v":""},{"$f":"IF($B69=1,'Sjekkliste for utfylling'!B103,\"\")","v":""},null,{"$f":"IF($B69=0,\"\",'Sjekkliste for utfylling'!L103)","v":""}]
[{"$f":"'Sjekkliste for utfylling'!A105","v":69},{"$f":"IF('Sjekkliste for utfylling'!K105<>\"\",1,0)","v":0},0,{"$f":"IF($B70=1,'Sjekkliste for utfylling'!A105,\"\")","v":""},{"$f":"IF($B70=1,'Sjekkliste for utfylling'!B105,\"\")","v":""},null,{"$f":"IF($B70=0,\"\",'Sjekkliste for utfylling'!L105)","v":""}]
[{"$f":"'Sjekkliste for utfylling'!A106","v":70},{"$f":"IF('Sjekkliste for utfylling'!K106<>\"\",1,0)","v":0},0,{"$f":"IF($B71=1,'Sjekkliste for utfylling'!A106,\"\")","v":""},{"$f":"IF($B71=1,'Sjekkliste for utfylling'!B106,\"\")","v":""},null,{"$f":"IF($B71=0,\"\",'Sjekkliste for utfylling'!L106)","v":""}]
[{"$f":"'Sjekkliste for utfylling'!A107","v":71},{"$f":"IF('Sjekkliste for utfylling'!K107<>\"\",1,0)","v":0},0,{"$f":"IF($B72=1,'Sjekkliste for utfylling'!A107,\"\")","v":""},{"$f":"IF($B72=1,'Sjekkliste for utfylling'!B107,\"\")","v":""},null,{"$f":"IF($B72=0,\"\",'Sjekkliste for utfylling'!L107)","v":""}]
[{"$f":"'Sjekkliste for utfylling'!A108","v":72},{"$f":"IF('Sjekkliste for utfylling'!K108<>\"\",1,0)","v":0},0,{"$f":"IF($B73=1,'Sjekkliste for utfylling'!A108,\"\")","v":""},{"$f":"IF($B73=1,'Sjekkliste for utfylling'!B108,\"\")","v":""},null,{"$f":"IF($B73=0,\"\",'Sjekkliste for utfylling'!L108)","v":""}]
[{"$f":"'Sjekkliste for utfylling'!A110","v":73},{"$f":"IF('Sjekkliste for utfylling'!K110<>\"\",1,0)","v":0},0,{"$f":"IF($B74=1,'Sjekkliste for utfylling'!A110,\"\")","v":""},{"$f":"IF($B74=1,'Sjekkliste for utfylling'!B110,\"\")","v":""},null,{"$f":"IF($B74=0,\"\",'Sjekkliste for utfylling'!L110)","v":""}]
[{"$f":"'Sjekkliste for utfylling'!A111","v":74},{"$f":"IF('Sjekkliste for utfylling'!K111<>\"\",1,0)","v":0},0,{"$f":"IF($B75=1,'Sjekkliste for utfylling'!A111,\"\")","v":""},{"$f":"IF($B75=1,'Sjekkliste for utfylling'!B111,\"\")","v":""},null,{"$f":"IF($B75=0,\"\",'Sjekkliste for utfylling'!L111)","v":""}]
[{"$f":"'Sjekkliste for utfylling'!A112","v":75},{"$f":"IF('Sjekkliste for utfylling'!K112<>\"\",1,0)","v":0},0,{"$f":"IF($B76=1,'Sjekkliste for utfylling'!A112,\"\")","v":""},{"$f":"IF($B76=1,'Sjekkliste for utfylling'!B112,\"\")","v":""},null,{"$f":"IF($B76=0,\"\",'Sjekkliste for utfylling'!L112)","v":""}]
[{"$f":"'Sjekkliste for utfylling'!A113","v":76},{"$f":"IF('Sjekkliste for utfylling'!K113<>\"\",1,0)","v":0},0,{"$f":"IF($B77=1,'Sjekkliste for utfylling'!A113,\"\")","v":""},{"$f":"IF($B77=1,'Sjekkliste for utfylling'!B113,\"\")","v":""},null,{"$f":"IF($B77=0,\"\",'Sjekkliste for utfylling'!L113)","v":""}]
[{"$f":"'Sjekkliste for utfylling'!A114","v":77},{"$f":"IF('Sjekkliste for utfylling'!K114<>\"\",1,0)","v":0},0,{"$f":"IF($B78=1,'Sjekkliste for utfylling'!A114,\"\")","v":""},{"$f":"IF($B78=1,'Sjekkliste for utfylling'!B114,\"\")","v":""},null,{"$f":"IF($B78=0,\"\",'Sjekkliste for utfylling'!L114)","v":""}]
[{"$f":"'Sjekkliste for utfylling'!A116","v":78},{"$f":"IF('Sjekkliste for utfylling'!K116<>\"\",1,0)","v":0},0,{"$f":"IF($B79=1,'Sjekkliste for utfylling'!A116,\"\")","v":""},{"$f":"IF($B79=1,'Sjekkliste for utfylling'!B116,\"\")","v":""},null,{"$f":"IF($B79=0,\"\",'Sjekkliste for utfylling'!L116)","v":""}]
[{"$f":"'Sjekkliste for utfylling'!A117","v":79},{"$f":"IF('Sjekkliste for utfylling'!K117<>\"\",1,0)","v":0},0,{"$f":"IF($B80=1,'Sjekkliste for utfylling'!A117,\"\")","v":""},{"$f":"IF($B80=1,'Sjekkliste for utfylling'!B117,\"\")","v":""},null,{"$f":"IF($B80=0,\"\",'Sjekkliste for utfylling'!L117)","v":""}]
[{"$f":"'Sjekkliste for utfylling'!A118","v":80},{"$f":"IF('Sjekkliste for utfylling'!K118<>\"\",1,0)","v":0},0,{"$f":"IF($B81=1,'Sjekkliste for utfylling'!A118,\"\")","v":""},{"$f":"IF($B81=1,'Sjekkliste for utfylling'!B118,\"\")","v":""},null,{"$f":"IF($B81=0,\"\",'Sjekkliste for utfylling'!L118)","v":""}]
[{"$f":"'Sjekkliste for utfylling'!A122","v":81},{"$f":"IF('Sjekkliste for utfylling'!K122<>\"\",1,0)","v":0},0,{"$f":"IF($B82=1,'Sjekkliste for utfylling'!A122,\"\")","v":""},{"$f":"IF($B82=1,'Sjekkliste for utfylling'!B122,\"\")","v":""},null,{"$f":"IF($B82=0,\"\",'Sjekkliste for utfylling'!L122)","v":""}]
[{"$f":"'Sjekkliste for utfylling'!A124","v":82},{"$f":"IF('Sjekkliste for utfylling'!K124<>\"\",1,0)","v":0},0,{"$f":"IF($B83=1,'Sjekkliste for utfylling'!A124,\"\")","v":""},{"$f":"IF($B83=1,'Sjekkliste for utfylling'!B124,\"\")","v":""},null,{"$f":"IF($B83=0,\"\",'Sjekkliste for utfylling'!L124)","v":""}]
[{"$f":"'Sjekkliste for utfylling'!A125","v":83},{"$f":"IF('Sjekkliste for utfylling'!K125<>\"\",1,0)","v":0},0,{"$f":"IF($B84=1,'Sjekkliste for utfylling'!A125,\"\")","v":""},{"$f":"IF($B84=1,'Sjekkliste for utfylling'!B125,\"\")","v":""},null,{"$f":"IF($B84=0,\"\",'Sjekkliste for utfylling'!L125)","v":""}]
[{"$f":"'Sjekkliste for utfylling'!A126","v":84},{"$f":"IF('Sjekkliste for utfylling'!K126<>\"\",1,0)","v":0},0,{"$f":"IF($B85=1,'Sjekkliste for utfylling'!A126,\"\")","v":""},{"$f":"IF($B85=1,'Sjekkliste for utfylling'!B126,\"\")","v":""},null,{"$f":"IF($B85=0,\"\",'Sjekkliste for utfylling'!L126)","v":""}]
[{"$f":"'Sjekkliste for utfylling'!A127","v":85},{"$f":"IF('Sjekkliste for utfylling'!K127<>\"\",1,0)","v":0},0,{"$f":"IF($B86=1,'Sjekkliste for utfylling'!A127,\"\")","v":""},{"$f":"IF($B86=1,'Sjekkliste for utfylling'!B127,\"\")","v":""},null,{"$f":"IF($B86=0,\"\",'Sjekkliste for utfylling'!L127)","v":""}]
[{"$f":"'Sjekkliste for utfylling'!A129","v":86},{"$f":"IF('Sjekkliste for utfylling'!K129<>\"\",1,0)","v":0},{"$f":"SUM(B87:B87)","v":0},{"$f":"IF($B87=1,'Sjekkliste for utfylling'!A129,\"\")","v":""},{"$f":"IF($B87=1,'Sjekkliste for utfylling'!B129,\"\")","v":""},null,{"$f":"IF($B87=0,\"\",'Sjekkliste for utfylling'!L129)","v":""}]
[{"$f":"'Sjekkliste for utfylling'!A130","v":87},{"$f":"IF('Sjekkliste for utfylling'!K130<>\"\",1,0)","v":0},0,{"$f":"IF($B88=1,'Sjekkliste for utfylling'!A130,\"\")","v":""},{"$f":"IF($B88=1,'Sjekkliste for utfylling'!B130,\"\")","v":""},null,{"$f":"IF($B88=0,\"\",'Sjekkliste for utfylling'!L130)","v":""}]
[{"$f":"'Sjekkliste for utfylling'!A132","v":88},{"$f":"IF('Sjekkliste for utfylling'!K132<>\"\",1,0)","v":0},0,{"$f":"IF($B89=1,'Sjekkliste for utfylling'!A132,\"\")","v":""},{"$f":"IF($B89=1,'Sjekkliste for utfylling'!B132,\"\")","v":""},null,{"$f":"IF($B89=0,\"\",'Sjekkliste for utfylling'!L132)","v":""}]
[{"$f":"'Sjekkliste for utfylling'!A133","v":89},{"$f":"IF('Sjekkliste for utfylling'!K133<>\"\",1,0)","v":0},0,{"$f":"IF($B90=1,'Sjekkliste for utfylling'!A133,\"\")","v":""},{"$f":"IF($B90=1,'Sjekkliste for utfylling'!B133,\"\")","v":""},null,{"$f":"IF($B90=0,\"\",'Sjekkliste for utfylling'!L133)","v":""}]
[{"$f":"'Sjekkliste for utfylling'!A134","v":90},{"$f":"IF('Sjekkliste for utfylling'!K134<>\"\",1,0)","v":0},0,{"$f":"IF($B91=1,'Sjekkliste for utfylling'!A134,\"\")","v":""},{"$f":"IF($B91=1,'Sjekkliste for utfylling'!B134,\"\")","v":""},null,{"$f":"IF($B91=0,\"\",'Sjekkliste for utfylling'!L134)","v":""}]
[{"$f":"'Sjekkliste for utfylling'!A135","v":91},{"$f":"IF('Sjekkliste for utfylling'!K135<>\"\",1,0)","v":0},0,{"$f":"IF($B92=1,'Sjekkliste for utfylling'!A135,\"\")","v":""},{"$f":"IF($B92=1,'Sjekkliste for utfylling'!B135,\"\")","v":""},null,{"$f":"IF($B92=0,\"\",'Sjekkliste for utfylling'!L135)","v":""}]
[{"$f":"'Sjekkliste for utfylling'!A146","v":92},{"$f":"IF('Sjekkliste for utfylling'!K146<>\"\",1,0)","v":0},0,{"$f":"IF($B93=1,'Sjekkliste for utfylling'!A146,\"\")","v":""},{"$f":"IF($B93=1,'Sjekkliste for utfylling'!B146,\"\")","v":""},null,{"$f":"IF($B93=0,\"\",'Sjekkliste for utfylling'!L146)","v":""}]
[{"$f":"'Sjekkliste for utfylling'!A148","v":93},{"$f":"IF('Sjekkliste for utfylling'!K148<>\"\",1,0)","v":0},0,{"$f":"IF($B94=1,'Sjekkliste for utfylling'!A148,\"\")","v":""},{"$f":"IF($B94=1,'Sjekkliste for utfylling'!B148,\"\")","v":""},null,{"$f":"IF($B94=0,\"\",'Sjekkliste for utfylling'!L148)","v":""}]
[{"$f":"'Sjekkliste for utfylling'!A150","v":94},{"$f":"IF('Sjekkliste for utfylling'!K150<>\"\",1,0)","v":0},0,{"$f":"IF($B95=1,'Sjekkliste for utfylling'!A150,\"\")","v":""},{"$f":"IF($B95=1,'Sjekkliste for utfylling'!B150,\"\")","v":""},null,{"$f":"IF($B95=0,\"\",'Sjekkliste for utfylling'!L150)","v":""}]
[{"$f":"'Sjekkliste for utfylling'!A151","v":95},{"$f":"IF('Sjekkliste for utfylling'!K151<>\"\",1,0)","v":0},0,{"$f":"IF($B96=1,'Sjekkliste for utfylling'!A151,\"\")","v":""},{"$f":"IF($B96=1,'Sjekkliste for utfylling'!B151,\"\")","v":""},null,{"$f":"IF($B96=0,\"\",'Sjekkliste for utfylling'!L151)","v":""}]
[{"$f":"'Sjekkliste for utfylling'!A152","v":96},{"$f":"IF('Sjekkliste for utfylling'!K152<>\"\",1,0)","v":0},0,{"$f":"IF($B97=1,'Sjekkliste for utfylling'!A152,\"\")","v":""},{"$f":"IF($B97=1,'Sjekkliste for utfylling'!B152,\"\")","v":""},null,{"$f":"IF($B97=0,\"\",'Sjekkliste for utfylling'!L152)","v":""}]
[{"$f":"'Sjekkliste for utfylling'!A154","v":97},{"$f":"IF('Sjekkliste for utfylling'!K154<>\"\",1,0)","v":0},{"$f":"SUM(B98:B98)","v":0},{"$f":"IF($B98=1,'Sjekkliste for utfylling'!A154,\"\")","v":""},{"$f":"IF($B98=1,'Sjekkliste for utfylling'!B154,\"\")","v":""},null,{"$f":"IF($B98=0,\"\",'Sjekkliste for utfylling'!L154)","v":""}]
[{"$f":"'Sjekkliste for utfylling'!A155","v":98},{"$f":"IF('Sjekkliste for utfylling'!K155<>\"\",1,0)","v":0},0,{"$f":"IF($B99=1,'Sjekkliste for utfylling'!A155,\"\")","v":""},{"$f":"IF($B99=1,'Sjekkliste for utfylling'!B155,\"\")","v":""},null,{"$f":"IF($B99=0,\"\",'Sjekkliste for utfylling'!L155)","v":""}]
[{"$f":"'Sjekkliste for utfylling'!A156","v":99},{"$f":"IF('Sjekkliste for utfylling'!K156<>\"\",1,0)","v":0},0,{"$f":"IF($B100=1,'Sjekkliste for utfylling'!A156,\"\")","v":""},{"$f":"IF($B100=1,'Sjekkliste for utfylling'!B156,\"\")","v":""},null,{"$f":"IF($B100=0,\"\",'Sjekkliste for utfylling'!L156)","v":""}]
[{"$f":"'Sjekkliste for utfylling'!A157","v":100},{"$f":"IF('Sjekkliste for utfylling'!K157<>\"\",1,0)","v":0},0,{"$f":"IF($B101=1,'Sjekkliste for utfylling'!A157,\"\")","v":""},{"$f":"IF($B101=1,'Sjekkliste for utfylling'!B157,\"\")","v":""},null,{"$f":"IF($B101=0,\"\",'Sjekkliste for utfylling'!L157)","v":""}]
[{"$f":"'Sjekkliste for utfylling'!A159","v":101},{"$f":"IF('Sjekkliste for utfylling'!K159<>\"\",1,0)","v":0},0,{"$f":"IF($B102=1,'Sjekkliste for utfylling'!A159,\"\")","v":""},{"$f":"IF($B102=1,'Sjekkliste for utfylling'!B159,\"\")","v":""},null,{"$f":"IF($B102=0,\"\",'Sjekkliste for utfylling'!L159)","v":""}]
[{"$f":"'Sjekkliste for utfylling'!A161","v":102},{"$f":"IF('Sjekkliste for utfylling'!K161<>\"\",1,0)","v":0},0,{"$f":"IF($B103=1,'Sjekkliste for utfylling'!A161,\"\")","v":""},{"$f":"IF($B103=1,'Sjekkliste for utfylling'!B161,\"\")","v":""},null,{"$f":"IF($B103=0,\"\",'Sjekkliste for utfylling'!L161)","v":""}]
[{"$f":"'Sjekkliste for utfylling'!A163","v":103},{"$f":"IF('Sjekkliste for utfylling'!K163<>\"\",1,0)","v":0},0,{"$f":"IF($B104=1,'Sjekkliste for utfylling'!A163,\"\")","v":""},{"$f":"IF($B104=1,'Sjekkliste for utfylling'!B163,\"\")","v":""},null,{"$f":"IF($B104=0,\"\",'Sjekkliste for utfylling'!L163)","v":""}]
[{"$f":"'Sjekkliste for utfylling'!A165","v":104},{"$f":"IF('Sjekkliste for utfylling'!K165<>\"\",1,0)","v":0},0,{"$f":"IF($B105=1,'Sjekkliste for utfylling'!A165,\"\")","v":""},{"$f":"IF($B105=1,'Sjekkliste for utfylling'!B165,\"\")","v":""},null,{"$f":"IF($B105=0,\"\",'Sjekkliste for utfylling'!L165)","v":""}]
[{"$f":"'Sjekkliste for utfylling'!A167","v":105},{"$f":"IF('Sjekkliste for utfylling'!K167<>\"\",1,0)","v":0},{"$f":"SUM(B106:B106)","v":0},{"$f":"IF($B106=1,'Sjekkliste for utfylling'!A167,\"\")","v":""},{"$f":"IF($B106=1,'Sjekkliste for utfylling'!B167,\"\")","v":""},null,{"$f":"IF($B106=0,\"\",'Sjekkliste for utfylling'!L167)","v":""}]
[{"$f":"'Sjekkliste for utfylling'!A168","v":106},{"$f":"IF('Sjekkliste for utfylling'!K168<>\"\",1,0)","v":0},0,{"$f":"IF($B107=1,'Sjekkliste for utfylling'!A168,\"\")","v":""},{"$f":"IF($B107=1,'Sjekkliste for utfylling'!B168,\"\")","v":""},null,{"$f":"IF($B107=0,\"\",'Sjekkliste for utfylling'!L168)","v":""}]
[{"$f":"'Sjekkliste for utfylling'!A169","v":107},{"$f":"IF('Sjekkliste for utfylling'!K169<>\"\",1,0)","v":0},0,{"$f":"IF($B108=1,'Sjekkliste for utfylling'!A169,\"\")","v":""},{"$f":"IF($B108=1,'Sjekkliste for utfylling'!B169,\"\")","v":""},null,{"$f":"IF($B108=0,\"\",'Sjekkliste for utfylling'!L169)","v":""}]
[{"$f":"'Sjekkliste for utfylling'!A171","v":108},{"$f":"IF('Sjekkliste for utfylling'!K171<>\"\",1,0)","v":0},{"$f":"SUM(B109:B109)","v":0},{"$f":"IF($B109=1,'Sjekkliste for utfylling'!A171,\"\")","v":""},{"$f":"IF($B109=1,'Sjekkliste for utfylling'!B171,\"\")","v":""},null,{"$f":"IF($B109=0,\"\",'Sjekkliste for utfylling'!L171)","v":""}]
[{"$f":"'Sjekkliste for utfylling'!A174","v":109},{"$f":"IF('Sjekkliste for utfylling'!K174<>\"\",1,0)","v":0},0,{"$f":"IF($B110=1,'Sjekkliste for utfylling'!A174,\"\")","v":""},{"$f":"IF($B110=1,'Sjekkliste for utfylling'!B174,\"\")","v":""},null,{"$f":"IF($B110=0,\"\",'Sjekkliste for utfylling'!L174)","v":""}]
[{"$f":"'Sjekkliste for utfylling'!A176","v":110},{"$f":"IF('Sjekkliste for utfylling'!K176<>\"\",1,0)","v":0},0,{"$f":"IF($B111=1,'Sjekkliste for utfylling'!A176,\"\")","v":""},{"$f":"IF($B111=1,'Sjekkliste for utfylling'!B176,\"\")","v":""},null,{"$f":"IF($B111=0,\"\",'Sjekkliste for utfylling'!L176)","v":""}]
[{"$f":"'Sjekkliste for utfylling'!A177","v":111},{"$f":"IF('Sjekkliste for utfylling'!K177<>\"\",1,0)","v":0},0,{"$f":"IF($B112=1,'Sjekkliste for utfylling'!A177,\"\")","v":""},{"$f":"IF($B112=1,'Sjekkliste for utfylling'!B177,\"\")","v":""},null,{"$f":"IF($B112=0,\"\",'Sjekkliste for utfylling'!L177)","v":""}]
[{"$f":"'Sjekkliste for utfylling'!A179","v":112},{"$f":"IF('Sjekkliste for utfylling'!K179<>\"\",1,0)","v":0},0,{"$f":"IF($B113=1,'Sjekkliste for utfylling'!A179,\"\")","v":""},{"$f":"IF($B113=1,'Sjekkliste for utfylling'!B179,\"\")","v":""},null,{"$f":"IF($B113=0,\"\",'Sjekkliste for utfylling'!L179)","v":""}]
[{"$f":"'Sjekkliste for utfylling'!A181","v":113},{"$f":"IF('Sjekkliste for utfylling'!K181<>\"\",1,0)","v":0},0,{"$f":"IF($B114=1,'Sjekkliste for utfylling'!A181,\"\")","v":""},{"$f":"IF($B114=1,'Sjekkliste for utfylling'!B181,\"\")","v":""},null,{"$f":"IF($B114=0,\"\",'Sjekkliste for utfylling'!L181)","v":""}]
[{"$f":"'Sjekkliste for utfylling'!A183","v":114},{"$f":"IF('Sjekkliste for utfylling'!K183<>\"\",1,0)","v":0},{"$f":"SUM(B115:B115)","v":0},{"$f":"IF($B115=1,'Sjekkliste for utfylling'!A183,\"\")","v":""},{"$f":"IF($B115=1,'Sjekkliste for utfylling'!B183,\"\")","v":""},null,{"$f":"IF($B115=0,\"\",'Sjekkliste for utfylling'!L183)","v":""}]
[{"$f":"'Sjekkliste for utfylling'!A185","v":115},{"$f":"IF('Sjekkliste for utfylling'!K185<>\"\",1,0)","v":0},0,{"$f":"IF($B116=1,'Sjekkliste for utfylling'!A185,\"\")","v":""},{"$f":"IF($B116=1,'Sjekkliste for utfylling'!B185,\"\")","v":""},null,{"$f":"IF($B116=0,\"\",'Sjekkliste for utfylling'!L185)","v":""}]
[{"$f":"'Sjekkliste for utfylling'!A186","v":116},{"$f":"IF('Sjekkliste for utfylling'!K186<>\"\",1,0)","v":0},0,{"$f":"IF($B117=1,'Sjekkliste for utfylling'!A186,\"\")","v":""},{"$f":"IF($B117=1,'Sjekkliste for utfylling'!B186,\"\")","v":""},null,{"$f":"IF($B117=0,\"\",'Sjekkliste for utfylling'!L186)","v":""}]
[{"$f":"'Sjekkliste for utfylling'!A188","v":117},{"$f":"IF('Sjekkliste for utfylling'!K188<>\"\",1,0)","v":0},{"$f":"SUM(B118:B118)","v":0},{"$f":"IF($B118=1,'Sjekkliste for utfylling'!A188,\"\")","v":""},{"$f":"IF($B118=1,'Sjekkliste for utfylling'!B188,\"\")","v":""},null,{"$f":"IF($B118=0,\"\",'Sjekkliste for utfylling'!L188)","v":""}]
[{"$f":"'Sjekkliste for utfylling'!A190","v":118},{"$f":"IF('Sjekkliste for utfylling'!K190<>\"\",1,0)","v":0},0,{"$f":"IF($B119=1,'Sjekkliste for utfylling'!A190,\"\")","v":""},{"$f":"IF($B119=1,'Sjekkliste for utfylling'!B190,\"\")","v":""},null,{"$f":"IF($B119=0,\"\",'Sjekkliste for utfylling'!L190)","v":""}]
[{"$f":"'Sjekkliste for utfylling'!A191","v":119},{"$f":"IF('Sjekkliste for utfylling'!K191<>\"\",1,0)","v":0},0,{"$f":"IF($B120=1,'Sjekkliste for utfylling'!A191,\"\")","v":""},{"$f":"IF($B120=1,'Sjekkliste for utfylling'!B191,\"\")","v":""},null,{"$f":"IF($B120=0,\"\",'Sjekkliste for utfylling'!L191)","v":""}]
[{"$f":"'Sjekkliste for utfylling'!A194","v":120},{"$f":"IF('Sjekkliste for utfylling'!K194<>\"\",1,0)","v":0},0,{"$f":"IF($B121=1,'Sjekkliste for utfylling'!A194,\"\")","v":""},{"$f":"IF($B121=1,'Sjekkliste for utfylling'!B194,\"\")","v":""},null,{"$f":"IF($B121=0,\"\",'Sjekkliste for utfylling'!L194)","v":""}]
[{"$f":"'Sjekkliste for utfylling'!A195","v":121},{"$f":"IF('Sjekkliste for utfylling'!K195<>\"\",1,0)","v":0},0,{"$f":"IF($B122=1,'Sjekkliste for utfylling'!A195,\"\")","v":""},{"$f":"IF($B122=1,'Sjekkliste for utfylling'!B195,\"\")","v":""},null,{"$f":"IF($B122=0,\"\",'Sjekkliste for utfylling'!L195)","v":""}]
[{"$f":"'Sjekkliste for utfylling'!A196","v":122},{"$f":"IF('Sjekkliste for utfylling'!K196<>\"\",1,0)","v":0},0,{"$f":"IF($B123=1,'Sjekkliste for utfylling'!A196,\"\")","v":""},{"$f":"IF($B123=1,'Sjekkliste for utfylling'!B196,\"\")","v":""},null,{"$f":"IF($B123=0,\"\",'Sjekkliste for utfylling'!L196)","v":""}]
[{"$f":"'Sjekkliste for utfylling'!A197","v":123},{"$f":"IF('Sjekkliste for utfylling'!K197<>\"\",1,0)","v":0},0,{"$f":"IF($B124=1,'Sjekkliste for utfylling'!A197,\"\")","v":""},{"$f":"IF($B124=1,'Sjekkliste for utfylling'!B197,\"\")","v":""},null,{"$f":"IF($B124=0,\"\",'Sjekkliste for utfylling'!L197)","v":""}]
[{"$f":"'Sjekkliste for utfylling'!A198","v":124},{"$f":"IF('Sjekkliste for utfylling'!K198<>\"\",1,0)","v":0},0,{"$f":"IF($B125=1,'Sjekkliste for utfylling'!A198,\"\")","v":""},{"$f":"IF($B125=1,'Sjekkliste for utfylling'!B198,\"\")","v":""},null,{"$f":"IF($B125=0,\"\",'Sjekkliste for utfylling'!L198)","v":""}]
[{"$f":"'Sjekkliste for utfylling'!A199","v":125},{"$f":"IF('Sjekkliste for utfylling'!K199<>\"\",1,0)","v":0},0,{"$f":"IF($B126=1,'Sjekkliste for utfylling'!A199,\"\")","v":""},{"$f":"IF($B126=1,'Sjekkliste for utfylling'!B199,\"\")","v":""},null,{"$f":"IF($B126=0,\"\",'Sjekkliste for utfylling'!L199)","v":""}]
[{"$f":"'Sjekkliste for utfylling'!A200","v":126},{"$f":"IF('Sjekkliste for utfylling'!K200<>\"\",1,0)","v":0},0,{"$f":"IF($B127=1,'Sjekkliste for utfylling'!A200,\"\")","v":""},{"$f":"IF($B127=1,'Sjekkliste for utfylling'!B200,\"\")","v":""},null,{"$f":"IF($B127=0,\"\",'Sjekkliste for utfylling'!L200)","v":""}]
[{"$f":"'Sjekkliste for utfylling'!A202","v":127},{"$f":"IF('Sjekkliste for utfylling'!K202<>\"\",1,0)","v":0},0,{"$f":"IF($B128=1,'Sjekkliste for utfylling'!A202,\"\")","v":""},{"$f":"IF($B128=1,'Sjekkliste for utfylling'!B202,\"\")","v":""},null,{"$f":"IF($B128=0,\"\",'Sjekkliste for utfylling'!L202)","v":""}]
[{"$f":"'Sjekkliste for utfylling'!A203","v":128},{"$f":"IF('Sjekkliste for utfylling'!K203<>\"\",1,0)","v":0},0,{"$f":"IF($B129=1,'Sjekkliste for utfylling'!A203,\"\")","v":""},{"$f":"IF($B129=1,'Sjekkliste for utfylling'!B203,\"\")","v":""},null,{"$f":"IF($B129=0,\"\",'Sjekkliste for utfylling'!L203)","v":""}]
[{"$f":"'Sjekkliste for utfylling'!A205","v":129},{"$f":"IF('Sjekkliste for utfylling'!K205<>\"\",1,0)","v":0},0,{"$f":"IF($B130=1,'Sjekkliste for utfylling'!A205,\"\")","v":""},{"$f":"IF($B130=1,'Sjekkliste for utfylling'!B205,\"\")","v":""},null,{"$f":"IF($B130=0,\"\",'Sjekkliste for utfylling'!L205)","v":""}]
[{"$f":"'Sjekkliste for utfylling'!A206","v":130},{"$f":"IF('Sjekkliste for utfylling'!K206<>\"\",1,0)","v":0},0,{"$f":"IF($B131=1,'Sjekkliste for utfylling'!A206,\"\")","v":""},{"$f":"IF($B131=1,'Sjekkliste for utfylling'!B206,\"\")","v":""},null,{"$f":"IF($B131=0,\"\",'Sjekkliste for utfylling'!L206)","v":""}]
[{"$f":"'Sjekkliste for utfylling'!A207","v":131},{"$f":"IF('Sjekkliste for utfylling'!K207<>\"\",1,0)","v":0},0,{"$f":"IF($B132=1,'Sjekkliste for utfylling'!A207,\"\")","v":""},{"$f":"IF($B132=1,'Sjekkliste for utfylling'!B207,\"\")","v":""},null,{"$f":"IF($B132=0,\"\",'Sjekkliste for utfylling'!L207)","v":""}]